Organisation Name,Organisation Code,Unique Ref No,Effective Date,Directorate  where expenditure incurred,Supplier Name,Payment Date,Net Amount,Purpose of Spend,Procurement Classification (Higher Level),Procurement Classification (Lower Level),Capital/Revenue
Walsall Council,http://opendatacommunities.org/id/metropolitan-district-council/walsall,WC92-01,31/05/2018,Economy & Environment,11KBW,30/05/2018,"9,085.00",73014-LEGAL FEES-PRIV CONTRACTOR FEES,CEMETERIES CENTRAL ADMINISTRATION,Third Party Payments,Revenue
Walsall Council,http://opendatacommunities.org/id/metropolitan-district-council/walsall,WC92-02,31/05/2018,Childrens,247 CARS (WILLENHALL) LIMITED,25/05/2018,"4,413.80",52000-WITH DRIVER-HIRE OF VEHICLES,HOME TO SCHOOL TRANSPORT,Transport,Revenue
Walsall Council,http://opendatacommunities.org/id/metropolitan-district-council/walsall,WC92-03,31/05/2018,Resources and Transformation,31ST SUTTON COLDFIELD WEST SCOUT GROUP BUILDING FUND,16/05/2018,395.00,63128-HIRE OF ROOM-SERVICES-FEES,ELECTORAL ADMINISTRATION,Supplies & Services,Revenue
Walsall Council,http://opendatacommunities.org/id/metropolitan-district-council/walsall,WC92-04,31/05/2018,Childrens,39 ESSEX STREET LLP PFA,01/05/2018,"1,582.00",73014-LEGAL FEES-PRIV CONTRACTOR FEES,PERFORMANCE & OUTCOMES TEAM (C&YP),Third Party Payments,Revenue
Walsall Council,http://opendatacommunities.org/id/metropolitan-district-council/walsall,WC92-05,31/05/2018,Adult Social Care,5 CARE SERVICES LTD,24/05/2018,"41,231.21",73372-DOMICILIARY CARE,OP PACKAGE/PLACEMENT COSTS,Third Party Payments,Revenue
Walsall Council,http://opendatacommunities.org/id/metropolitan-district-council/walsall,WC92-06,31/05/2018,Economy & Environment,A ASHTON,11/05/2018,300.00,60500-GENERAL MATERIALS,INFRASTRUCTURE MAINTENANCE,Supplies & Services,Revenue
Walsall Council,http://opendatacommunities.org/id/metropolitan-district-council/walsall,WC92-07,31/05/2018,Resources and Transformation,A D T FIRE AND SECURITY PLC,08/05/2018,246.63,73002-SECURITY-PRIV CONTRACTOR FEES,CENTRALISED MAINTENANCE,Third Party Payments,Revenue
Walsall Council,http://opendatacommunities.org/id/metropolitan-district-council/walsall,WC92-08,31/05/2018,Resources and Transformation,A D T FIRE AND SECURITY PLC,10/05/2018,264.43,73002-SECURITY-PRIV CONTRACTOR FEES,CENTRALISED MAINTENANCE,Third Party Payments,Revenue
Walsall Council,http://opendatacommunities.org/id/metropolitan-district-council/walsall,WC92-09,31/05/2018,Resources and Transformation,A D T FIRE AND SECURITY PLC,23/05/2018,267.83,73002-SECURITY-PRIV CONTRACTOR FEES,CENTRALISED MAINTENANCE,Third Party Payments,Revenue
Walsall Council,http://opendatacommunities.org/id/metropolitan-district-council/walsall,WC92-10,31/05/2018,Resources and Transformation,A D T FIRE AND SECURITY PLC,23/05/2018,525.04,73002-SECURITY-PRIV CONTRACTOR FEES,CENTRALISED MAINTENANCE,Third Party Payments,Revenue
Walsall Council,http://opendatacommunities.org/id/metropolitan-district-council/walsall,WC92-11,31/05/2018,Economy & Environment,A F BLAKEMORE & SON LTD,21/05/2018,256.56,61018-DRINKS-PROVISIONS,OAK PARK,Supplies & Services,Revenue
Walsall Council,http://opendatacommunities.org/id/metropolitan-district-council/walsall,WC92-12,31/05/2018,Economy & Environment,A F BLAKEMORE & SON LTD,03/05/2018,295.24,61018-DRINKS-PROVISIONS,DARLASTON LEISURE CENTRE,Supplies & Services,Revenue
Walsall Council,http://opendatacommunities.org/id/metropolitan-district-council/walsall,WC92-13,31/05/2018,Economy & Environment,A F BLAKEMORE & SON LTD,21/05/2018,299.44,61009-BEVERAGES-PROVISIONS,FOREST ARTS CENTRE,Supplies & Services,Revenue
Walsall Council,http://opendatacommunities.org/id/metropolitan-district-council/walsall,WC92-14,31/05/2018,Resources and Transformation,A F BLAKEMORE & SON LTD,01/05/2018,309.27,61016-FOOD AND BEVERAGES-PROVISIONS,WALSALL TOWN HALL,Supplies & Services,Revenue
Walsall Council,http://opendatacommunities.org/id/metropolitan-district-council/walsall,WC92-15,31/05/2018,Resources and Transformation,A F BLAKEMORE & SON LTD,23/05/2018,317.22,61016-FOOD AND BEVERAGES-PROVISIONS,WALSALL TOWN HALL,Supplies & Services,Revenue
Walsall Council,http://opendatacommunities.org/id/metropolitan-district-council/walsall,WC92-16,31/05/2018,Adult Social Care,A F BLAKEMORE & SON LTD,08/05/2018,357.04,61016-FOOD AND BEVERAGES-PROVISIONS,HOLLYBANK,Supplies & Services,Revenue
Walsall Council,http://opendatacommunities.org/id/metropolitan-district-council/walsall,WC92-17,31/05/2018,Economy & Environment,A F BLAKEMORE & SON LTD,25/05/2018,369.96,61018-DRINKS-PROVISIONS,OAK PARK,Supplies & Services,Revenue
Walsall Council,http://opendatacommunities.org/id/metropolitan-district-council/walsall,WC92-18,31/05/2018,Economy & Environment,A F BLAKEMORE & SON LTD,09/05/2018,393.00,61018-DRINKS-PROVISIONS,OAK PARK,Supplies & Services,Revenue
Walsall Council,http://opendatacommunities.org/id/metropolitan-district-council/walsall,WC92-19,31/05/2018,Economy & Environment,A F BLAKEMORE & SON LTD,04/05/2018,416.89,61018-DRINKS-PROVISIONS,OAK PARK,Supplies & Services,Revenue
Walsall Council,http://opendatacommunities.org/id/metropolitan-district-council/walsall,WC92-20,31/05/2018,Economy & Environment,A F BLAKEMORE & SON LTD,30/05/2018,458.71,61008-CONFECTIONERY/SNACKS-PROVISIONS,OAK PARK,Supplies & Services,Revenue
Walsall Council,http://opendatacommunities.org/id/metropolitan-district-council/walsall,WC92-21,31/05/2018,Adult Social Care,A F BLAKEMORE & SON LTD,04/05/2018,467.70,61016-FOOD AND BEVERAGES-PROVISIONS,GOSCOTE,Supplies & Services,Revenue
Walsall Council,http://opendatacommunities.org/id/metropolitan-district-council/walsall,WC92-22,31/05/2018,Economy & Environment,A F BLAKEMORE & SON LTD,25/05/2018,501.82,61008-CONFECTIONERY/SNACKS-PROVISIONS,OAK PARK,Supplies & Services,Revenue
Walsall Council,http://opendatacommunities.org/id/metropolitan-district-council/walsall,WC92-23,31/05/2018,Economy & Environment,A F BLAKEMORE & SON LTD,09/05/2018,517.99,61018-DRINKS-PROVISIONS,OAK PARK,Supplies & Services,Revenue
Walsall Council,http://opendatacommunities.org/id/metropolitan-district-council/walsall,WC92-24,31/05/2018,Economy & Environment,A F BLAKEMORE & SON LTD,09/05/2018,520.26,61008-CONFECTIONERY/SNACKS-PROVISIONS,DARLASTON LEISURE CENTRE,Supplies & Services,Revenue
Walsall Council,http://opendatacommunities.org/id/metropolitan-district-council/walsall,WC92-25,31/05/2018,Adult Social Care,A F BLAKEMORE & SON LTD,21/05/2018,550.46,61016-FOOD AND BEVERAGES-PROVISIONS,GOSCOTE,Supplies & Services,Revenue
Walsall Council,http://opendatacommunities.org/id/metropolitan-district-council/walsall,WC92-26,31/05/2018,Adult Social Care,A F BLAKEMORE & SON LTD,24/05/2018,663.09,61016-FOOD AND BEVERAGES-PROVISIONS,HOLLYBANK,Supplies & Services,Revenue
Walsall Council,http://opendatacommunities.org/id/metropolitan-district-council/walsall,WC92-27,31/05/2018,Resources and Transformation,A F BLAKEMORE & SON LTD,21/05/2018,797.03,61016-FOOD AND BEVERAGES-PROVISIONS,WALSALL TOWN HALL,Supplies & Services,Revenue
Walsall Council,http://opendatacommunities.org/id/metropolitan-district-council/walsall,WC92-28,31/05/2018,Economy & Environment,A F BLAKEMORE & SON LTD,10/05/2018,"1,003.89",61008-CONFECTIONERY/SNACKS-PROVISIONS,OAK PARK,Supplies & Services,Revenue
Walsall Council,http://opendatacommunities.org/id/metropolitan-district-council/walsall,WC92-29,31/05/2018,Economy & Environment,A F BLAKEMORE & SON LTD,04/05/2018,"1,205.48",61008-CONFECTIONERY/SNACKS-PROVISIONS,OAK PARK,Supplies & Services,Revenue
Walsall Council,http://opendatacommunities.org/id/metropolitan-district-council/walsall,WC92-30,31/05/2018,Resources and Transformation,AAINA COMMUNITY HUB,16/05/2018,350.00,63128-HIRE OF ROOM-SERVICES-FEES,ELECTORAL ADMINISTRATION,Supplies & Services,Revenue
Walsall Council,http://opendatacommunities.org/id/metropolitan-district-council/walsall,WC92-31,31/05/2018,Economy & Environment,AAINA COMMUNITY HUB,16/05/2018,"4,988.50",66500-GRANTS TO OTHER ORGS,ESF COMMUNITY GRANTS,Third Party Payments,Revenue
Walsall Council,http://opendatacommunities.org/id/metropolitan-district-council/walsall,WC92-32,31/05/2018,Childrens,REDACTED,08/05/2018,378.00,76422-DIRECT PAYMENTS TO SOCIAL SERVICES CLIENTS,FAMILY SUPPORT - DIRECT PAYMENTS,Transfer Payments,Revenue
Walsall Council,http://opendatacommunities.org/id/metropolitan-district-council/walsall,WC92-33,31/05/2018,Adult Social Care,ABBEY COURT NURSING & RESIDEN,16/05/2018,"2,077.58",73373-RESIDENTIAL & NURSING CARE PLACEMENTS,OP PACKAGE/PLACEMENT COSTS,Third Party Payments,Revenue
Walsall Council,http://opendatacommunities.org/id/metropolitan-district-council/walsall,WC92-34,31/05/2018,Adult Social Care,ABBEY COURT NURSING & RESIDEN,29/05/2018,"2,144.62",73373-RESIDENTIAL & NURSING CARE PLACEMENTS,OP PACKAGE/PLACEMENT COSTS,Third Party Payments,Revenue
Walsall Council,http://opendatacommunities.org/id/metropolitan-district-council/walsall,WC92-35,31/05/2018,Adult Social Care,ABBEY HEALTHCARE HOMES LTD,01/05/2018,728.26,73373-RESIDENTIAL & NURSING CARE PLACEMENTS,PD PACKAGE/PLACEMENT COSTS,Third Party Payments,Revenue
Walsall Council,http://opendatacommunities.org/id/metropolitan-district-council/walsall,WC92-36,31/05/2018,Adult Social Care,ABBEY HEALTHCARE HOMES LTD,01/05/2018,971.02,73373-RESIDENTIAL & NURSING CARE PLACEMENTS,PD PACKAGE/PLACEMENT COSTS,Third Party Payments,Revenue
Walsall Council,http://opendatacommunities.org/id/metropolitan-district-council/walsall,WC92-37,31/05/2018,Adult Social Care,ABBEY HEALTHCARE HOMES LTD,01/05/2018,983.18,73373-RESIDENTIAL & NURSING CARE PLACEMENTS,PD PACKAGE/PLACEMENT COSTS,Third Party Payments,Revenue
Walsall Council,http://opendatacommunities.org/id/metropolitan-district-council/walsall,WC92-38,31/05/2018,Adult Social Care,ABBEY HEALTHCARE HOMES LTD,01/05/2018,"1,285.71",73373-RESIDENTIAL & NURSING CARE PLACEMENTS,LD PACKAGE/PLACEMENT COSTS,Third Party Payments,Revenue
Walsall Council,http://opendatacommunities.org/id/metropolitan-district-council/walsall,WC92-39,31/05/2018,Adult Social Care,ABBEY HEALTHCARE HOMES LTD,01/05/2018,"1,285.71",73373-RESIDENTIAL & NURSING CARE PLACEMENTS,OP PACKAGE/PLACEMENT COSTS,Third Party Payments,Revenue
Walsall Council,http://opendatacommunities.org/id/metropolitan-district-council/walsall,WC92-40,31/05/2018,Adult Social Care,ABBEY HEALTHCARE HOMES LTD,01/05/2018,"1,310.90",73373-RESIDENTIAL & NURSING CARE PLACEMENTS,PD PACKAGE/PLACEMENT COSTS,Third Party Payments,Revenue
Walsall Council,http://opendatacommunities.org/id/metropolitan-district-council/walsall,WC92-41,31/05/2018,Adult Social Care,ABBEY HEALTHCARE HOMES LTD,01/05/2018,"1,371.43",73373-RESIDENTIAL & NURSING CARE PLACEMENTS,OP PACKAGE/PLACEMENT COSTS,Third Party Payments,Revenue
Walsall Council,http://opendatacommunities.org/id/metropolitan-district-council/walsall,WC92-42,31/05/2018,Adult Social Care,ABBEY HEALTHCARE HOMES LTD,01/05/2018,"1,699.28",73373-RESIDENTIAL & NURSING CARE PLACEMENTS,PD PACKAGE/PLACEMENT COSTS,Third Party Payments,Revenue
Walsall Council,http://opendatacommunities.org/id/metropolitan-district-council/walsall,WC92-43,31/05/2018,Adult Social Care,ABBEY HEALTHCARE HOMES LTD,22/05/2018,"1,699.28",73373-RESIDENTIAL & NURSING CARE PLACEMENTS,PD PACKAGE/PLACEMENT COSTS,Third Party Payments,Revenue
Walsall Council,http://opendatacommunities.org/id/metropolitan-district-council/walsall,WC92-44,31/05/2018,Adult Social Care,ABBEY HEALTHCARE HOMES LTD,01/05/2018,"1,714.29",73373-RESIDENTIAL & NURSING CARE PLACEMENTS,LD PACKAGE/PLACEMENT COSTS,Third Party Payments,Revenue
Walsall Council,http://opendatacommunities.org/id/metropolitan-district-council/walsall,WC92-45,31/05/2018,Adult Social Care,ABBEY HEALTHCARE HOMES LTD,01/05/2018,"1,714.29",73373-RESIDENTIAL & NURSING CARE PLACEMENTS,OP PACKAGE/PLACEMENT COSTS,Third Party Payments,Revenue
Walsall Council,http://opendatacommunities.org/id/metropolitan-district-council/walsall,WC92-46,31/05/2018,Adult Social Care,ABBEY HEALTHCARE HOMES LTD,01/05/2018,"1,828.57",73373-RESIDENTIAL & NURSING CARE PLACEMENTS,OP PACKAGE/PLACEMENT COSTS,Third Party Payments,Revenue
Walsall Council,http://opendatacommunities.org/id/metropolitan-district-council/walsall,WC92-47,31/05/2018,Adult Social Care,ABBEY HEALTHCARE HOMES LTD,01/05/2018,"2,294.08",73373-RESIDENTIAL & NURSING CARE PLACEMENTS,PD PACKAGE/PLACEMENT COSTS,Third Party Payments,Revenue
Walsall Council,http://opendatacommunities.org/id/metropolitan-district-council/walsall,WC92-48,31/05/2018,Adult Social Care,ABBEY HEALTHCARE HOMES LTD,22/05/2018,"2,294.08",73373-RESIDENTIAL & NURSING CARE PLACEMENTS,PD PACKAGE/PLACEMENT COSTS,Third Party Payments,Revenue
Walsall Council,http://opendatacommunities.org/id/metropolitan-district-council/walsall,WC92-49,31/05/2018,Adult Social Care,ABBEY HEALTHCARE HOMES LTD,01/05/2018,"3,000.00",73373-RESIDENTIAL & NURSING CARE PLACEMENTS,LD PACKAGE/PLACEMENT COSTS,Third Party Payments,Revenue
Walsall Council,http://opendatacommunities.org/id/metropolitan-district-council/walsall,WC92-50,31/05/2018,Adult Social Care,ABBEY HEALTHCARE HOMES LTD,01/05/2018,"3,000.00",73373-RESIDENTIAL & NURSING CARE PLACEMENTS,OP PACKAGE/PLACEMENT COSTS,Third Party Payments,Revenue
Walsall Council,http://opendatacommunities.org/id/metropolitan-district-council/walsall,WC92-51,31/05/2018,Adult Social Care,ABBEY HEALTHCARE HOMES LTD,22/05/2018,"3,000.00",73373-RESIDENTIAL & NURSING CARE PLACEMENTS,LD PACKAGE/PLACEMENT COSTS,Third Party Payments,Revenue
Walsall Council,http://opendatacommunities.org/id/metropolitan-district-council/walsall,WC92-52,31/05/2018,Adult Social Care,ABBEY HEALTHCARE HOMES LTD,22/05/2018,"3,000.00",73373-RESIDENTIAL & NURSING CARE PLACEMENTS,OP PACKAGE/PLACEMENT COSTS,Third Party Payments,Revenue
Walsall Council,http://opendatacommunities.org/id/metropolitan-district-council/walsall,WC92-53,31/05/2018,Adult Social Care,ABBEY HEALTHCARE HOMES LTD,01/05/2018,"3,200.00",73373-RESIDENTIAL & NURSING CARE PLACEMENTS,OP PACKAGE/PLACEMENT COSTS,Third Party Payments,Revenue
Walsall Council,http://opendatacommunities.org/id/metropolitan-district-council/walsall,WC92-54,31/05/2018,Adult Social Care,ABBEY HEALTHCARE HOMES LTD,22/05/2018,"3,200.00",73373-RESIDENTIAL & NURSING CARE PLACEMENTS,OP PACKAGE/PLACEMENT COSTS,Third Party Payments,Revenue
Walsall Council,http://opendatacommunities.org/id/metropolitan-district-council/walsall,WC92-55,31/05/2018,Childrens,ABC DAY NURSERY (WILLENHALL) LIMITED,31/05/2018,"2,656.68",66505-OTHER-GRANTS TO OTHER ORGS,EARLY YEARS - 2 YR OLDS,Third Party Payments,Revenue
Walsall Council,http://opendatacommunities.org/id/metropolitan-district-council/walsall,WC92-56,31/05/2018,Childrens,ABC FOSTERING,18/05/2018,"2,635.20",74037-INDEPENDENT FOSTER CARE-OTH AGENCY PROVISION,EXTERNAL FOSTER CARE PROVISION,Third Party Payments,Revenue
Walsall Council,http://opendatacommunities.org/id/metropolitan-district-council/walsall,WC92-57,31/05/2018,Childrens,ABC FOSTERING,18/05/2018,"2,828.05",74037-INDEPENDENT FOSTER CARE-OTH AGENCY PROVISION,EXTERNAL FOSTER CARE PROVISION,Third Party Payments,Revenue
Walsall Council,http://opendatacommunities.org/id/metropolitan-district-council/walsall,WC92-58,31/05/2018,Childrens,ABC FOSTERING,18/05/2018,"2,859.48",74037-INDEPENDENT FOSTER CARE-OTH AGENCY PROVISION,EXTERNAL FOSTER CARE PROVISION,Third Party Payments,Revenue
Walsall Council,http://opendatacommunities.org/id/metropolitan-district-council/walsall,WC92-59,31/05/2018,Childrens,ABC FOSTERING,18/05/2018,"3,042.00",74037-INDEPENDENT FOSTER CARE-OTH AGENCY PROVISION,EXTERNAL FOSTER CARE PROVISION,Third Party Payments,Revenue
Walsall Council,http://opendatacommunities.org/id/metropolitan-district-council/walsall,WC92-60,31/05/2018,Adult Social Care,REDACTED,08/05/2018,"1,668.77",76422-DIRECT PAYMENTS TO SOCIAL SERVICES CLIENTS,LD PACKAGE/PLACEMENT COSTS,Transfer Payments,Revenue
Walsall Council,http://opendatacommunities.org/id/metropolitan-district-council/walsall,WC92-61,31/05/2018,Adult Social Care,REDACTED,08/05/2018,"1,999.20",76422-DIRECT PAYMENTS TO SOCIAL SERVICES CLIENTS,LD PACKAGE/PLACEMENT COSTS,Transfer Payments,Revenue
Walsall Council,http://opendatacommunities.org/id/metropolitan-district-council/walsall,WC92-62,31/05/2018,Childrens,ABLEWELL CARS,02/05/2018,"3,637.64",52000-WITH DRIVER-HIRE OF VEHICLES,HOME TO SCHOOL TRANSPORT,Transport,Revenue
Walsall Council,http://opendatacommunities.org/id/metropolitan-district-council/walsall,WC92-63,31/05/2018,Adult Social Care,ACCORD HOUSING ASSOCIATION LTD#135,30/05/2018,267.12,73372-DOMICILIARY CARE,MENTAL HEALTH PACKAGE/PLACEMENT COSTS,Third Party Payments,Revenue
Walsall Council,http://opendatacommunities.org/id/metropolitan-district-council/walsall,WC92-64,31/05/2018,Resources and Transformation,ACCORD HOUSING ASSOCIATION LTD#135,01/05/2018,371.34,73365-BLOCK GROSS-SUPPORTING PEOPLE,HOMELESSNESS PREVENTION STRATEGY,Third Party Payments,Revenue
Walsall Council,http://opendatacommunities.org/id/metropolitan-district-council/walsall,WC92-65,31/05/2018,Adult Social Care,ACCORD HOUSING ASSOCIATION LTD#135,30/05/2018,445.20,73372-DOMICILIARY CARE,OP PACKAGE/PLACEMENT COSTS,Third Party Payments,Revenue
Walsall Council,http://opendatacommunities.org/id/metropolitan-district-council/walsall,WC92-66,31/05/2018,Adult Social Care,ACCORD HOUSING ASSOCIATION LTD#135,29/05/2018,452.62,73372-DOMICILIARY CARE,MENTAL HEALTH PACKAGE/PLACEMENT COSTS,Third Party Payments,Revenue
Walsall Council,http://opendatacommunities.org/id/metropolitan-district-council/walsall,WC92-67,31/05/2018,Adult Social Care,ACCORD HOUSING ASSOCIATION LTD#135,16/05/2018,454.27,73373-RESIDENTIAL & NURSING CARE PLACEMENTS,LD PACKAGE/PLACEMENT COSTS,Third Party Payments,Revenue
Walsall Council,http://opendatacommunities.org/id/metropolitan-district-council/walsall,WC92-68,31/05/2018,Adult Social Care,ACCORD HOUSING ASSOCIATION LTD#135,23/05/2018,596.92,73372-DOMICILIARY CARE,MENTAL HEALTH PACKAGE/PLACEMENT COSTS,Third Party Payments,Revenue
Walsall Council,http://opendatacommunities.org/id/metropolitan-district-council/walsall,WC92-69,31/05/2018,Adult Social Care,ACCORD HOUSING ASSOCIATION LTD#135,23/05/2018,604.48,73372-DOMICILIARY CARE,MENTAL HEALTH PACKAGE/PLACEMENT COSTS,Third Party Payments,Revenue
Walsall Council,http://opendatacommunities.org/id/metropolitan-district-council/walsall,WC92-70,31/05/2018,Adult Social Care,ACCORD HOUSING ASSOCIATION LTD#135,01/05/2018,635.92,73373-RESIDENTIAL & NURSING CARE PLACEMENTS,LD PACKAGE/PLACEMENT COSTS,Third Party Payments,Revenue
Walsall Council,http://opendatacommunities.org/id/metropolitan-district-council/walsall,WC92-71,31/05/2018,Adult Social Care,ACCORD HOUSING ASSOCIATION LTD#135,23/05/2018,661.12,73372-DOMICILIARY CARE,MENTAL HEALTH PACKAGE/PLACEMENT COSTS,Third Party Payments,Revenue
Walsall Council,http://opendatacommunities.org/id/metropolitan-district-council/walsall,WC92-72,31/05/2018,Adult Social Care,ACCORD HOUSING ASSOCIATION LTD#135,23/05/2018,793.36,73372-DOMICILIARY CARE,MENTAL HEALTH PACKAGE/PLACEMENT COSTS,Third Party Payments,Revenue
Walsall Council,http://opendatacommunities.org/id/metropolitan-district-council/walsall,WC92-73,31/05/2018,Adult Social Care,ACCORD HOUSING ASSOCIATION LTD#135,23/05/2018,793.36,73372-DOMICILIARY CARE,MENTAL HEALTH PACKAGE/PLACEMENT COSTS,Third Party Payments,Revenue
Walsall Council,http://opendatacommunities.org/id/metropolitan-district-council/walsall,WC92-74,31/05/2018,Resources and Transformation,ACCORD HOUSING ASSOCIATION LTD#135,01/05/2018,970.89,73365-BLOCK GROSS-SUPPORTING PEOPLE,HOMELESSNESS PREVENTION STRATEGY,Third Party Payments,Revenue
Walsall Council,http://opendatacommunities.org/id/metropolitan-district-council/walsall,WC92-75,31/05/2018,Adult Social Care,ACCORD HOUSING ASSOCIATION LTD#135,23/05/2018,982.28,73372-DOMICILIARY CARE,MENTAL HEALTH PACKAGE/PLACEMENT COSTS,Third Party Payments,Revenue
Walsall Council,http://opendatacommunities.org/id/metropolitan-district-council/walsall,WC92-76,31/05/2018,Adult Social Care,ACCORD HOUSING ASSOCIATION LTD#135,23/05/2018,"1,133.40",73372-DOMICILIARY CARE,LD PACKAGE/PLACEMENT COSTS,Third Party Payments,Revenue
Walsall Council,http://opendatacommunities.org/id/metropolitan-district-council/walsall,WC92-77,31/05/2018,Resources and Transformation,ACCORD HOUSING ASSOCIATION LTD#135,01/05/2018,"1,149.24",73365-BLOCK GROSS-SUPPORTING PEOPLE,HOMELESSNESS PREVENTION STRATEGY,Third Party Payments,Revenue
Walsall Council,http://opendatacommunities.org/id/metropolitan-district-council/walsall,WC92-78,31/05/2018,Adult Social Care,ACCORD HOUSING ASSOCIATION LTD#135,21/05/2018,"1,259.28",73372-DOMICILIARY CARE,LD PACKAGE/PLACEMENT COSTS,Third Party Payments,Revenue
Walsall Council,http://opendatacommunities.org/id/metropolitan-district-council/walsall,WC92-79,31/05/2018,Resources and Transformation,ACCORD HOUSING ASSOCIATION LTD#135,01/05/2018,"1,286.45",73365-BLOCK GROSS-SUPPORTING PEOPLE,HOMELESSNESS PREVENTION STRATEGY,Third Party Payments,Revenue
Walsall Council,http://opendatacommunities.org/id/metropolitan-district-council/walsall,WC92-80,31/05/2018,Adult Social Care,ACCORD HOUSING ASSOCIATION LTD#135,23/05/2018,"1,322.28",73372-DOMICILIARY CARE,MENTAL HEALTH PACKAGE/PLACEMENT COSTS,Third Party Payments,Revenue
Walsall Council,http://opendatacommunities.org/id/metropolitan-district-council/walsall,WC92-81,31/05/2018,Adult Social Care,ACCORD HOUSING ASSOCIATION LTD#135,23/05/2018,"1,322.28",73372-DOMICILIARY CARE,MENTAL HEALTH PACKAGE/PLACEMENT COSTS,Third Party Payments,Revenue
Walsall Council,http://opendatacommunities.org/id/metropolitan-district-council/walsall,WC92-82,31/05/2018,Adult Social Care,ACCORD HOUSING ASSOCIATION LTD#135,21/05/2018,"1,529.15",73372-DOMICILIARY CARE,LD PACKAGE/PLACEMENT COSTS,Third Party Payments,Revenue
Walsall Council,http://opendatacommunities.org/id/metropolitan-district-council/walsall,WC92-83,31/05/2018,Adult Social Care,ACCORD HOUSING ASSOCIATION LTD#135,23/05/2018,"1,567.84",73372-DOMICILIARY CARE,MENTAL HEALTH PACKAGE/PLACEMENT COSTS,Third Party Payments,Revenue
Walsall Council,http://opendatacommunities.org/id/metropolitan-district-council/walsall,WC92-84,31/05/2018,Adult Social Care,ACCORD HOUSING ASSOCIATION LTD#135,17/05/2018,"3,035.50",70000-SOCIAL SERVICES-FEES TO VOLUNTARY BODIES,COMPLEX NEEDS SLA,Third Party Payments,Revenue
Walsall Council,http://opendatacommunities.org/id/metropolitan-district-council/walsall,WC92-85,31/05/2018,Adult Social Care,ACCORD HOUSING ASSOCIATION LTD#135,01/05/2018,"4,263.49",73373-RESIDENTIAL & NURSING CARE PLACEMENTS,LD PACKAGE/PLACEMENT COSTS,Third Party Payments,Revenue
Walsall Council,http://opendatacommunities.org/id/metropolitan-district-council/walsall,WC92-86,31/05/2018,Adult Social Care,ACCORD HOUSING ASSOCIATION LTD#135,16/05/2018,"4,420.40",73373-RESIDENTIAL & NURSING CARE PLACEMENTS,LD PACKAGE/PLACEMENT COSTS,Third Party Payments,Revenue
Walsall Council,http://opendatacommunities.org/id/metropolitan-district-council/walsall,WC92-87,31/05/2018,Adult Social Care,ACCORD HOUSING ASSOCIATION LTD#135,16/05/2018,"4,421.40",73373-RESIDENTIAL & NURSING CARE PLACEMENTS,LD PACKAGE/PLACEMENT COSTS,Third Party Payments,Revenue
Walsall Council,http://opendatacommunities.org/id/metropolitan-district-council/walsall,WC92-88,31/05/2018,Adult Social Care,ACCORD HOUSING ASSOCIATION LTD#135,01/05/2018,"5,950.45",73373-RESIDENTIAL & NURSING CARE PLACEMENTS,LD PACKAGE/PLACEMENT COSTS,Third Party Payments,Revenue
Walsall Council,http://opendatacommunities.org/id/metropolitan-district-council/walsall,WC92-89,31/05/2018,Adult Social Care,ACCORD HOUSING ASSOCIATION LTD#135,16/05/2018,"6,170.84",73373-RESIDENTIAL & NURSING CARE PLACEMENTS,LD PACKAGE/PLACEMENT COSTS,Third Party Payments,Revenue
Walsall Council,http://opendatacommunities.org/id/metropolitan-district-council/walsall,WC92-90,31/05/2018,Adult Social Care,ACCORD HOUSING ASSOCIATION LTD#135,16/05/2018,"6,170.84",73373-RESIDENTIAL & NURSING CARE PLACEMENTS,LD PACKAGE/PLACEMENT COSTS,Third Party Payments,Revenue
Walsall Council,http://opendatacommunities.org/id/metropolitan-district-council/walsall,WC92-91,31/05/2018,Adult Social Care,ACCORD HOUSING ASSOCIATION LTD#135,02/05/2018,"11,164.00",73365-BLOCK GROSS-SUPPORTING PEOPLE,OLDER PEOPLE SLA,Third Party Payments,Revenue
Walsall Council,http://opendatacommunities.org/id/metropolitan-district-council/walsall,WC92-92,31/05/2018,Adult Social Care,ACCORD HOUSING ASSOCIATION LTD#135,02/05/2018,"29,330.75",73365-BLOCK GROSS-SUPPORTING PEOPLE,OLDER PEOPLE SLA,Third Party Payments,Revenue
Walsall Council,http://opendatacommunities.org/id/metropolitan-district-council/walsall,WC92-93,31/05/2018,Adult Social Care,ACCORD HOUSING ASSOCIATION LTD#135,22/05/2018,"35,675.25",73372-DOMICILIARY CARE,OP PACKAGE/PLACEMENT COSTS,Third Party Payments,Revenue
Walsall Council,http://opendatacommunities.org/id/metropolitan-district-council/walsall,WC92-94,31/05/2018,Adult Social Care,ACE CARE AGENCY,30/05/2018,545.30,73372-DOMICILIARY CARE,OP PACKAGE/PLACEMENT COSTS,Third Party Payments,Revenue
Walsall Council,http://opendatacommunities.org/id/metropolitan-district-council/walsall,WC92-95,31/05/2018,Adult Social Care,ACE CARE AGENCY,21/05/2018,568.20,73372-DOMICILIARY CARE,OP PACKAGE/PLACEMENT COSTS,Third Party Payments,Revenue
Walsall Council,http://opendatacommunities.org/id/metropolitan-district-council/walsall,WC92-96,31/05/2018,Adult Social Care,ACE CARE AGENCY,30/05/2018,742.80,73372-DOMICILIARY CARE,OP PACKAGE/PLACEMENT COSTS,Third Party Payments,Revenue
Walsall Council,http://opendatacommunities.org/id/metropolitan-district-council/walsall,WC92-97,31/05/2018,Adult Social Care,ACE CARE AGENCY,21/05/2018,825.00,73372-DOMICILIARY CARE,OP PACKAGE/PLACEMENT COSTS,Third Party Payments,Revenue
Walsall Council,http://opendatacommunities.org/id/metropolitan-district-council/walsall,WC92-98,31/05/2018,Adult Social Care,ACE CARE AGENCY,21/05/2018,866.60,73372-DOMICILIARY CARE,OP PACKAGE/PLACEMENT COSTS,Third Party Payments,Revenue
Walsall Council,http://opendatacommunities.org/id/metropolitan-district-council/walsall,WC92-99,31/05/2018,Adult Social Care,ACE CARE AGENCY,30/05/2018,"1,051.88",73372-DOMICILIARY CARE,OP PACKAGE/PLACEMENT COSTS,Third Party Payments,Revenue
Walsall Council,http://opendatacommunities.org/id/metropolitan-district-council/walsall,WC92-100,31/05/2018,Adult Social Care,ACEPAY LTD (COTTAGE NUR HOME),08/05/2018,"-1,384.07",73373-RESIDENTIAL & NURSING CARE PLACEMENTS,OP PACKAGE/PLACEMENT COSTS,Third Party Payments,Revenue
Walsall Council,http://opendatacommunities.org/id/metropolitan-district-council/walsall,WC92-101,31/05/2018,Adult Social Care,ACEPAY LTD (COTTAGE NUR HOME),16/05/2018,707.14,73373-RESIDENTIAL & NURSING CARE PLACEMENTS,OP PACKAGE/PLACEMENT COSTS,Third Party Payments,Revenue
Walsall Council,http://opendatacommunities.org/id/metropolitan-district-council/walsall,WC92-102,31/05/2018,Adult Social Care,ACEPAY LTD (COTTAGE NUR HOME),22/05/2018,"1,311.22",73373-RESIDENTIAL & NURSING CARE PLACEMENTS,OP PACKAGE/PLACEMENT COSTS,Third Party Payments,Revenue
Walsall Council,http://opendatacommunities.org/id/metropolitan-district-council/walsall,WC92-103,31/05/2018,Adult Social Care,ACEPAY LTD (COTTAGE NUR HOME),16/05/2018,"1,869.79",73373-RESIDENTIAL & NURSING CARE PLACEMENTS,OP PACKAGE/PLACEMENT COSTS,Third Party Payments,Revenue
Walsall Council,http://opendatacommunities.org/id/metropolitan-district-council/walsall,WC92-104,31/05/2018,Adult Social Care,ACEPAY LTD (COTTAGE NUR HOME),16/05/2018,"2,258.21",73373-RESIDENTIAL & NURSING CARE PLACEMENTS,OP PACKAGE/PLACEMENT COSTS,Third Party Payments,Revenue
Walsall Council,http://opendatacommunities.org/id/metropolitan-district-council/walsall,WC92-105,31/05/2018,Adult Social Care,ACEPAY LTD (COTTAGE NUR HOME),22/05/2018,"2,258.21",73373-RESIDENTIAL & NURSING CARE PLACEMENTS,OP PACKAGE/PLACEMENT COSTS,Third Party Payments,Revenue
Walsall Council,http://opendatacommunities.org/id/metropolitan-district-council/walsall,WC92-106,31/05/2018,Adult Social Care,ACEPAY LTD (COTTAGE NUR HOME),16/05/2018,"2,258.22",73373-RESIDENTIAL & NURSING CARE PLACEMENTS,OP PACKAGE/PLACEMENT COSTS,Third Party Payments,Revenue
Walsall Council,http://opendatacommunities.org/id/metropolitan-district-council/walsall,WC92-107,31/05/2018,Adult Social Care,ACEPAY LTD (COTTAGE NUR HOME),16/05/2018,"2,258.22",73373-RESIDENTIAL & NURSING CARE PLACEMENTS,OP PACKAGE/PLACEMENT COSTS,Third Party Payments,Revenue
Walsall Council,http://opendatacommunities.org/id/metropolitan-district-council/walsall,WC92-108,31/05/2018,Adult Social Care,ACEPAY LTD (COTTAGE NUR HOME),16/05/2018,"2,258.22",73373-RESIDENTIAL & NURSING CARE PLACEMENTS,OP PACKAGE/PLACEMENT COSTS,Third Party Payments,Revenue
Walsall Council,http://opendatacommunities.org/id/metropolitan-district-council/walsall,WC92-109,31/05/2018,Adult Social Care,ACEPAY LTD (COTTAGE NUR HOME),22/05/2018,"2,258.22",73373-RESIDENTIAL & NURSING CARE PLACEMENTS,OP PACKAGE/PLACEMENT COSTS,Third Party Payments,Revenue
Walsall Council,http://opendatacommunities.org/id/metropolitan-district-council/walsall,WC92-110,31/05/2018,Adult Social Care,ACEPAY LTD (COTTAGE NUR HOME),16/05/2018,"4,792.86",73373-RESIDENTIAL & NURSING CARE PLACEMENTS,OP PACKAGE/PLACEMENT COSTS,Third Party Payments,Revenue
Walsall Council,http://opendatacommunities.org/id/metropolitan-district-council/walsall,WC92-111,31/05/2018,Economy & Environment,ACIVICO LTD,17/05/2018,"2,351.34",01001-OTHER CONSULTANTS FEES,CFR 1008 WALSALL MARKET,Capital,Capital
Walsall Council,http://opendatacommunities.org/id/metropolitan-district-council/walsall,WC92-112,31/05/2018,Childrens,ACORN ABA LIMITED,16/05/2018,587.00,66502-TOP UP FUNDING -GRANTS TO SCHOOLS,INDEPENDENT PROVIDERS - SPECIAL & AP,Third Party Payments,Revenue
Walsall Council,http://opendatacommunities.org/id/metropolitan-district-council/walsall,WC92-113,31/05/2018,Childrens,ACORN CARE & EDUCATION LTD (SALES),02/05/2018,"5,973.76",66502-TOP UP FUNDING -GRANTS TO SCHOOLS,INDEPENDENT PROVIDERS - SPECIAL & AP,Third Party Payments,Revenue
Walsall Council,http://opendatacommunities.org/id/metropolitan-district-council/walsall,WC92-114,31/05/2018,Adult Social Care,ACORN REST HOME,22/05/2018,"1,387.26",73373-RESIDENTIAL & NURSING CARE PLACEMENTS,OP PACKAGE/PLACEMENT COSTS,Third Party Payments,Revenue
Walsall Council,http://opendatacommunities.org/id/metropolitan-district-council/walsall,WC92-115,31/05/2018,Adult Social Care,ACORN REST HOME,01/05/2018,"1,478.57",73373-RESIDENTIAL & NURSING CARE PLACEMENTS,OP PACKAGE/PLACEMENT COSTS,Third Party Payments,Revenue
Walsall Council,http://opendatacommunities.org/id/metropolitan-district-council/walsall,WC92-116,31/05/2018,Adult Social Care,ACORN REST HOME,29/05/2018,"1,688.84",73373-RESIDENTIAL & NURSING CARE PLACEMENTS,OP PACKAGE/PLACEMENT COSTS,Third Party Payments,Revenue
Walsall Council,http://opendatacommunities.org/id/metropolitan-district-council/walsall,WC92-117,31/05/2018,Adult Social Care,ACORN REST HOME,01/05/2018,"2,140.00",73373-RESIDENTIAL & NURSING CARE PLACEMENTS,OP PACKAGE/PLACEMENT COSTS,Third Party Payments,Revenue
Walsall Council,http://opendatacommunities.org/id/metropolitan-district-council/walsall,WC92-118,31/05/2018,Adult Social Care,ACORN REST HOME,29/05/2018,"2,140.00",73373-RESIDENTIAL & NURSING CARE PLACEMENTS,OP PACKAGE/PLACEMENT COSTS,Third Party Payments,Revenue
Walsall Council,http://opendatacommunities.org/id/metropolitan-district-council/walsall,WC92-119,31/05/2018,Childrens,ACORNS CHILDRENS HOSPICE TRUST,01/05/2018,"1,474.84",63000-PROFESSIONAL FEES AND SERVICES,DIRECTLY COMMISSIONED NURSING SERVICES,Supplies & Services,Revenue
Walsall Council,http://opendatacommunities.org/id/metropolitan-district-council/walsall,WC92-120,31/05/2018,Economy & Environment,ACTION DIGITAL MEDIA LTD,11/05/2018,545.00,40024-IRONMONGERY & SIGNS-OP MTCE,NAG - EXTERNALLY FUNDED PROJECTS,Premises,Revenue
Walsall Council,http://opendatacommunities.org/id/metropolitan-district-council/walsall,WC92-121,31/05/2018,Childrens,ACTION FOR CHILDREN,16/05/2018,"3,300.00",63000-PROFESSIONAL FEES AND SERVICES,FAMILY PLACEMENTS,Supplies & Services,Revenue
Walsall Council,http://opendatacommunities.org/id/metropolitan-district-council/walsall,WC92-122,31/05/2018,Adult Social Care,ACTION ON HEARING LOSS,08/05/2018,"7,220.44",60000-FURNITURE & EQUIPMENT,TELE-HEALTHCARE,Supplies & Services,Revenue
Walsall Council,http://opendatacommunities.org/id/metropolitan-district-council/walsall,WC92-123,31/05/2018,Adult Social Care,ACTON BANKS LTD,30/05/2018,"3,268.71",73025-PROFESSIONAL SERVICES-PRIV CONTRACTOR & OTHER AGENCIES,HOLLYBANK,Third Party Payments,Revenue
Walsall Council,http://opendatacommunities.org/id/metropolitan-district-council/walsall,WC92-124,31/05/2018,Adult Social Care,ACTON BANKS LTD,21/05/2018,"3,427.90",73025-PROFESSIONAL SERVICES-PRIV CONTRACTOR & OTHER AGENCIES,HOLLYBANK,Third Party Payments,Revenue
Walsall Council,http://opendatacommunities.org/id/metropolitan-district-council/walsall,WC92-125,31/05/2018,Adult Social Care,ACTON BANKS LTD,09/05/2018,"5,851.79",73025-PROFESSIONAL SERVICES-PRIV CONTRACTOR & OTHER AGENCIES,HOLLYBANK,Third Party Payments,Revenue
Walsall Council,http://opendatacommunities.org/id/metropolitan-district-council/walsall,WC92-126,31/05/2018,Adult Social Care,ACTON BANKS LTD,11/05/2018,"7,049.00",73025-PROFESSIONAL SERVICES-PRIV CONTRACTOR & OTHER AGENCIES,HOLLYBANK,Third Party Payments,Revenue
Walsall Council,http://opendatacommunities.org/id/metropolitan-district-council/walsall,WC92-127,31/05/2018,Adult Social Care,REDACTED,08/05/2018,442.52,76422-DIRECT PAYMENTS TO SOCIAL SERVICES CLIENTS,OP PACKAGE/PLACEMENT COSTS,Transfer Payments,Revenue
Walsall Council,http://opendatacommunities.org/id/metropolitan-district-council/walsall,WC92-128,31/05/2018,Adult Social Care,REDACTED,08/05/2018,448.60,76422-DIRECT PAYMENTS TO SOCIAL SERVICES CLIENTS,LD PACKAGE/PLACEMENT COSTS,Transfer Payments,Revenue
Walsall Council,http://opendatacommunities.org/id/metropolitan-district-council/walsall,WC92-129,31/05/2018,Childrens,ADCS (ASSOCIATION OF DIRECTORS OF CHILDRENS SERVICES),11/05/2018,416.00,63000-PROFESSIONAL FEES AND SERVICES,CHILDRENS MANAGMENT TEAM,Supplies & Services,Revenue
Walsall Council,http://opendatacommunities.org/id/metropolitan-district-council/walsall,WC92-130,31/05/2018,Resources and Transformation,ADELIE FOODS LTD,30/05/2018,687.54,61305-CATERING,TOWN HALL RESTAURANT BISTRO,Supplies & Services,Revenue
Walsall Council,http://opendatacommunities.org/id/metropolitan-district-council/walsall,WC92-131,31/05/2018,Resources and Transformation,ADELIE FOODS LTD,30/05/2018,814.78,61305-CATERING,TOWN HALL RESTAURANT BISTRO,Supplies & Services,Revenue
Walsall Council,http://opendatacommunities.org/id/metropolitan-district-council/walsall,WC92-132,31/05/2018,Resources and Transformation,ADELIE FOODS LTD,30/05/2018,906.78,61305-CATERING,TOWN HALL RESTAURANT BISTRO,Supplies & Services,Revenue
Walsall Council,http://opendatacommunities.org/id/metropolitan-district-council/walsall,WC92-133,31/05/2018,Adult Social Care,REDACTED,08/05/2018,"1,016.00",76422-DIRECT PAYMENTS TO SOCIAL SERVICES CLIENTS,OP PACKAGE/PLACEMENT COSTS,Transfer Payments,Revenue
Walsall Council,http://opendatacommunities.org/id/metropolitan-district-council/walsall,WC92-134,31/05/2018,Resources and Transformation,ADLER MANUFACTURING LIMITED,08/05/2018,564.49,83901-SOUVENIRS-OTHER DEMOCRACY COSTS,MAYORS SECRETARIAT,Supplies & Services,Revenue
Walsall Council,http://opendatacommunities.org/id/metropolitan-district-council/walsall,WC92-135,31/05/2018,Childrens,ADOPTION UK,18/05/2018,"1,250.00",74009-ADOPTION ALLOWANCE,ADOPTION TEAM,Transfer Payments,Revenue
Walsall Council,http://opendatacommunities.org/id/metropolitan-district-council/walsall,WC92-136,31/05/2018,Childrens,REDACTED,08/05/2018,333.12,74510-RESIDENTS ORDERS,ADOPTION ALLOWANCES,Third Party Payments,Revenue
Walsall Council,http://opendatacommunities.org/id/metropolitan-district-council/walsall,WC92-137,31/05/2018,Childrens,REDACTED,08/05/2018,361.12,74510-RESIDENTS ORDERS,ADOPTION ALLOWANCES,Third Party Payments,Revenue
Walsall Council,http://opendatacommunities.org/id/metropolitan-district-council/walsall,WC92-138,31/05/2018,Adult Social Care,ADVANCE HEALTH CARE (UK) LTD,23/05/2018,-382.93,73372-DOMICILIARY CARE,OP PACKAGE/PLACEMENT COSTS,Third Party Payments,Revenue
Walsall Council,http://opendatacommunities.org/id/metropolitan-district-council/walsall,WC92-139,31/05/2018,Adult Social Care,ADVANCE HEALTH CARE (UK) LTD,23/05/2018,-275.08,73372-DOMICILIARY CARE,OP PACKAGE/PLACEMENT COSTS,Third Party Payments,Revenue
Walsall Council,http://opendatacommunities.org/id/metropolitan-district-council/walsall,WC92-140,31/05/2018,Adult Social Care,ADVANCE HEALTH CARE (UK) LTD,17/05/2018,252.90,73025-PROFESSIONAL SERVICES-PRIV CONTRACTOR & OTHER AGENCIES,RAPID RESPONSE,Third Party Payments,Revenue
Walsall Council,http://opendatacommunities.org/id/metropolitan-district-council/walsall,WC92-141,31/05/2018,Adult Social Care,ADVANCE HEALTH CARE (UK) LTD,23/05/2018,252.90,73025-PROFESSIONAL SERVICES-PRIV CONTRACTOR & OTHER AGENCIES,COMMUNITY INTERMEDIATE CARE,Third Party Payments,Revenue
Walsall Council,http://opendatacommunities.org/id/metropolitan-district-council/walsall,WC92-142,31/05/2018,Adult Social Care,ADVANCE HEALTH CARE (UK) LTD,23/05/2018,414.48,73025-PROFESSIONAL SERVICES-PRIV CONTRACTOR & OTHER AGENCIES,COMMUNITY INTERMEDIATE CARE,Third Party Payments,Revenue
Walsall Council,http://opendatacommunities.org/id/metropolitan-district-council/walsall,WC92-143,31/05/2018,Adult Social Care,ADVANCE HEALTH CARE (UK) LTD,23/05/2018,442.58,73025-PROFESSIONAL SERVICES-PRIV CONTRACTOR & OTHER AGENCIES,COMMUNITY INTERMEDIATE CARE,Third Party Payments,Revenue
Walsall Council,http://opendatacommunities.org/id/metropolitan-district-council/walsall,WC92-144,31/05/2018,Adult Social Care,ADVANCE HEALTH CARE (UK) LTD,23/05/2018,442.58,73025-PROFESSIONAL SERVICES-PRIV CONTRACTOR & OTHER AGENCIES,COMMUNITY INTERMEDIATE CARE,Third Party Payments,Revenue
Walsall Council,http://opendatacommunities.org/id/metropolitan-district-council/walsall,WC92-145,31/05/2018,Adult Social Care,ADVANCE HEALTH CARE (UK) LTD,23/05/2018,442.58,73025-PROFESSIONAL SERVICES-PRIV CONTRACTOR & OTHER AGENCIES,COMMUNITY INTERMEDIATE CARE,Third Party Payments,Revenue
Walsall Council,http://opendatacommunities.org/id/metropolitan-district-council/walsall,WC92-146,31/05/2018,Adult Social Care,ADVANCE HEALTH CARE (UK) LTD,23/05/2018,442.58,73025-PROFESSIONAL SERVICES-PRIV CONTRACTOR & OTHER AGENCIES,COMMUNITY INTERMEDIATE CARE,Third Party Payments,Revenue
Walsall Council,http://opendatacommunities.org/id/metropolitan-district-council/walsall,WC92-147,31/05/2018,Adult Social Care,ADVANCE HEALTH CARE (UK) LTD,23/05/2018,442.58,73025-PROFESSIONAL SERVICES-PRIV CONTRACTOR & OTHER AGENCIES,COMMUNITY INTERMEDIATE CARE,Third Party Payments,Revenue
Walsall Council,http://opendatacommunities.org/id/metropolitan-district-council/walsall,WC92-148,31/05/2018,Adult Social Care,ADVANCE HEALTH CARE (UK) LTD,23/05/2018,456.63,73025-PROFESSIONAL SERVICES-PRIV CONTRACTOR & OTHER AGENCIES,COMMUNITY INTERMEDIATE CARE,Third Party Payments,Revenue
Walsall Council,http://opendatacommunities.org/id/metropolitan-district-council/walsall,WC92-149,31/05/2018,Adult Social Care,ADVANCE HEALTH CARE (UK) LTD,23/05/2018,456.63,73025-PROFESSIONAL SERVICES-PRIV CONTRACTOR & OTHER AGENCIES,COMMUNITY INTERMEDIATE CARE,Third Party Payments,Revenue
Walsall Council,http://opendatacommunities.org/id/metropolitan-district-council/walsall,WC92-150,31/05/2018,Adult Social Care,ADVANCE HEALTH CARE (UK) LTD,23/05/2018,491.75,73025-PROFESSIONAL SERVICES-PRIV CONTRACTOR & OTHER AGENCIES,COMMUNITY INTERMEDIATE CARE,Third Party Payments,Revenue
Walsall Council,http://opendatacommunities.org/id/metropolitan-district-council/walsall,WC92-151,31/05/2018,Adult Social Care,ADVANCE HEALTH CARE (UK) LTD,23/05/2018,491.75,73025-PROFESSIONAL SERVICES-PRIV CONTRACTOR & OTHER AGENCIES,COMMUNITY INTERMEDIATE CARE,Third Party Payments,Revenue
Walsall Council,http://opendatacommunities.org/id/metropolitan-district-council/walsall,WC92-152,31/05/2018,Adult Social Care,ADVANCE HEALTH CARE (UK) LTD,23/05/2018,512.83,73025-PROFESSIONAL SERVICES-PRIV CONTRACTOR & OTHER AGENCIES,COMMUNITY INTERMEDIATE CARE,Third Party Payments,Revenue
Walsall Council,http://opendatacommunities.org/id/metropolitan-district-council/walsall,WC92-153,31/05/2018,Adult Social Care,ADVANCE HEALTH CARE (UK) LTD,02/05/2018,797.50,73025-PROFESSIONAL SERVICES-PRIV CONTRACTOR & OTHER AGENCIES,ACM MANAGEMENT TEAM,Third Party Payments,Revenue
Walsall Council,http://opendatacommunities.org/id/metropolitan-district-council/walsall,WC92-154,31/05/2018,Adult Social Care,ADVANCE HEALTH CARE (UK) LTD,09/05/2018,"1,159.13",73019-PSE'S-PRIV CONTRACTOR FEES,RAPID RESPONSE,Third Party Payments,Revenue
Walsall Council,http://opendatacommunities.org/id/metropolitan-district-council/walsall,WC92-155,31/05/2018,Adult Social Care,ADVANCE HEALTH CARE (UK) LTD,23/05/2018,"2,388.50",73025-PROFESSIONAL SERVICES-PRIV CONTRACTOR & OTHER AGENCIES,COMMUNITY INTERMEDIATE CARE,Third Party Payments,Revenue
Walsall Council,http://opendatacommunities.org/id/metropolitan-district-council/walsall,WC92-156,31/05/2018,Adult Social Care,ADVANCE HEALTH CARE (UK) LTD,01/05/2018,"5,510.31",73019-PSE'S-PRIV CONTRACTOR FEES,RAPID RESPONSE,Third Party Payments,Revenue
Walsall Council,http://opendatacommunities.org/id/metropolitan-district-council/walsall,WC92-157,31/05/2018,Adult Social Care,ADVANCE HEALTH CARE (UK) LTD,09/05/2018,"6,300.94",73019-PSE'S-PRIV CONTRACTOR FEES,RAPID RESPONSE,Third Party Payments,Revenue
Walsall Council,http://opendatacommunities.org/id/metropolitan-district-council/walsall,WC92-158,31/05/2018,Adult Social Care,ADVANCE HEALTH CARE (UK) LTD,22/05/2018,"85,442.25",73372-DOMICILIARY CARE,OP PACKAGE/PLACEMENT COSTS,Third Party Payments,Revenue
Walsall Council,http://opendatacommunities.org/id/metropolitan-district-council/walsall,WC92-159,31/05/2018,Childrens,ADVENTURELAND DAY NURSERY,31/05/2018,817.44,66505-OTHER-GRANTS TO OTHER ORGS,EARLY YEARS - 2 YR OLDS,Third Party Payments,Revenue
Walsall Council,http://opendatacommunities.org/id/metropolitan-district-council/walsall,WC92-160,31/05/2018,Adult Social Care,ADVOCACY MATTERS LIMITED,09/05/2018,"18,031.00",70000-SOCIAL SERVICES-FEES TO VOLUNTARY BODIES,OP SLA,Third Party Payments,Revenue
Walsall Council,http://opendatacommunities.org/id/metropolitan-district-council/walsall,WC92-161,31/05/2018,Economy & Environment,AEBI SCHMIDT UK LIMITED,23/05/2018,333.06,60500-GENERAL MATERIALS,FLEET,Supplies & Services,Revenue
Walsall Council,http://opendatacommunities.org/id/metropolitan-district-council/walsall,WC92-162,31/05/2018,Economy & Environment,AEBI SCHMIDT UK LIMITED,18/05/2018,449.09,60500-GENERAL MATERIALS,FLEET,Supplies & Services,Revenue
Walsall Council,http://opendatacommunities.org/id/metropolitan-district-council/walsall,WC92-163,31/05/2018,Economy & Environment,AECOM LIMITED,09/05/2018,550.00,01006-SITE WORKS MAIN CONTRACTORS,CFR 1129 A461 CORRIDOR JUNCTION IMPROVEMENTS,Capital,Capital
Walsall Council,http://opendatacommunities.org/id/metropolitan-district-council/walsall,WC92-164,31/05/2018,Economy & Environment,AECOM LIMITED,23/05/2018,"1,500.00",01002-PROJECT FEES,CFR 1281 RING ROAD IMPROVEMENTS (CONTRIBUTION TO NPIF),Capital,Capital
Walsall Council,http://opendatacommunities.org/id/metropolitan-district-council/walsall,WC92-165,31/05/2018,Economy & Environment,AECOM LIMITED,21/05/2018,"4,000.00",01002-PROJECT FEES,CFR 1129 A461 CORRIDOR JUNCTION IMPROVEMENTS,Capital,Capital
Walsall Council,http://opendatacommunities.org/id/metropolitan-district-council/walsall,WC92-166,31/05/2018,Economy & Environment,AECOM LIMITED,11/05/2018,"15,696.58",73025-PROFESSIONAL SERVICES-PRIV CONTRACTOR & OTHER AGENCIES,SECTION 38 OF HIGHWAYS ACT - SUPERVISION,Third Party Payments,Revenue
Walsall Council,http://opendatacommunities.org/id/metropolitan-district-council/walsall,WC92-167,31/05/2018,Childrens,AFTER ADOPTION,18/05/2018,"8,450.00",73025-PROFESSIONAL SERVICES-PRIV CONTRACTOR & OTHER AGENCIES,ADOPTION TEAM,Third Party Payments,Revenue
Walsall Council,http://opendatacommunities.org/id/metropolitan-district-council/walsall,WC92-168,31/05/2018,Adult Social Care,AGINCARE UK LTD,21/05/2018,"1,559.04",73372-DOMICILIARY CARE,OP PACKAGE/PLACEMENT COSTS,Third Party Payments,Revenue
Walsall Council,http://opendatacommunities.org/id/metropolitan-district-council/walsall,WC92-169,31/05/2018,Adult Social Care,REDACTED,08/05/2018,"2,092.80",76422-DIRECT PAYMENTS TO SOCIAL SERVICES CLIENTS,LD PACKAGE/PLACEMENT COSTS,Transfer Payments,Revenue
Walsall Council,http://opendatacommunities.org/id/metropolitan-district-council/walsall,WC92-170,31/05/2018,Resources and Transformation,AIREY CONSULTANCY SERVICES LTD,01/05/2018,650.00,63800-COMPUTER EQUIPMENT AND SUPPLIES,REVENUES,Supplies & Services,Revenue
Walsall Council,http://opendatacommunities.org/id/metropolitan-district-council/walsall,WC92-171,31/05/2018,Economy & Environment,AIRQUEE,21/05/2018,500.00,60008-MAINTENANCE-FURNITURE & EQUIPMENT,OAK PARK,Supplies & Services,Revenue
Walsall Council,http://opendatacommunities.org/id/metropolitan-district-council/walsall,WC92-172,31/05/2018,Adult Social Care,REDACTED,08/05/2018,"1,277.00",76422-DIRECT PAYMENTS TO SOCIAL SERVICES CLIENTS,OP PACKAGE/PLACEMENT COSTS,Transfer Payments,Revenue
Walsall Council,http://opendatacommunities.org/id/metropolitan-district-council/walsall,WC92-173,31/05/2018,Adult Social Care,REDACTED,08/05/2018,786.80,76422-DIRECT PAYMENTS TO SOCIAL SERVICES CLIENTS,OP PACKAGE/PLACEMENT COSTS,Transfer Payments,Revenue
Walsall Council,http://opendatacommunities.org/id/metropolitan-district-council/walsall,WC92-174,31/05/2018,Childrens,ALBRIGHTON CARE LTD,18/05/2018,"9,980.00",74036-EXTERNAL RESIDENTIAL CARE-OTH AGENCY PROVISION,INDEPENDENT RESIDENTIAL HOMES,Third Party Payments,Revenue
Walsall Council,http://opendatacommunities.org/id/metropolitan-district-council/walsall,WC92-175,31/05/2018,Childrens,ALBRIGHTON CARE LTD,18/05/2018,"15,000.00",74036-EXTERNAL RESIDENTIAL CARE-OTH AGENCY PROVISION,INDEPENDENT RESIDENTIAL HOMES,Third Party Payments,Revenue
Walsall Council,http://opendatacommunities.org/id/metropolitan-district-council/walsall,WC92-176,31/05/2018,Economy & Environment,ALDERBROOK HEALTHCARE LTD,01/05/2018,"1,931.10",63000-PROFESSIONAL FEES AND SERVICES,CORONERS SERVICE,Supplies & Services,Revenue
Walsall Council,http://opendatacommunities.org/id/metropolitan-district-council/walsall,WC92-177,31/05/2018,Economy & Environment,ALDERBROOK HEALTHCARE LTD,17/05/2018,"2,036.50",63000-PROFESSIONAL FEES AND SERVICES,CORONERS SERVICE,Supplies & Services,Revenue
Walsall Council,http://opendatacommunities.org/id/metropolitan-district-council/walsall,WC92-178,31/05/2018,Economy & Environment,ALDERBROOK HEALTHCARE LTD,17/05/2018,"3,233.70",63000-PROFESSIONAL FEES AND SERVICES,CORONERS SERVICE,Supplies & Services,Revenue
Walsall Council,http://opendatacommunities.org/id/metropolitan-district-council/walsall,WC92-179,31/05/2018,Adult Social Care,ALDERGROVE MANOR LTD,22/05/2018,"2,039.68",73373-RESIDENTIAL & NURSING CARE PLACEMENTS,OP PACKAGE/PLACEMENT COSTS,Third Party Payments,Revenue
Walsall Council,http://opendatacommunities.org/id/metropolitan-district-council/walsall,WC92-180,31/05/2018,Childrens,ALDRIDGE & BARONS LIMITED,25/05/2018,"7,263.30",52000-WITH DRIVER-HIRE OF VEHICLES,HOME TO SCHOOL TRANSPORT,Transport,Revenue
Walsall Council,http://opendatacommunities.org/id/metropolitan-district-council/walsall,WC92-181,31/05/2018,Childrens,ALDRIDGE & BARONS LIMITED,25/05/2018,"7,518.61",52000-WITH DRIVER-HIRE OF VEHICLES,HOME TO SCHOOL TRANSPORT,Transport,Revenue
Walsall Council,http://opendatacommunities.org/id/metropolitan-district-council/walsall,WC92-182,31/05/2018,Resources and Transformation,ALDRIDGE METHODIST CHURCH 001,16/05/2018,300.00,63128-HIRE OF ROOM-SERVICES-FEES,ELECTORAL ADMINISTRATION,Supplies & Services,Revenue
Walsall Council,http://opendatacommunities.org/id/metropolitan-district-council/walsall,WC92-183,31/05/2018,Economy & Environment,ALDRIDGE SHED,10/05/2018,625.00,63253-PAYMENT TO CONTRACTOR,MENTAL HEALTH,Third Party Payments,Revenue
Walsall Council,http://opendatacommunities.org/id/metropolitan-district-council/walsall,WC92-184,31/05/2018,Adult Social Care,ALEXANDRA HOUSE CARE SERVICES LTD T/A STONEBRIDGE NURSING HOME,08/05/2018,"7,117.44",73373-RESIDENTIAL & NURSING CARE PLACEMENTS,LD PACKAGE/PLACEMENT COSTS,Third Party Payments,Revenue
Walsall Council,http://opendatacommunities.org/id/metropolitan-district-council/walsall,WC92-185,31/05/2018,Adult Social Care,REDACTED,08/05/2018,"1,771.28",76422-DIRECT PAYMENTS TO SOCIAL SERVICES CLIENTS,OP PACKAGE/PLACEMENT COSTS,Transfer Payments,Revenue
Walsall Council,http://opendatacommunities.org/id/metropolitan-district-council/walsall,WC92-186,31/05/2018,Childrens,REDACTED,08/05/2018,288.00,76422-DIRECT PAYMENTS TO SOCIAL SERVICES CLIENTS,FAMILY SUPPORT - DIRECT PAYMENTS,Transfer Payments,Revenue
Walsall Council,http://opendatacommunities.org/id/metropolitan-district-council/walsall,WC92-187,31/05/2018,Adult Social Care,REDACTED,08/05/2018,"1,003.60",76422-DIRECT PAYMENTS TO SOCIAL SERVICES CLIENTS,PD PACKAGE/PLACEMENT COSTS,Transfer Payments,Revenue
Walsall Council,http://opendatacommunities.org/id/metropolitan-district-council/walsall,WC92-188,31/05/2018,Adult Social Care,REDACTED,14/05/2018,"1,301.64",73372-DOMICILIARY CARE,LD PACKAGE/PLACEMENT COSTS,Third Party Payments,Revenue
Walsall Council,http://opendatacommunities.org/id/metropolitan-district-council/walsall,WC92-189,31/05/2018,Childrens,ALLSORTS OFFICE SUPPLIES LTD,30/05/2018,106.60,60000-FURNITURE & EQUIPMENT,CHILDREN'S ADMIN,Supplies & Services,Revenue
Walsall Council,http://opendatacommunities.org/id/metropolitan-district-council/walsall,WC92-190,31/05/2018,Economy & Environment,ALLSORTS OFFICE SUPPLIES LTD,30/05/2018,213.20,60000-FURNITURE & EQUIPMENT,PRIVATE HIRE VEHICLES / HACKNEY CARRIAGES,Supplies & Services,Revenue
Walsall Council,http://opendatacommunities.org/id/metropolitan-district-council/walsall,WC92-191,31/05/2018,Childrens,ALLSORTS OFFICE SUPPLIES LTD,30/05/2018,213.20,60000-FURNITURE & EQUIPMENT,GENERAL MANAGEMENT SUPPORT (INC LEGAL),Supplies & Services,Revenue
Walsall Council,http://opendatacommunities.org/id/metropolitan-district-council/walsall,WC92-192,31/05/2018,Childrens,ALLSORTS OFFICE SUPPLIES LTD,30/05/2018,213.20,60000-FURNITURE & EQUIPMENT,EARLY HELP MANAGEMENT TEAM,Supplies & Services,Revenue
Walsall Council,http://opendatacommunities.org/id/metropolitan-district-council/walsall,WC92-193,31/05/2018,Childrens,ALLSORTS OFFICE SUPPLIES LTD,30/05/2018,319.80,60000-FURNITURE & EQUIPMENT,LOCALITY FAMILY SUPPORT-NORTH,Supplies & Services,Revenue
Walsall Council,http://opendatacommunities.org/id/metropolitan-district-council/walsall,WC92-194,31/05/2018,Resources and Transformation,ALLSORTS OFFICE SUPPLIES LTD,21/05/2018,"1,340.00",63800-COMPUTER EQUIPMENT AND SUPPLIES,RECHARGEABLE EQUIPMENT,Supplies & Services,Revenue
Walsall Council,http://opendatacommunities.org/id/metropolitan-district-council/walsall,WC92-195,31/05/2018,Resources and Transformation,ALLSORTS OFFICE SUPPLIES LTD,21/05/2018,"1,340.00",63800-COMPUTER EQUIPMENT AND SUPPLIES,RECHARGEABLE EQUIPMENT,Supplies & Services,Revenue
Walsall Council,http://opendatacommunities.org/id/metropolitan-district-council/walsall,WC92-196,31/05/2018,Resources and Transformation,ALLSORTS OFFICE SUPPLIES LTD,01/05/2018,"2,680.00",63800-COMPUTER EQUIPMENT AND SUPPLIES,RECHARGEABLE EQUIPMENT,Supplies & Services,Revenue
Walsall Council,http://opendatacommunities.org/id/metropolitan-district-council/walsall,WC92-197,31/05/2018,Adult Social Care,ALMA COURT,10/05/2018,"2,700.00",73372-DOMICILIARY CARE,OP PACKAGE/PLACEMENT COSTS,Third Party Payments,Revenue
Walsall Council,http://opendatacommunities.org/id/metropolitan-district-council/walsall,WC92-198,31/05/2018,Childrens,ALMOZENE NURSERY & CHILDRENS CENTRE,31/05/2018,"1,839.24",66505-OTHER-GRANTS TO OTHER ORGS,EARLY YEARS - 2 YR OLDS,Third Party Payments,Revenue
Walsall Council,http://opendatacommunities.org/id/metropolitan-district-council/walsall,WC92-199,31/05/2018,Adult Social Care,ALPHA HEALTH CARE LTD,01/05/2018,"-1,650.00",73373-RESIDENTIAL & NURSING CARE PLACEMENTS,OP PACKAGE/PLACEMENT COSTS,Third Party Payments,Revenue
Walsall Council,http://opendatacommunities.org/id/metropolitan-district-council/walsall,WC92-200,31/05/2018,Adult Social Care,ALPHA HEALTH CARE LTD,16/05/2018,"1,265.85",73373-RESIDENTIAL & NURSING CARE PLACEMENTS,OP PACKAGE/PLACEMENT COSTS,Third Party Payments,Revenue
Walsall Council,http://opendatacommunities.org/id/metropolitan-district-council/walsall,WC92-201,31/05/2018,Adult Social Care,ALPHA HEALTH CARE LTD,16/05/2018,"1,688.84",73373-RESIDENTIAL & NURSING CARE PLACEMENTS,OP PACKAGE/PLACEMENT COSTS,Third Party Payments,Revenue
Walsall Council,http://opendatacommunities.org/id/metropolitan-district-council/walsall,WC92-202,31/05/2018,Adult Social Care,ALPHA HEALTH CARE LTD,16/05/2018,"1,688.84",73373-RESIDENTIAL & NURSING CARE PLACEMENTS,OP PACKAGE/PLACEMENT COSTS,Third Party Payments,Revenue
Walsall Council,http://opendatacommunities.org/id/metropolitan-district-council/walsall,WC92-203,31/05/2018,Adult Social Care,ALPHA HEALTH CARE LTD,16/05/2018,"1,876.52",73373-RESIDENTIAL & NURSING CARE PLACEMENTS,OP PACKAGE/PLACEMENT COSTS,Third Party Payments,Revenue
Walsall Council,http://opendatacommunities.org/id/metropolitan-district-council/walsall,WC92-204,31/05/2018,Adult Social Care,ALPHA HEALTH CARE LTD,22/05/2018,"2,039.68",73373-RESIDENTIAL & NURSING CARE PLACEMENTS,OP PACKAGE/PLACEMENT COSTS,Third Party Payments,Revenue
Walsall Council,http://opendatacommunities.org/id/metropolitan-district-council/walsall,WC92-205,31/05/2018,Adult Social Care,ALPHA HEALTH CARE LTD,22/05/2018,"2,160.00",73373-RESIDENTIAL & NURSING CARE PLACEMENTS,OP PACKAGE/PLACEMENT COSTS,Third Party Payments,Revenue
Walsall Council,http://opendatacommunities.org/id/metropolitan-district-council/walsall,WC92-206,31/05/2018,Adult Social Care,ALPHA HEALTH CARE LTD,16/05/2018,"2,243.64",73373-RESIDENTIAL & NURSING CARE PLACEMENTS,OP PACKAGE/PLACEMENT COSTS,Third Party Payments,Revenue
Walsall Council,http://opendatacommunities.org/id/metropolitan-district-council/walsall,WC92-207,31/05/2018,Adult Social Care,ALPHA HEALTH CARE LTD,16/05/2018,"2,243.64",73373-RESIDENTIAL & NURSING CARE PLACEMENTS,MENTAL HEALTH PACKAGE/PLACEMENT COSTS,Third Party Payments,Revenue
Walsall Council,http://opendatacommunities.org/id/metropolitan-district-council/walsall,WC92-208,31/05/2018,Adult Social Care,ALPHA HEALTH CARE LTD,22/05/2018,"2,243.64",73373-RESIDENTIAL & NURSING CARE PLACEMENTS,OP PACKAGE/PLACEMENT COSTS,Third Party Payments,Revenue
Walsall Council,http://opendatacommunities.org/id/metropolitan-district-council/walsall,WC92-209,31/05/2018,Adult Social Care,ALPHA HEALTH CARE LTD,22/05/2018,"2,243.64",73373-RESIDENTIAL & NURSING CARE PLACEMENTS,OP PACKAGE/PLACEMENT COSTS,Third Party Payments,Revenue
Walsall Council,http://opendatacommunities.org/id/metropolitan-district-council/walsall,WC92-210,31/05/2018,Adult Social Care,ALPHA HEALTH CARE LTD,22/05/2018,"2,326.00",73373-RESIDENTIAL & NURSING CARE PLACEMENTS,MENTAL HEALTH PACKAGE/PLACEMENT COSTS,Third Party Payments,Revenue
Walsall Council,http://opendatacommunities.org/id/metropolitan-district-council/walsall,WC92-211,31/05/2018,Adult Social Care,ALPHA HEALTH CARE LTD,01/05/2018,"2,357.15",73373-RESIDENTIAL & NURSING CARE PLACEMENTS,OP PACKAGE/PLACEMENT COSTS,Third Party Payments,Revenue
Walsall Council,http://opendatacommunities.org/id/metropolitan-district-council/walsall,WC92-212,31/05/2018,Adult Social Care,ALPHA HEALTH CARE LTD,22/05/2018,"2,379.80",73373-RESIDENTIAL & NURSING CARE PLACEMENTS,OP PACKAGE/PLACEMENT COSTS,Third Party Payments,Revenue
Walsall Council,http://opendatacommunities.org/id/metropolitan-district-council/walsall,WC92-213,31/05/2018,Adult Social Care,ALPHA HEALTH CARE LTD,29/05/2018,"2,484.88",73373-RESIDENTIAL & NURSING CARE PLACEMENTS,OP PACKAGE/PLACEMENT COSTS,Third Party Payments,Revenue
Walsall Council,http://opendatacommunities.org/id/metropolitan-district-council/walsall,WC92-214,31/05/2018,Adult Social Care,ALPHA HEALTH CARE LTD,29/05/2018,"2,517.86",73373-RESIDENTIAL & NURSING CARE PLACEMENTS,OP PACKAGE/PLACEMENT COSTS,Third Party Payments,Revenue
Walsall Council,http://opendatacommunities.org/id/metropolitan-district-council/walsall,WC92-215,31/05/2018,Adult Social Care,ALPHA HEALTH CARE LTD,22/05/2018,"2,688.84",73373-RESIDENTIAL & NURSING CARE PLACEMENTS,OP PACKAGE/PLACEMENT COSTS,Third Party Payments,Revenue
Walsall Council,http://opendatacommunities.org/id/metropolitan-district-council/walsall,WC92-216,31/05/2018,Adult Social Care,ALPHA HEALTH CARE LTD,22/05/2018,"2,820.00",73373-RESIDENTIAL & NURSING CARE PLACEMENTS,OP PACKAGE/PLACEMENT COSTS,Third Party Payments,Revenue
Walsall Council,http://opendatacommunities.org/id/metropolitan-district-council/walsall,WC92-217,31/05/2018,Adult Social Care,ALPHA HEALTH CARE LTD,22/05/2018,"2,820.00",73373-RESIDENTIAL & NURSING CARE PLACEMENTS,OP PACKAGE/PLACEMENT COSTS,Third Party Payments,Revenue
Walsall Council,http://opendatacommunities.org/id/metropolitan-district-council/walsall,WC92-218,31/05/2018,Adult Social Care,ALPHA HEALTH CARE LTD,22/05/2018,"2,820.00",73373-RESIDENTIAL & NURSING CARE PLACEMENTS,OP PACKAGE/PLACEMENT COSTS,Third Party Payments,Revenue
Walsall Council,http://opendatacommunities.org/id/metropolitan-district-council/walsall,WC92-219,31/05/2018,Adult Social Care,ALPHA HEALTH CARE LTD,22/05/2018,"2,820.00",73373-RESIDENTIAL & NURSING CARE PLACEMENTS,OP PACKAGE/PLACEMENT COSTS,Third Party Payments,Revenue
Walsall Council,http://opendatacommunities.org/id/metropolitan-district-council/walsall,WC92-220,31/05/2018,Adult Social Care,ALPHA HEALTH CARE LTD,29/05/2018,"2,823.44",73373-RESIDENTIAL & NURSING CARE PLACEMENTS,OP PACKAGE/PLACEMENT COSTS,Third Party Payments,Revenue
Walsall Council,http://opendatacommunities.org/id/metropolitan-district-council/walsall,WC92-221,31/05/2018,Adult Social Care,ALPHA HEALTH CARE LTD,22/05/2018,"3,424.29",73373-RESIDENTIAL & NURSING CARE PLACEMENTS,OP PACKAGE/PLACEMENT COSTS,Third Party Payments,Revenue
Walsall Council,http://opendatacommunities.org/id/metropolitan-district-council/walsall,WC92-222,31/05/2018,Adult Social Care,ALPHA HEALTH CARE LTD,16/05/2018,"5,063.42",73373-RESIDENTIAL & NURSING CARE PLACEMENTS,OP PACKAGE/PLACEMENT COSTS,Third Party Payments,Revenue
Walsall Council,http://opendatacommunities.org/id/metropolitan-district-council/walsall,WC92-223,31/05/2018,Adult Social Care,ALPHA HEALTH CARE LTD,22/05/2018,"5,440.28",73373-RESIDENTIAL & NURSING CARE PLACEMENTS,MENTAL HEALTH PACKAGE/PLACEMENT COSTS,Third Party Payments,Revenue
Walsall Council,http://opendatacommunities.org/id/metropolitan-district-council/walsall,WC92-224,31/05/2018,Adult Social Care,ALPHA HEALTH CARE LTD,16/05/2018,"6,329.27",73373-RESIDENTIAL & NURSING CARE PLACEMENTS,OP PACKAGE/PLACEMENT COSTS,Third Party Payments,Revenue
Walsall Council,http://opendatacommunities.org/id/metropolitan-district-council/walsall,WC92-225,31/05/2018,Childrens,ALPHABIOLABS,02/05/2018,223.75,73014-LEGAL FEES-PRIV CONTRACTOR FEES,GENERAL MANAGEMENT SUPPORT (INC LEGAL),Third Party Payments,Revenue
Walsall Council,http://opendatacommunities.org/id/metropolitan-district-council/walsall,WC92-226,31/05/2018,Childrens,ALPHABIOLABS,25/05/2018,292.50,73014-LEGAL FEES-PRIV CONTRACTOR FEES,GENERAL MANAGEMENT SUPPORT (INC LEGAL),Third Party Payments,Revenue
Walsall Council,http://opendatacommunities.org/id/metropolitan-district-council/walsall,WC92-227,31/05/2018,Childrens,ALPHABIOLABS,23/05/2018,584.00,63102-CONSULTANTS FEES - CORPORATE,SAFEGUARDING & FAMILY SUPPORT,Supplies & Services,Revenue
Walsall Council,http://opendatacommunities.org/id/metropolitan-district-council/walsall,WC92-228,31/05/2018,Childrens,REDACTED,08/05/2018,318.08,74510-RESIDENTS ORDERS,ADOPTION ALLOWANCES,Third Party Payments,Revenue
Walsall Council,http://opendatacommunities.org/id/metropolitan-district-council/walsall,WC92-229,31/05/2018,Childrens,REDACTED,08/05/2018,318.08,74510-RESIDENTS ORDERS,ADOPTION ALLOWANCES,Third Party Payments,Revenue
Walsall Council,http://opendatacommunities.org/id/metropolitan-district-council/walsall,WC92-230,31/05/2018,Childrens,REDACTED,08/05/2018,808.04,74009-ADOPTION ALLOWANCE,ADOPTION ALLOWANCES,Transfer Payments,Revenue
Walsall Council,http://opendatacommunities.org/id/metropolitan-district-council/walsall,WC92-231,31/05/2018,Childrens,REDACTED,18/05/2018,109.59,74506-TRAVEL-FOSTER CARERS,INTERNAL FOSTER CARE PROVISION,Transfer Payments,Revenue
Walsall Council,http://opendatacommunities.org/id/metropolitan-district-council/walsall,WC92-232,31/05/2018,Childrens,REDACTED,18/05/2018,300.00,74504-HOLIDAY/CHRISTMAS ALLOWANCE-FOSTER CARERS,INTERNAL FOSTER CARE PROVISION,Transfer Payments,Revenue
Walsall Council,http://opendatacommunities.org/id/metropolitan-district-council/walsall,WC92-233,31/05/2018,Childrens,REDACTED,18/05/2018,600.00,74501-MAINTENANCE ALLOWANCE-FOSTER CARERS,INTERNAL FOSTER CARE PROVISION,Transfer Payments,Revenue
Walsall Council,http://opendatacommunities.org/id/metropolitan-district-council/walsall,WC92-234,31/05/2018,Childrens,REDACTED,18/05/2018,800.00,74508-INTERNAL FOSTER CARERS-CARER FEES,INTERNAL FOSTER CARE PROVISION,Transfer Payments,Revenue
Walsall Council,http://opendatacommunities.org/id/metropolitan-district-council/walsall,WC92-235,31/05/2018,Adult Social Care,REDACTED,08/05/2018,897.60,76422-DIRECT PAYMENTS TO SOCIAL SERVICES CLIENTS,LD PACKAGE/PLACEMENT COSTS,Transfer Payments,Revenue
Walsall Council,http://opendatacommunities.org/id/metropolitan-district-council/walsall,WC92-236,31/05/2018,Resources and Transformation,AMEY LG LIMITED,16/05/2018,429.06,62515-MISCELLANEOUS SUPPLIES,CCTV,Supplies & Services,Revenue
Walsall Council,http://opendatacommunities.org/id/metropolitan-district-council/walsall,WC92-237,31/05/2018,Economy & Environment,AMEY LG LIMITED,14/05/2018,610.63,73002-SECURITY-PRIV CONTRACTOR FEES,TRAFFIC CONTROL,Third Party Payments,Revenue
Walsall Council,http://opendatacommunities.org/id/metropolitan-district-council/walsall,WC92-238,31/05/2018,Resources and Transformation,AMEY LG LIMITED,21/05/2018,"1,220.40",62515-MISCELLANEOUS SUPPLIES,CCTV,Supplies & Services,Revenue
Walsall Council,http://opendatacommunities.org/id/metropolitan-district-council/walsall,WC92-239,31/05/2018,Economy & Environment,AMEY LG LIMITED,03/05/2018,"10,758.18",73025-PROFESSIONAL SERVICES-PRIV CONTRACTOR & OTHER AGENCIES,TRAFFIC MANAGEMENT,Third Party Payments,Revenue
Walsall Council,http://opendatacommunities.org/id/metropolitan-district-council/walsall,WC92-240,31/05/2018,Adult Social Care,AMG NURSING CARE SERVICES,21/05/2018,-892.64,73374-SUPPORTED & OTHER ACCOMMODATION,OP PACKAGE/PLACEMENT COSTS,Third Party Payments,Revenue
Walsall Council,http://opendatacommunities.org/id/metropolitan-district-council/walsall,WC92-241,31/05/2018,Childrens,AMG NURSING CARE SERVICES,09/05/2018,"2,274.48",63000-PROFESSIONAL FEES AND SERVICES,DIRECTLY COMMISSIONED NURSING SERVICES,Supplies & Services,Revenue
Walsall Council,http://opendatacommunities.org/id/metropolitan-district-council/walsall,WC92-242,31/05/2018,Childrens,AMG NURSING CARE SERVICES,16/05/2018,"2,274.48",63000-PROFESSIONAL FEES AND SERVICES,DIRECTLY COMMISSIONED NURSING SERVICES,Supplies & Services,Revenue
Walsall Council,http://opendatacommunities.org/id/metropolitan-district-council/walsall,WC92-243,31/05/2018,Childrens,AMG NURSING CARE SERVICES,30/05/2018,"2,315.68",63000-PROFESSIONAL FEES AND SERVICES,DIRECTLY COMMISSIONED NURSING SERVICES,Supplies & Services,Revenue
Walsall Council,http://opendatacommunities.org/id/metropolitan-district-council/walsall,WC92-244,31/05/2018,Adult Social Care,AMG NURSING CARE SERVICES,10/05/2018,"3,614.00",73372-DOMICILIARY CARE,PD PACKAGE/PLACEMENT COSTS,Third Party Payments,Revenue
Walsall Council,http://opendatacommunities.org/id/metropolitan-district-council/walsall,WC92-245,31/05/2018,Adult Social Care,AMG NURSING CARE SERVICES,23/05/2018,"3,640.00",73372-DOMICILIARY CARE,PD PACKAGE/PLACEMENT COSTS,Third Party Payments,Revenue
Walsall Council,http://opendatacommunities.org/id/metropolitan-district-council/walsall,WC92-246,31/05/2018,Adult Social Care,AMG NURSING CARE SERVICES,10/05/2018,"10,677.14",73372-DOMICILIARY CARE,OP PACKAGE/PLACEMENT COSTS,Third Party Payments,Revenue
Walsall Council,http://opendatacommunities.org/id/metropolitan-district-council/walsall,WC92-247,31/05/2018,Adult Social Care,AMG NURSING CARE SERVICES,24/05/2018,"10,706.35",73372-DOMICILIARY CARE,OP PACKAGE/PLACEMENT COSTS,Third Party Payments,Revenue
Walsall Council,http://opendatacommunities.org/id/metropolitan-district-council/walsall,WC92-248,31/05/2018,Adult Social Care,AMG NURSING CARE SERVICES,01/05/2018,"11,604.32",73372-DOMICILIARY CARE,OP PACKAGE/PLACEMENT COSTS,Third Party Payments,Revenue
Walsall Council,http://opendatacommunities.org/id/metropolitan-district-council/walsall,WC92-249,31/05/2018,Childrens,REDACTED,08/05/2018,340.00,74508-INTERNAL FOSTER CARERS-CARER FEES,FAMILY & FRIENDS FOSTER CARE PROVISION,Transfer Payments,Revenue
Walsall Council,http://opendatacommunities.org/id/metropolitan-district-council/walsall,WC92-250,31/05/2018,Childrens,REDACTED,08/05/2018,600.00,74501-MAINTENANCE ALLOWANCE-FOSTER CARERS,FAMILY & FRIENDS FOSTER CARE PROVISION,Transfer Payments,Revenue
Walsall Council,http://opendatacommunities.org/id/metropolitan-district-council/walsall,WC92-251,31/05/2018,Childrens,REDACTED,08/05/2018,425.08,74510-RESIDENTS ORDERS,ADOPTION ALLOWANCES,Third Party Payments,Revenue
Walsall Council,http://opendatacommunities.org/id/metropolitan-district-council/walsall,WC92-252,31/05/2018,Adult Social Care,ANCHOR,08/05/2018,"-2,628.57",73373-RESIDENTIAL & NURSING CARE PLACEMENTS,OP PACKAGE/PLACEMENT COSTS,Third Party Payments,Revenue
Walsall Council,http://opendatacommunities.org/id/metropolitan-district-council/walsall,WC92-253,31/05/2018,Adult Social Care,ANCHOR,01/05/2018,"-2,431.43",73373-RESIDENTIAL & NURSING CARE PLACEMENTS,OP PACKAGE/PLACEMENT COSTS,Third Party Payments,Revenue
Walsall Council,http://opendatacommunities.org/id/metropolitan-district-council/walsall,WC92-254,31/05/2018,Adult Social Care,ANCHOR,01/05/2018,-788.57,73373-RESIDENTIAL & NURSING CARE PLACEMENTS,MENTAL HEALTH PACKAGE/PLACEMENT COSTS,Third Party Payments,Revenue
Walsall Council,http://opendatacommunities.org/id/metropolitan-district-council/walsall,WC92-255,31/05/2018,Adult Social Care,ANCHOR,01/05/2018,262.86,73373-RESIDENTIAL & NURSING CARE PLACEMENTS,OP PACKAGE/PLACEMENT COSTS,Third Party Payments,Revenue
Walsall Council,http://opendatacommunities.org/id/metropolitan-district-council/walsall,WC92-256,31/05/2018,Adult Social Care,ANCHOR,01/05/2018,267.15,73373-RESIDENTIAL & NURSING CARE PLACEMENTS,OP PACKAGE/PLACEMENT COSTS,Third Party Payments,Revenue
Walsall Council,http://opendatacommunities.org/id/metropolitan-district-council/walsall,WC92-257,31/05/2018,Adult Social Care,ANCHOR,01/05/2018,394.29,73373-RESIDENTIAL & NURSING CARE PLACEMENTS,OP PACKAGE/PLACEMENT COSTS,Third Party Payments,Revenue
Walsall Council,http://opendatacommunities.org/id/metropolitan-district-council/walsall,WC92-258,31/05/2018,Adult Social Care,ANCHOR,01/05/2018,460.00,73373-RESIDENTIAL & NURSING CARE PLACEMENTS,OP PACKAGE/PLACEMENT COSTS,Third Party Payments,Revenue
Walsall Council,http://opendatacommunities.org/id/metropolitan-district-council/walsall,WC92-259,31/05/2018,Adult Social Care,ANCHOR,01/05/2018,460.00,73373-RESIDENTIAL & NURSING CARE PLACEMENTS,OP PACKAGE/PLACEMENT COSTS,Third Party Payments,Revenue
Walsall Council,http://opendatacommunities.org/id/metropolitan-district-council/walsall,WC92-260,31/05/2018,Adult Social Care,ANCHOR,01/05/2018,488.58,73373-RESIDENTIAL & NURSING CARE PLACEMENTS,OP PACKAGE/PLACEMENT COSTS,Third Party Payments,Revenue
Walsall Council,http://opendatacommunities.org/id/metropolitan-district-council/walsall,WC92-261,31/05/2018,Adult Social Care,ANCHOR,22/05/2018,504.00,73373-RESIDENTIAL & NURSING CARE PLACEMENTS,OP PACKAGE/PLACEMENT COSTS,Third Party Payments,Revenue
Walsall Council,http://opendatacommunities.org/id/metropolitan-district-council/walsall,WC92-262,31/05/2018,Adult Social Care,ANCHOR,01/05/2018,545.00,73373-RESIDENTIAL & NURSING CARE PLACEMENTS,OP PACKAGE/PLACEMENT COSTS,Third Party Payments,Revenue
Walsall Council,http://opendatacommunities.org/id/metropolitan-district-council/walsall,WC92-263,31/05/2018,Adult Social Care,ANCHOR,01/05/2018,657.14,73373-RESIDENTIAL & NURSING CARE PLACEMENTS,OP PACKAGE/PLACEMENT COSTS,Third Party Payments,Revenue
Walsall Council,http://opendatacommunities.org/id/metropolitan-district-council/walsall,WC92-264,31/05/2018,Adult Social Care,ANCHOR,01/05/2018,720.00,73373-RESIDENTIAL & NURSING CARE PLACEMENTS,OP PACKAGE/PLACEMENT COSTS,Third Party Payments,Revenue
Walsall Council,http://opendatacommunities.org/id/metropolitan-district-council/walsall,WC92-265,31/05/2018,Adult Social Care,ANCHOR,01/05/2018,788.57,73373-RESIDENTIAL & NURSING CARE PLACEMENTS,OP PACKAGE/PLACEMENT COSTS,Third Party Payments,Revenue
Walsall Council,http://opendatacommunities.org/id/metropolitan-district-council/walsall,WC92-266,31/05/2018,Adult Social Care,ANCHOR,01/05/2018,788.57,73373-RESIDENTIAL & NURSING CARE PLACEMENTS,OP PACKAGE/PLACEMENT COSTS,Third Party Payments,Revenue
Walsall Council,http://opendatacommunities.org/id/metropolitan-district-council/walsall,WC92-267,31/05/2018,Adult Social Care,ANCHOR,01/05/2018,854.29,73373-RESIDENTIAL & NURSING CARE PLACEMENTS,OP PACKAGE/PLACEMENT COSTS,Third Party Payments,Revenue
Walsall Council,http://opendatacommunities.org/id/metropolitan-district-council/walsall,WC92-268,31/05/2018,Adult Social Care,ANCHOR,01/05/2018,936.00,73373-RESIDENTIAL & NURSING CARE PLACEMENTS,OP PACKAGE/PLACEMENT COSTS,Third Party Payments,Revenue
Walsall Council,http://opendatacommunities.org/id/metropolitan-district-council/walsall,WC92-269,31/05/2018,Adult Social Care,ANCHOR,01/05/2018,985.71,73373-RESIDENTIAL & NURSING CARE PLACEMENTS,OP PACKAGE/PLACEMENT COSTS,Third Party Payments,Revenue
Walsall Council,http://opendatacommunities.org/id/metropolitan-district-council/walsall,WC92-270,31/05/2018,Adult Social Care,ANCHOR,01/05/2018,"1,012.14",73373-RESIDENTIAL & NURSING CARE PLACEMENTS,OP PACKAGE/PLACEMENT COSTS,Third Party Payments,Revenue
Walsall Council,http://opendatacommunities.org/id/metropolitan-district-council/walsall,WC92-271,31/05/2018,Adult Social Care,ANCHOR,01/05/2018,"1,012.14",73373-RESIDENTIAL & NURSING CARE PLACEMENTS,OP PACKAGE/PLACEMENT COSTS,Third Party Payments,Revenue
Walsall Council,http://opendatacommunities.org/id/metropolitan-district-council/walsall,WC92-272,31/05/2018,Adult Social Care,ANCHOR,01/05/2018,"1,080.00",73373-RESIDENTIAL & NURSING CARE PLACEMENTS,OP PACKAGE/PLACEMENT COSTS,Third Party Payments,Revenue
Walsall Council,http://opendatacommunities.org/id/metropolitan-district-council/walsall,WC92-273,31/05/2018,Adult Social Care,ANCHOR,01/05/2018,"1,090.00",73373-RESIDENTIAL & NURSING CARE PLACEMENTS,OP PACKAGE/PLACEMENT COSTS,Third Party Payments,Revenue
Walsall Council,http://opendatacommunities.org/id/metropolitan-district-council/walsall,WC92-274,31/05/2018,Adult Social Care,ANCHOR,01/05/2018,"1,167.86",73373-RESIDENTIAL & NURSING CARE PLACEMENTS,OP PACKAGE/PLACEMENT COSTS,Third Party Payments,Revenue
Walsall Council,http://opendatacommunities.org/id/metropolitan-district-council/walsall,WC92-275,31/05/2018,Adult Social Care,ANCHOR,01/05/2018,"1,167.86",73373-RESIDENTIAL & NURSING CARE PLACEMENTS,OP PACKAGE/PLACEMENT COSTS,Third Party Payments,Revenue
Walsall Council,http://opendatacommunities.org/id/metropolitan-district-council/walsall,WC92-276,31/05/2018,Adult Social Care,ANCHOR,01/05/2018,"1,445.71",73373-RESIDENTIAL & NURSING CARE PLACEMENTS,OP PACKAGE/PLACEMENT COSTS,Third Party Payments,Revenue
Walsall Council,http://opendatacommunities.org/id/metropolitan-district-council/walsall,WC92-277,31/05/2018,Adult Social Care,ANCHOR,08/05/2018,"1,656.00",73373-RESIDENTIAL & NURSING CARE PLACEMENTS,OP PACKAGE/PLACEMENT COSTS,Third Party Payments,Revenue
Walsall Council,http://opendatacommunities.org/id/metropolitan-district-council/walsall,WC92-278,31/05/2018,Adult Social Care,ANCHOR,08/05/2018,"1,656.00",73373-RESIDENTIAL & NURSING CARE PLACEMENTS,OP PACKAGE/PLACEMENT COSTS,Third Party Payments,Revenue
Walsall Council,http://opendatacommunities.org/id/metropolitan-district-council/walsall,WC92-279,31/05/2018,Adult Social Care,ANCHOR,01/05/2018,"1,774.29",73373-RESIDENTIAL & NURSING CARE PLACEMENTS,OP PACKAGE/PLACEMENT COSTS,Third Party Payments,Revenue
Walsall Council,http://opendatacommunities.org/id/metropolitan-district-council/walsall,WC92-280,31/05/2018,Adult Social Care,ANCHOR,22/05/2018,"1,816.00",73373-RESIDENTIAL & NURSING CARE PLACEMENTS,OP PACKAGE/PLACEMENT COSTS,Third Party Payments,Revenue
Walsall Council,http://opendatacommunities.org/id/metropolitan-district-council/walsall,WC92-281,31/05/2018,Adult Social Care,ANCHOR,01/05/2018,"1,840.00",73373-RESIDENTIAL & NURSING CARE PLACEMENTS,OP PACKAGE/PLACEMENT COSTS,Third Party Payments,Revenue
Walsall Council,http://opendatacommunities.org/id/metropolitan-district-council/walsall,WC92-282,31/05/2018,Adult Social Care,ANCHOR,01/05/2018,"1,840.00",73373-RESIDENTIAL & NURSING CARE PLACEMENTS,OP PACKAGE/PLACEMENT COSTS,Third Party Payments,Revenue
Walsall Council,http://opendatacommunities.org/id/metropolitan-district-council/walsall,WC92-283,31/05/2018,Adult Social Care,ANCHOR,01/05/2018,"1,840.00",73373-RESIDENTIAL & NURSING CARE PLACEMENTS,OP PACKAGE/PLACEMENT COSTS,Third Party Payments,Revenue
Walsall Council,http://opendatacommunities.org/id/metropolitan-district-council/walsall,WC92-284,31/05/2018,Adult Social Care,ANCHOR,01/05/2018,"1,840.00",73373-RESIDENTIAL & NURSING CARE PLACEMENTS,OP PACKAGE/PLACEMENT COSTS,Third Party Payments,Revenue
Walsall Council,http://opendatacommunities.org/id/metropolitan-district-council/walsall,WC92-285,31/05/2018,Adult Social Care,ANCHOR,08/05/2018,"1,840.00",73373-RESIDENTIAL & NURSING CARE PLACEMENTS,OP PACKAGE/PLACEMENT COSTS,Third Party Payments,Revenue
Walsall Council,http://opendatacommunities.org/id/metropolitan-district-council/walsall,WC92-286,31/05/2018,Adult Social Care,ANCHOR,08/05/2018,"1,840.00",73373-RESIDENTIAL & NURSING CARE PLACEMENTS,OP PACKAGE/PLACEMENT COSTS,Third Party Payments,Revenue
Walsall Council,http://opendatacommunities.org/id/metropolitan-district-council/walsall,WC92-287,31/05/2018,Adult Social Care,ANCHOR,08/05/2018,"1,840.00",73373-RESIDENTIAL & NURSING CARE PLACEMENTS,OP PACKAGE/PLACEMENT COSTS,Third Party Payments,Revenue
Walsall Council,http://opendatacommunities.org/id/metropolitan-district-council/walsall,WC92-288,31/05/2018,Adult Social Care,ANCHOR,08/05/2018,"1,840.00",73373-RESIDENTIAL & NURSING CARE PLACEMENTS,OP PACKAGE/PLACEMENT COSTS,Third Party Payments,Revenue
Walsall Council,http://opendatacommunities.org/id/metropolitan-district-council/walsall,WC92-289,31/05/2018,Adult Social Care,ANCHOR,08/05/2018,"1,840.00",73373-RESIDENTIAL & NURSING CARE PLACEMENTS,OP PACKAGE/PLACEMENT COSTS,Third Party Payments,Revenue
Walsall Council,http://opendatacommunities.org/id/metropolitan-district-council/walsall,WC92-290,31/05/2018,Adult Social Care,ANCHOR,08/05/2018,"1,840.00",73373-RESIDENTIAL & NURSING CARE PLACEMENTS,OP PACKAGE/PLACEMENT COSTS,Third Party Payments,Revenue
Walsall Council,http://opendatacommunities.org/id/metropolitan-district-council/walsall,WC92-291,31/05/2018,Adult Social Care,ANCHOR,22/05/2018,"1,840.00",73373-RESIDENTIAL & NURSING CARE PLACEMENTS,OP PACKAGE/PLACEMENT COSTS,Third Party Payments,Revenue
Walsall Council,http://opendatacommunities.org/id/metropolitan-district-council/walsall,WC92-292,31/05/2018,Adult Social Care,ANCHOR,22/05/2018,"1,840.00",73373-RESIDENTIAL & NURSING CARE PLACEMENTS,OP PACKAGE/PLACEMENT COSTS,Third Party Payments,Revenue
Walsall Council,http://opendatacommunities.org/id/metropolitan-district-council/walsall,WC92-293,31/05/2018,Adult Social Care,ANCHOR,22/05/2018,"1,840.00",73373-RESIDENTIAL & NURSING CARE PLACEMENTS,OP PACKAGE/PLACEMENT COSTS,Third Party Payments,Revenue
Walsall Council,http://opendatacommunities.org/id/metropolitan-district-council/walsall,WC92-294,31/05/2018,Adult Social Care,ANCHOR,22/05/2018,"1,840.00",73373-RESIDENTIAL & NURSING CARE PLACEMENTS,OP PACKAGE/PLACEMENT COSTS,Third Party Payments,Revenue
Walsall Council,http://opendatacommunities.org/id/metropolitan-district-council/walsall,WC92-295,31/05/2018,Adult Social Care,ANCHOR,22/05/2018,"1,840.00",73373-RESIDENTIAL & NURSING CARE PLACEMENTS,OP PACKAGE/PLACEMENT COSTS,Third Party Payments,Revenue
Walsall Council,http://opendatacommunities.org/id/metropolitan-district-council/walsall,WC92-296,31/05/2018,Adult Social Care,ANCHOR,22/05/2018,"1,840.00",73373-RESIDENTIAL & NURSING CARE PLACEMENTS,OP PACKAGE/PLACEMENT COSTS,Third Party Payments,Revenue
Walsall Council,http://opendatacommunities.org/id/metropolitan-district-council/walsall,WC92-297,31/05/2018,Adult Social Care,ANCHOR,22/05/2018,"1,840.00",73373-RESIDENTIAL & NURSING CARE PLACEMENTS,MENTAL HEALTH PACKAGE/PLACEMENT COSTS,Third Party Payments,Revenue
Walsall Council,http://opendatacommunities.org/id/metropolitan-district-council/walsall,WC92-298,31/05/2018,Adult Social Care,ANCHOR,22/05/2018,"1,996.00",73373-RESIDENTIAL & NURSING CARE PLACEMENTS,OP PACKAGE/PLACEMENT COSTS,Third Party Payments,Revenue
Walsall Council,http://opendatacommunities.org/id/metropolitan-district-council/walsall,WC92-299,31/05/2018,Adult Social Care,ANCHOR,01/05/2018,"2,016.00",73373-RESIDENTIAL & NURSING CARE PLACEMENTS,OP PACKAGE/PLACEMENT COSTS,Third Party Payments,Revenue
Walsall Council,http://opendatacommunities.org/id/metropolitan-district-council/walsall,WC92-300,31/05/2018,Adult Social Care,ANCHOR,22/05/2018,"2,020.00",73373-RESIDENTIAL & NURSING CARE PLACEMENTS,OP PACKAGE/PLACEMENT COSTS,Third Party Payments,Revenue
Walsall Council,http://opendatacommunities.org/id/metropolitan-district-council/walsall,WC92-301,31/05/2018,Adult Social Care,ANCHOR,22/05/2018,"2,080.00",73373-RESIDENTIAL & NURSING CARE PLACEMENTS,MENTAL HEALTH PACKAGE/PLACEMENT COSTS,Third Party Payments,Revenue
Walsall Council,http://opendatacommunities.org/id/metropolitan-district-council/walsall,WC92-302,31/05/2018,Adult Social Care,ANCHOR,01/05/2018,"2,180.00",73373-RESIDENTIAL & NURSING CARE PLACEMENTS,OP PACKAGE/PLACEMENT COSTS,Third Party Payments,Revenue
Walsall Council,http://opendatacommunities.org/id/metropolitan-district-council/walsall,WC92-303,31/05/2018,Adult Social Care,ANCHOR,01/05/2018,"2,180.00",73373-RESIDENTIAL & NURSING CARE PLACEMENTS,OP PACKAGE/PLACEMENT COSTS,Third Party Payments,Revenue
Walsall Council,http://opendatacommunities.org/id/metropolitan-district-council/walsall,WC92-304,31/05/2018,Adult Social Care,ANCHOR,01/05/2018,"2,180.00",73373-RESIDENTIAL & NURSING CARE PLACEMENTS,OP PACKAGE/PLACEMENT COSTS,Third Party Payments,Revenue
Walsall Council,http://opendatacommunities.org/id/metropolitan-district-council/walsall,WC92-305,31/05/2018,Adult Social Care,ANCHOR,22/05/2018,"2,180.00",73373-RESIDENTIAL & NURSING CARE PLACEMENTS,OP PACKAGE/PLACEMENT COSTS,Third Party Payments,Revenue
Walsall Council,http://opendatacommunities.org/id/metropolitan-district-council/walsall,WC92-306,31/05/2018,Adult Social Care,ANCHOR,22/05/2018,"2,180.00",73373-RESIDENTIAL & NURSING CARE PLACEMENTS,OP PACKAGE/PLACEMENT COSTS,Third Party Payments,Revenue
Walsall Council,http://opendatacommunities.org/id/metropolitan-district-council/walsall,WC92-307,31/05/2018,Childrens,REDACTED,08/05/2018,314.44,74509-SPECIAL GUARDIANSHIP ORDERS,ADOPTION ALLOWANCES,Transfer Payments,Revenue
Walsall Council,http://opendatacommunities.org/id/metropolitan-district-council/walsall,WC92-308,31/05/2018,Childrens,REDACTED,18/05/2018,292.25,74506-TRAVEL-FOSTER CARERS,INTERNAL FOSTER CARE PROVISION,Transfer Payments,Revenue
Walsall Council,http://opendatacommunities.org/id/metropolitan-district-council/walsall,WC92-309,31/05/2018,Childrens,REDACTED,18/05/2018,720.00,74501-MAINTENANCE ALLOWANCE-FOSTER CARERS,INTERNAL FOSTER CARE PROVISION,Transfer Payments,Revenue
Walsall Council,http://opendatacommunities.org/id/metropolitan-district-council/walsall,WC92-310,31/05/2018,Childrens,REDACTED,18/05/2018,"1,000.00",74508-INTERNAL FOSTER CARERS-CARER FEES,INTERNAL FOSTER CARE PROVISION,Transfer Payments,Revenue
Walsall Council,http://opendatacommunities.org/id/metropolitan-district-council/walsall,WC92-311,31/05/2018,Adult Social Care,REDACTED,08/05/2018,"1,771.28",76422-DIRECT PAYMENTS TO SOCIAL SERVICES CLIENTS,OP PACKAGE/PLACEMENT COSTS,Transfer Payments,Revenue
Walsall Council,http://opendatacommunities.org/id/metropolitan-district-council/walsall,WC92-312,31/05/2018,Adult Social Care,ANGEL COURT RESIDENTIAL CARE HOME,16/05/2018,"1,774.28",73373-RESIDENTIAL & NURSING CARE PLACEMENTS,OP PACKAGE/PLACEMENT COSTS,Third Party Payments,Revenue
Walsall Council,http://opendatacommunities.org/id/metropolitan-district-council/walsall,WC92-313,31/05/2018,Adult Social Care,ANGEL COURT RESIDENTIAL CARE HOME,16/05/2018,"1,971.43",73373-RESIDENTIAL & NURSING CARE PLACEMENTS,OP PACKAGE/PLACEMENT COSTS,Third Party Payments,Revenue
Walsall Council,http://opendatacommunities.org/id/metropolitan-district-council/walsall,WC92-314,31/05/2018,Adult Social Care,ANGEL COURT RESIDENTIAL CARE HOME,16/05/2018,"2,049.81",73373-RESIDENTIAL & NURSING CARE PLACEMENTS,OP PACKAGE/PLACEMENT COSTS,Third Party Payments,Revenue
Walsall Council,http://opendatacommunities.org/id/metropolitan-district-council/walsall,WC92-315,31/05/2018,Adult Social Care,ANGEL COURT RESIDENTIAL CARE HOME,16/05/2018,"2,080.72",73373-RESIDENTIAL & NURSING CARE PLACEMENTS,OP PACKAGE/PLACEMENT COSTS,Third Party Payments,Revenue
Walsall Council,http://opendatacommunities.org/id/metropolitan-district-council/walsall,WC92-316,31/05/2018,Childrens,ANGEL SPRINGS LTD T/A WATERLOGIC,24/05/2018,378.00,"40000-REPAIRS,ALTERATIONS & MAINTENANCE-PREM",LOCALITY FAMILY SUPPORT-NORTH,Premises,Revenue
Walsall Council,http://opendatacommunities.org/id/metropolitan-district-council/walsall,WC92-317,31/05/2018,Childrens,REDACTED,08/05/2018,368.76,74509-SPECIAL GUARDIANSHIP ORDERS,ADOPTION ALLOWANCES,Transfer Payments,Revenue
Walsall Council,http://opendatacommunities.org/id/metropolitan-district-council/walsall,WC92-318,31/05/2018,Childrens,REDACTED,08/05/2018,368.76,74509-SPECIAL GUARDIANSHIP ORDERS,ADOPTION ALLOWANCES,Transfer Payments,Revenue
Walsall Council,http://opendatacommunities.org/id/metropolitan-district-council/walsall,WC92-319,31/05/2018,Childrens,REDACTED,08/05/2018,500.16,74509-SPECIAL GUARDIANSHIP ORDERS,ADOPTION ALLOWANCES,Transfer Payments,Revenue
Walsall Council,http://opendatacommunities.org/id/metropolitan-district-council/walsall,WC92-320,31/05/2018,Childrens,REDACTED,08/05/2018,312.04,74509-SPECIAL GUARDIANSHIP ORDERS,ADOPTION ALLOWANCES,Transfer Payments,Revenue
Walsall Council,http://opendatacommunities.org/id/metropolitan-district-council/walsall,WC92-321,31/05/2018,Adult Social Care,REDACTED,08/05/2018,327.36,76422-DIRECT PAYMENTS TO SOCIAL SERVICES CLIENTS,LD PACKAGE/PLACEMENT COSTS,Transfer Payments,Revenue
Walsall Council,http://opendatacommunities.org/id/metropolitan-district-council/walsall,WC92-322,31/05/2018,Adult Social Care,REDACTED,08/05/2018,680.24,76422-DIRECT PAYMENTS TO SOCIAL SERVICES CLIENTS,OP PACKAGE/PLACEMENT COSTS,Transfer Payments,Revenue
Walsall Council,http://opendatacommunities.org/id/metropolitan-district-council/walsall,WC92-323,31/05/2018,Adult Social Care,REDACTED,08/05/2018,"1,152.12",76422-DIRECT PAYMENTS TO SOCIAL SERVICES CLIENTS,OP PACKAGE/PLACEMENT COSTS,Transfer Payments,Revenue
Walsall Council,http://opendatacommunities.org/id/metropolitan-district-council/walsall,WC92-324,31/05/2018,Adult Social Care,ANSON COURT RESIDENTIAL HOME,08/05/2018,-737.20,73373-RESIDENTIAL & NURSING CARE PLACEMENTS,OP PACKAGE/PLACEMENT COSTS,Third Party Payments,Revenue
Walsall Council,http://opendatacommunities.org/id/metropolitan-district-council/walsall,WC92-325,31/05/2018,Adult Social Care,ANSON COURT RESIDENTIAL HOME,08/05/2018,"1,876.52",73373-RESIDENTIAL & NURSING CARE PLACEMENTS,OP PACKAGE/PLACEMENT COSTS,Third Party Payments,Revenue
Walsall Council,http://opendatacommunities.org/id/metropolitan-district-council/walsall,WC92-326,31/05/2018,Adult Social Care,ANSON COURT RESIDENTIAL HOME,08/05/2018,"1,876.52",73373-RESIDENTIAL & NURSING CARE PLACEMENTS,OP PACKAGE/PLACEMENT COSTS,Third Party Payments,Revenue
Walsall Council,http://opendatacommunities.org/id/metropolitan-district-council/walsall,WC92-327,31/05/2018,Adult Social Care,ANSON COURT RESIDENTIAL HOME,08/05/2018,"1,876.52",73373-RESIDENTIAL & NURSING CARE PLACEMENTS,OP PACKAGE/PLACEMENT COSTS,Third Party Payments,Revenue
Walsall Council,http://opendatacommunities.org/id/metropolitan-district-council/walsall,WC92-328,31/05/2018,Adult Social Care,ANSON COURT RESIDENTIAL HOME,08/05/2018,"1,876.52",73373-RESIDENTIAL & NURSING CARE PLACEMENTS,OP PACKAGE/PLACEMENT COSTS,Third Party Payments,Revenue
Walsall Council,http://opendatacommunities.org/id/metropolitan-district-council/walsall,WC92-329,31/05/2018,Adult Social Care,ANSON COURT RESIDENTIAL HOME,08/05/2018,"1,876.52",73373-RESIDENTIAL & NURSING CARE PLACEMENTS,OP PACKAGE/PLACEMENT COSTS,Third Party Payments,Revenue
Walsall Council,http://opendatacommunities.org/id/metropolitan-district-council/walsall,WC92-330,31/05/2018,Adult Social Care,ANSON COURT RESIDENTIAL HOME,08/05/2018,"1,876.52",73373-RESIDENTIAL & NURSING CARE PLACEMENTS,OP PACKAGE/PLACEMENT COSTS,Third Party Payments,Revenue
Walsall Council,http://opendatacommunities.org/id/metropolitan-district-council/walsall,WC92-331,31/05/2018,Adult Social Care,ANSON COURT RESIDENTIAL HOME,08/05/2018,"1,876.52",73373-RESIDENTIAL & NURSING CARE PLACEMENTS,OP PACKAGE/PLACEMENT COSTS,Third Party Payments,Revenue
Walsall Council,http://opendatacommunities.org/id/metropolitan-district-council/walsall,WC92-332,31/05/2018,Adult Social Care,ANSON COURT RESIDENTIAL HOME,08/05/2018,"1,876.52",73373-RESIDENTIAL & NURSING CARE PLACEMENTS,MENTAL HEALTH PACKAGE/PLACEMENT COSTS,Third Party Payments,Revenue
Walsall Council,http://opendatacommunities.org/id/metropolitan-district-council/walsall,WC92-333,31/05/2018,Adult Social Care,ANSON COURT RESIDENTIAL HOME,08/05/2018,"1,876.52",73373-RESIDENTIAL & NURSING CARE PLACEMENTS,OP PACKAGE/PLACEMENT COSTS,Third Party Payments,Revenue
Walsall Council,http://opendatacommunities.org/id/metropolitan-district-council/walsall,WC92-334,31/05/2018,Adult Social Care,ANSON COURT RESIDENTIAL HOME,08/05/2018,"1,876.52",73373-RESIDENTIAL & NURSING CARE PLACEMENTS,OP PACKAGE/PLACEMENT COSTS,Third Party Payments,Revenue
Walsall Council,http://opendatacommunities.org/id/metropolitan-district-council/walsall,WC92-335,31/05/2018,Adult Social Care,ANSON COURT RESIDENTIAL HOME,08/05/2018,"1,876.52",73373-RESIDENTIAL & NURSING CARE PLACEMENTS,OP PACKAGE/PLACEMENT COSTS,Third Party Payments,Revenue
Walsall Council,http://opendatacommunities.org/id/metropolitan-district-council/walsall,WC92-336,31/05/2018,Adult Social Care,ANSON COURT RESIDENTIAL HOME,08/05/2018,"1,876.52",73373-RESIDENTIAL & NURSING CARE PLACEMENTS,OP PACKAGE/PLACEMENT COSTS,Third Party Payments,Revenue
Walsall Council,http://opendatacommunities.org/id/metropolitan-district-council/walsall,WC92-337,31/05/2018,Adult Social Care,ANSON COURT RESIDENTIAL HOME,08/05/2018,"1,876.52",73373-RESIDENTIAL & NURSING CARE PLACEMENTS,OP PACKAGE/PLACEMENT COSTS,Third Party Payments,Revenue
Walsall Council,http://opendatacommunities.org/id/metropolitan-district-council/walsall,WC92-338,31/05/2018,Adult Social Care,ANSON COURT RESIDENTIAL HOME,08/05/2018,"1,876.52",73373-RESIDENTIAL & NURSING CARE PLACEMENTS,OP PACKAGE/PLACEMENT COSTS,Third Party Payments,Revenue
Walsall Council,http://opendatacommunities.org/id/metropolitan-district-council/walsall,WC92-339,31/05/2018,Adult Social Care,ANSON COURT RESIDENTIAL HOME,08/05/2018,"1,876.52",73373-RESIDENTIAL & NURSING CARE PLACEMENTS,OP PACKAGE/PLACEMENT COSTS,Third Party Payments,Revenue
Walsall Council,http://opendatacommunities.org/id/metropolitan-district-council/walsall,WC92-340,31/05/2018,Adult Social Care,ANSON COURT RESIDENTIAL HOME,08/05/2018,"1,876.52",73373-RESIDENTIAL & NURSING CARE PLACEMENTS,OP PACKAGE/PLACEMENT COSTS,Third Party Payments,Revenue
Walsall Council,http://opendatacommunities.org/id/metropolitan-district-council/walsall,WC92-341,31/05/2018,Adult Social Care,ANSON COURT RESIDENTIAL HOME,08/05/2018,"1,876.52",73373-RESIDENTIAL & NURSING CARE PLACEMENTS,OP PACKAGE/PLACEMENT COSTS,Third Party Payments,Revenue
Walsall Council,http://opendatacommunities.org/id/metropolitan-district-council/walsall,WC92-342,31/05/2018,Adult Social Care,ANSON COURT RESIDENTIAL HOME,08/05/2018,"1,956.52",73373-RESIDENTIAL & NURSING CARE PLACEMENTS,OP PACKAGE/PLACEMENT COSTS,Third Party Payments,Revenue
Walsall Council,http://opendatacommunities.org/id/metropolitan-district-council/walsall,WC92-343,31/05/2018,Adult Social Care,ANSON COURT RESIDENTIAL HOME,08/05/2018,"1,956.52",73373-RESIDENTIAL & NURSING CARE PLACEMENTS,OP PACKAGE/PLACEMENT COSTS,Third Party Payments,Revenue
Walsall Council,http://opendatacommunities.org/id/metropolitan-district-council/walsall,WC92-344,31/05/2018,Adult Social Care,ANSON COURT RESIDENTIAL HOME,08/05/2018,"1,956.52",73373-RESIDENTIAL & NURSING CARE PLACEMENTS,MENTAL HEALTH PACKAGE/PLACEMENT COSTS,Third Party Payments,Revenue
Walsall Council,http://opendatacommunities.org/id/metropolitan-district-council/walsall,WC92-345,31/05/2018,Adult Social Care,ANSON COURT RESIDENTIAL HOME,08/05/2018,"1,956.52",73373-RESIDENTIAL & NURSING CARE PLACEMENTS,OP PACKAGE/PLACEMENT COSTS,Third Party Payments,Revenue
Walsall Council,http://opendatacommunities.org/id/metropolitan-district-council/walsall,WC92-346,31/05/2018,Adult Social Care,ANSON COURT RESIDENTIAL HOME,08/05/2018,"1,956.52",73373-RESIDENTIAL & NURSING CARE PLACEMENTS,OP PACKAGE/PLACEMENT COSTS,Third Party Payments,Revenue
Walsall Council,http://opendatacommunities.org/id/metropolitan-district-council/walsall,WC92-347,31/05/2018,Adult Social Care,ANSON COURT RESIDENTIAL HOME,08/05/2018,"1,996.52",73373-RESIDENTIAL & NURSING CARE PLACEMENTS,OP PACKAGE/PLACEMENT COSTS,Third Party Payments,Revenue
Walsall Council,http://opendatacommunities.org/id/metropolitan-district-council/walsall,WC92-348,31/05/2018,Adult Social Care,ANSON COURT RESIDENTIAL HOME,16/05/2018,"2,057.14",73373-RESIDENTIAL & NURSING CARE PLACEMENTS,OP PACKAGE/PLACEMENT COSTS,Third Party Payments,Revenue
Walsall Council,http://opendatacommunities.org/id/metropolitan-district-council/walsall,WC92-349,31/05/2018,Adult Social Care,ANSON COURT RESIDENTIAL HOME,08/05/2018,"4,956.52",73373-RESIDENTIAL & NURSING CARE PLACEMENTS,MENTAL HEALTH PACKAGE/PLACEMENT COSTS,Third Party Payments,Revenue
Walsall Council,http://opendatacommunities.org/id/metropolitan-district-council/walsall,WC92-350,31/05/2018,Adult Social Care,ANSON COURT RESIDENTIAL HOME,29/05/2018,"8,190.00",73373-RESIDENTIAL & NURSING CARE PLACEMENTS,OP PACKAGE/PLACEMENT COSTS,Third Party Payments,Revenue
Walsall Council,http://opendatacommunities.org/id/metropolitan-district-council/walsall,WC92-351,31/05/2018,Resources and Transformation,ANTALIS LIMITED,24/05/2018,570.00,60500-GENERAL MATERIALS,PRINTING SERVICES,Supplies & Services,Revenue
Walsall Council,http://opendatacommunities.org/id/metropolitan-district-council/walsall,WC92-352,31/05/2018,Childrens,REDACTED,08/05/2018,604.00,74510-RESIDENTS ORDERS,ADOPTION ALLOWANCES,Third Party Payments,Revenue
Walsall Council,http://opendatacommunities.org/id/metropolitan-district-council/walsall,WC92-353,31/05/2018,Childrens,REDACTED,08/05/2018,333.12,74509-SPECIAL GUARDIANSHIP ORDERS,ADOPTION ALLOWANCES,Transfer Payments,Revenue
Walsall Council,http://opendatacommunities.org/id/metropolitan-district-council/walsall,WC92-354,31/05/2018,Economy & Environment,APCOA PARKING SERVICES (UK) LTD,04/05/2018,"42,768.87",73025-PROFESSIONAL SERVICES-PRIV CONTRACTOR & OTHER AGENCIES,PARKING SERVICES OFF-STREET,Third Party Payments,Revenue
Walsall Council,http://opendatacommunities.org/id/metropolitan-district-council/walsall,WC92-355,31/05/2018,Economy & Environment,AQUALYMPIC,30/05/2018,250.00,34305-AGENCY STAFF-EMPLOYEES,OAK PARK,Employees,Revenue
Walsall Council,http://opendatacommunities.org/id/metropolitan-district-council/walsall,WC92-356,31/05/2018,Economy & Environment,AQUALYMPIC,17/05/2018,520.00,34305-AGENCY STAFF-EMPLOYEES,OAK PARK,Employees,Revenue
Walsall Council,http://opendatacommunities.org/id/metropolitan-district-council/walsall,WC92-357,31/05/2018,Economy & Environment,AQUALYMPIC,21/05/2018,530.00,34305-AGENCY STAFF-EMPLOYEES,OAK PARK,Employees,Revenue
Walsall Council,http://opendatacommunities.org/id/metropolitan-district-council/walsall,WC92-358,31/05/2018,Economy & Environment,AQUALYMPIC,09/05/2018,"1,127.50",34305-AGENCY STAFF-EMPLOYEES,OAK PARK,Employees,Revenue
Walsall Council,http://opendatacommunities.org/id/metropolitan-district-council/walsall,WC92-359,31/05/2018,Economy & Environment,AQUALYMPIC,04/05/2018,"1,237.50",34305-AGENCY STAFF-EMPLOYEES,OAK PARK,Employees,Revenue
Walsall Council,http://opendatacommunities.org/id/metropolitan-district-council/walsall,WC92-360,31/05/2018,Economy & Environment,AQUAMO LTD,10/05/2018,303.48,60008-MAINTENANCE-FURNITURE & EQUIPMENT,DARLASTON LEISURE CENTRE,Supplies & Services,Revenue
Walsall Council,http://opendatacommunities.org/id/metropolitan-district-council/walsall,WC92-361,31/05/2018,Economy & Environment,AQUAMO LTD,10/05/2018,"1,213.00",60008-MAINTENANCE-FURNITURE & EQUIPMENT,WALSALL GALA CENTRE,Supplies & Services,Revenue
Walsall Council,http://opendatacommunities.org/id/metropolitan-district-council/walsall,WC92-362,31/05/2018,Adult Social Care,ARBORETUM NURSING HOME.,16/05/2018,"2,000.00",73373-RESIDENTIAL & NURSING CARE PLACEMENTS,PD PACKAGE/PLACEMENT COSTS,Third Party Payments,Revenue
Walsall Council,http://opendatacommunities.org/id/metropolitan-district-council/walsall,WC92-363,31/05/2018,Adult Social Care,ARBORETUM NURSING HOME.,16/05/2018,"2,000.00",73373-RESIDENTIAL & NURSING CARE PLACEMENTS,OP PACKAGE/PLACEMENT COSTS,Third Party Payments,Revenue
Walsall Council,http://opendatacommunities.org/id/metropolitan-district-council/walsall,WC92-364,31/05/2018,Adult Social Care,ARBORETUM NURSING HOME.,16/05/2018,"2,000.00",73373-RESIDENTIAL & NURSING CARE PLACEMENTS,OP PACKAGE/PLACEMENT COSTS,Third Party Payments,Revenue
Walsall Council,http://opendatacommunities.org/id/metropolitan-district-council/walsall,WC92-365,31/05/2018,Adult Social Care,ARBORETUM NURSING HOME.,16/05/2018,"2,071.43",73373-RESIDENTIAL & NURSING CARE PLACEMENTS,PD PACKAGE/PLACEMENT COSTS,Third Party Payments,Revenue
Walsall Council,http://opendatacommunities.org/id/metropolitan-district-council/walsall,WC92-366,31/05/2018,Adult Social Care,ARBORETUM NURSING HOME.,16/05/2018,"2,080.00",73373-RESIDENTIAL & NURSING CARE PLACEMENTS,OP PACKAGE/PLACEMENT COSTS,Third Party Payments,Revenue
Walsall Council,http://opendatacommunities.org/id/metropolitan-district-council/walsall,WC92-367,31/05/2018,Adult Social Care,ARBORETUM NURSING HOME.,16/05/2018,"2,100.00",73373-RESIDENTIAL & NURSING CARE PLACEMENTS,OP PACKAGE/PLACEMENT COSTS,Third Party Payments,Revenue
Walsall Council,http://opendatacommunities.org/id/metropolitan-district-council/walsall,WC92-368,31/05/2018,Adult Social Care,ARBORETUM NURSING HOME.,16/05/2018,"2,500.00",73373-RESIDENTIAL & NURSING CARE PLACEMENTS,OP PACKAGE/PLACEMENT COSTS,Third Party Payments,Revenue
Walsall Council,http://opendatacommunities.org/id/metropolitan-district-council/walsall,WC92-369,31/05/2018,Adult Social Care,ARBORETUM NURSING HOME.,16/05/2018,"2,625.00",73373-RESIDENTIAL & NURSING CARE PLACEMENTS,OP PACKAGE/PLACEMENT COSTS,Third Party Payments,Revenue
Walsall Council,http://opendatacommunities.org/id/metropolitan-district-council/walsall,WC92-370,31/05/2018,Childrens,ARCHWAY ACADEMY,02/05/2018,"4,422.00",66502-TOP UP FUNDING -GRANTS TO SCHOOLS,INDEPENDENT PROVIDERS - SPECIAL & AP,Third Party Payments,Revenue
Walsall Council,http://opendatacommunities.org/id/metropolitan-district-council/walsall,WC92-371,31/05/2018,Childrens,ARCHWAY ACADEMY,18/05/2018,"5,896.00",66502-TOP UP FUNDING -GRANTS TO SCHOOLS,INDEPENDENT PROVIDERS - SPECIAL & AP,Third Party Payments,Revenue
Walsall Council,http://opendatacommunities.org/id/metropolitan-district-council/walsall,WC92-372,31/05/2018,Childrens,ARCHWAY ACADEMY,02/05/2018,"10,612.80",66502-TOP UP FUNDING -GRANTS TO SCHOOLS,INDEPENDENT PROVIDERS - SPECIAL & AP,Third Party Payments,Revenue
Walsall Council,http://opendatacommunities.org/id/metropolitan-district-council/walsall,WC92-373,31/05/2018,Childrens,ARCHWAY ACADEMY,30/05/2018,"26,237.20",66502-TOP UP FUNDING -GRANTS TO SCHOOLS,INDEPENDENT PROVIDERS - SPECIAL & AP,Third Party Payments,Revenue
Walsall Council,http://opendatacommunities.org/id/metropolitan-district-council/walsall,WC92-374,31/05/2018,Economy & Environment,ARCO GROUP,23/05/2018,252.00,60514-MATERIALS TO STORES,FLEET PARTS STOCK ACCOUNT,Supplies & Services,Revenue
Walsall Council,http://opendatacommunities.org/id/metropolitan-district-council/walsall,WC92-375,31/05/2018,Childrens,ARNFIELD CARE LIMITED,18/05/2018,"15,616.00",74036-EXTERNAL RESIDENTIAL CARE-OTH AGENCY PROVISION,INDEPENDENT RESIDENTIAL HOMES,Third Party Payments,Revenue
Walsall Council,http://opendatacommunities.org/id/metropolitan-district-council/walsall,WC92-376,31/05/2018,Childrens,ARNOLD CLARK CAR & VAN RENTAL,16/05/2018,253.80,52001-HIRE OF VEHICLES,ADOPTION TEAM,Transport,Revenue
Walsall Council,http://opendatacommunities.org/id/metropolitan-district-council/walsall,WC92-377,31/05/2018,Childrens,ARNOLD CLARK CAR & VAN RENTAL,01/05/2018,"5,000.00",52001-HIRE OF VEHICLES,ADOPTION SUPPORT FUND,Transport,Revenue
Walsall Council,http://opendatacommunities.org/id/metropolitan-district-council/walsall,WC92-378,31/05/2018,Holding Accounts,ARTHUR J GALLAGHER T/A HEATH LAMBERT LIMITED,11/05/2018,"6,025.17",89012-TEACHERS SICKNESS SCHEME PREMIUM INSURANCE POLICY,PUBLIC LIABILITY,Supplies & Services,Revenue
Walsall Council,http://opendatacommunities.org/id/metropolitan-district-council/walsall,WC92-379,31/05/2018,Holding Accounts,ARTHUR J GALLAGHER T/A HEATH LAMBERT LIMITED,11/05/2018,"25,267.13",89012-TEACHERS SICKNESS SCHEME PREMIUM INSURANCE POLICY,PUBLIC LIABILITY,Supplies & Services,Revenue
Walsall Council,http://opendatacommunities.org/id/metropolitan-district-council/walsall,WC92-380,31/05/2018,Holding Accounts,ARTHUR J GALLAGHER T/A HEATH LAMBERT LIMITED,11/05/2018,"29,711.81",89012-TEACHERS SICKNESS SCHEME PREMIUM INSURANCE POLICY,PUBLIC LIABILITY,Supplies & Services,Revenue
Walsall Council,http://opendatacommunities.org/id/metropolitan-district-council/walsall,WC92-381,31/05/2018,Holding Accounts,ARTHUR J GALLAGHER T/A HEATH LAMBERT LIMITED,11/05/2018,"31,920.00",89012-TEACHERS SICKNESS SCHEME PREMIUM INSURANCE POLICY,PUBLIC LIABILITY,Supplies & Services,Revenue
Walsall Council,http://opendatacommunities.org/id/metropolitan-district-council/walsall,WC92-382,31/05/2018,Holding Accounts,ARTHUR J GALLAGHER T/A HEATH LAMBERT LIMITED,11/05/2018,"214,424.00",89012-TEACHERS SICKNESS SCHEME PREMIUM INSURANCE POLICY,PUBLIC LIABILITY,Supplies & Services,Revenue
Walsall Council,http://opendatacommunities.org/id/metropolitan-district-council/walsall,WC92-383,31/05/2018,Childrens,ARTHUR M GRIFFITHS & SON LTD,09/05/2018,"112,484.27",01006-SITE WORKS MAIN CONTRACTORS,CFR 929 FIBBERSLEY PRIMARY SIGNIFICANT ENLARGEMENT,Capital,Capital
Walsall Council,http://opendatacommunities.org/id/metropolitan-district-council/walsall,WC92-384,31/05/2018,Economy & Environment,ARTLINK TRANSPORT AND STORAGE LTD,21/05/2018,"1,200.00",73032-TRANSPORTATION-PRIV CONTRACTOR FEES,NAG - TEMPORARY EXHIBITIONS,Third Party Payments,Revenue
Walsall Council,http://opendatacommunities.org/id/metropolitan-district-council/walsall,WC92-385,31/05/2018,Economy & Environment,ASDA PHARMACY,03/05/2018,322.24,71007-CONTRIBUTION TO PCT,PUBLIC HEALTH BUSINESS SUPPORT,Third Party Payments,Revenue
Walsall Council,http://opendatacommunities.org/id/metropolitan-district-council/walsall,WC92-386,31/05/2018,Adult Social Care,ASH GRANGE CARE HOME,22/05/2018,"-1,214.29",73373-RESIDENTIAL & NURSING CARE PLACEMENTS,OP PACKAGE/PLACEMENT COSTS,Third Party Payments,Revenue
Walsall Council,http://opendatacommunities.org/id/metropolitan-district-council/walsall,WC92-387,31/05/2018,Adult Social Care,ASH GRANGE CARE HOME,22/05/2018,-428.57,73373-RESIDENTIAL & NURSING CARE PLACEMENTS,OP PACKAGE/PLACEMENT COSTS,Third Party Payments,Revenue
Walsall Council,http://opendatacommunities.org/id/metropolitan-district-council/walsall,WC92-388,31/05/2018,Adult Social Care,ASH GRANGE CARE HOME,01/05/2018,"1,025.37",73373-RESIDENTIAL & NURSING CARE PLACEMENTS,OP PACKAGE/PLACEMENT COSTS,Third Party Payments,Revenue
Walsall Council,http://opendatacommunities.org/id/metropolitan-district-council/walsall,WC92-389,31/05/2018,Adult Social Care,ASH GRANGE CARE HOME,01/05/2018,"1,656.00",73373-RESIDENTIAL & NURSING CARE PLACEMENTS,OP PACKAGE/PLACEMENT COSTS,Third Party Payments,Revenue
Walsall Council,http://opendatacommunities.org/id/metropolitan-district-council/walsall,WC92-390,31/05/2018,Adult Social Care,ASH GRANGE CARE HOME,22/05/2018,"1,708.78",73373-RESIDENTIAL & NURSING CARE PLACEMENTS,OP PACKAGE/PLACEMENT COSTS,Third Party Payments,Revenue
Walsall Council,http://opendatacommunities.org/id/metropolitan-district-council/walsall,WC92-391,31/05/2018,Adult Social Care,ASH GRANGE CARE HOME,01/05/2018,"2,000.00",73373-RESIDENTIAL & NURSING CARE PLACEMENTS,OP PACKAGE/PLACEMENT COSTS,Third Party Payments,Revenue
Walsall Council,http://opendatacommunities.org/id/metropolitan-district-council/walsall,WC92-392,31/05/2018,Adult Social Care,ASH GRANGE CARE HOME,22/05/2018,"2,063.77",73373-RESIDENTIAL & NURSING CARE PLACEMENTS,MENTAL HEALTH PACKAGE/PLACEMENT COSTS,Third Party Payments,Revenue
Walsall Council,http://opendatacommunities.org/id/metropolitan-district-council/walsall,WC92-393,31/05/2018,Adult Social Care,ASH GRANGE CARE HOME,22/05/2018,"2,063.77",73373-RESIDENTIAL & NURSING CARE PLACEMENTS,OP PACKAGE/PLACEMENT COSTS,Third Party Payments,Revenue
Walsall Council,http://opendatacommunities.org/id/metropolitan-district-council/walsall,WC92-394,31/05/2018,Adult Social Care,ASH GRANGE CARE HOME,22/05/2018,"2,063.77",73373-RESIDENTIAL & NURSING CARE PLACEMENTS,OP PACKAGE/PLACEMENT COSTS,Third Party Payments,Revenue
Walsall Council,http://opendatacommunities.org/id/metropolitan-district-council/walsall,WC92-395,31/05/2018,Adult Social Care,ASH GRANGE CARE HOME,22/05/2018,"2,063.77",73373-RESIDENTIAL & NURSING CARE PLACEMENTS,OP PACKAGE/PLACEMENT COSTS,Third Party Payments,Revenue
Walsall Council,http://opendatacommunities.org/id/metropolitan-district-council/walsall,WC92-396,31/05/2018,Adult Social Care,ASH GRANGE CARE HOME,22/05/2018,"2,063.78",73373-RESIDENTIAL & NURSING CARE PLACEMENTS,OP PACKAGE/PLACEMENT COSTS,Third Party Payments,Revenue
Walsall Council,http://opendatacommunities.org/id/metropolitan-district-council/walsall,WC92-397,31/05/2018,Adult Social Care,ASH GRANGE CARE HOME,22/05/2018,"2,063.78",73373-RESIDENTIAL & NURSING CARE PLACEMENTS,OP PACKAGE/PLACEMENT COSTS,Third Party Payments,Revenue
Walsall Council,http://opendatacommunities.org/id/metropolitan-district-council/walsall,WC92-398,31/05/2018,Adult Social Care,ASH GRANGE CARE HOME,22/05/2018,"2,343.77",73373-RESIDENTIAL & NURSING CARE PLACEMENTS,OP PACKAGE/PLACEMENT COSTS,Third Party Payments,Revenue
Walsall Council,http://opendatacommunities.org/id/metropolitan-district-council/walsall,WC92-399,31/05/2018,Adult Social Care,ASH GRANGE CARE HOME,16/05/2018,"2,495.72",73373-RESIDENTIAL & NURSING CARE PLACEMENTS,PD PACKAGE/PLACEMENT COSTS,Third Party Payments,Revenue
Walsall Council,http://opendatacommunities.org/id/metropolitan-district-council/walsall,WC92-400,31/05/2018,Adult Social Care,ASH GRANGE CARE HOME,01/05/2018,"2,657.14",73373-RESIDENTIAL & NURSING CARE PLACEMENTS,OP PACKAGE/PLACEMENT COSTS,Third Party Payments,Revenue
Walsall Council,http://opendatacommunities.org/id/metropolitan-district-council/walsall,WC92-401,31/05/2018,Adult Social Care,ASHBOURNE LODGE,08/05/2018,"2,103.86",73373-RESIDENTIAL & NURSING CARE PLACEMENTS,OP PACKAGE/PLACEMENT COSTS,Third Party Payments,Revenue
Walsall Council,http://opendatacommunities.org/id/metropolitan-district-council/walsall,WC92-402,31/05/2018,Economy & Environment,ASHDOWN SUPPLIES,21/05/2018,270.72,60500-GENERAL MATERIALS,STREETLY CREMATORIUM,Supplies & Services,Revenue
Walsall Council,http://opendatacommunities.org/id/metropolitan-district-council/walsall,WC92-403,31/05/2018,Economy & Environment,ASHDOWN SUPPLIES,21/05/2018,270.72,60500-GENERAL MATERIALS,STREETLY CREMATORIUM,Supplies & Services,Revenue
Walsall Council,http://opendatacommunities.org/id/metropolitan-district-council/walsall,WC92-404,31/05/2018,Adult Social Care,REDACTED,08/05/2018,422.00,76422-DIRECT PAYMENTS TO SOCIAL SERVICES CLIENTS,LD PACKAGE/PLACEMENT COSTS,Transfer Payments,Revenue
Walsall Council,http://opendatacommunities.org/id/metropolitan-district-council/walsall,WC92-405,31/05/2018,Adult Social Care,REDACTED,08/05/2018,"1,092.00",76422-DIRECT PAYMENTS TO SOCIAL SERVICES CLIENTS,LD PACKAGE/PLACEMENT COSTS,Transfer Payments,Revenue
Walsall Council,http://opendatacommunities.org/id/metropolitan-district-council/walsall,WC92-406,31/05/2018,Adult Social Care,REDACTED,08/05/2018,856.80,76422-DIRECT PAYMENTS TO SOCIAL SERVICES CLIENTS,OP PACKAGE/PLACEMENT COSTS,Transfer Payments,Revenue
Walsall Council,http://opendatacommunities.org/id/metropolitan-district-council/walsall,WC92-407,31/05/2018,Adult Social Care,ASSURED HEALTHCARE SOLUTIONS (PARK FARM LODGE),08/05/2018,"2,087.49",73373-RESIDENTIAL & NURSING CARE PLACEMENTS,OP PACKAGE/PLACEMENT COSTS,Third Party Payments,Revenue
Walsall Council,http://opendatacommunities.org/id/metropolitan-district-council/walsall,WC92-408,31/05/2018,Resources and Transformation,ASTUN TECHNOLOGY LIMITED,17/05/2018,850.00,63800-COMPUTER EQUIPMENT AND SUPPLIES,RECHARGEABLE EQUIPMENT,Supplies & Services,Revenue
Walsall Council,http://opendatacommunities.org/id/metropolitan-district-council/walsall,WC92-409,31/05/2018,Resources and Transformation,ASTUN TECHNOLOGY LIMITED,17/05/2018,"1,700.00",63800-COMPUTER EQUIPMENT AND SUPPLIES,RECHARGEABLE EQUIPMENT,Supplies & Services,Revenue
Walsall Council,http://opendatacommunities.org/id/metropolitan-district-council/walsall,WC92-410,31/05/2018,Economy & Environment,ATHWAL NEWS LTD,09/05/2018,279.13,60501-LIBRARY BOOKS,LIBRARY OPERATIONS CENTRAL,Supplies & Services,Revenue
Walsall Council,http://opendatacommunities.org/id/metropolitan-district-council/walsall,WC92-411,31/05/2018,Economy & Environment,ATHWAL NEWS LTD,09/05/2018,336.36,60501-LIBRARY BOOKS,LIBRARY STOCK AND PERFORMANCE,Supplies & Services,Revenue
Walsall Council,http://opendatacommunities.org/id/metropolitan-district-council/walsall,WC92-412,31/05/2018,Resources and Transformation,AVANTIS SYSTEMS LIMITED,01/05/2018,"5,397.60",66500-GRANTS TO OTHER ORGS,COHESION,Third Party Payments,Revenue
Walsall Council,http://opendatacommunities.org/id/metropolitan-district-council/walsall,WC92-413,31/05/2018,Adult Social Care,AVE MARIA CARE SERVICES,30/05/2018,253.08,73372-DOMICILIARY CARE,OP PACKAGE/PLACEMENT COSTS,Third Party Payments,Revenue
Walsall Council,http://opendatacommunities.org/id/metropolitan-district-council/walsall,WC92-414,31/05/2018,Adult Social Care,AVE MARIA CARE SERVICES,25/05/2018,405.04,73372-DOMICILIARY CARE,OP PACKAGE/PLACEMENT COSTS,Third Party Payments,Revenue
Walsall Council,http://opendatacommunities.org/id/metropolitan-district-council/walsall,WC92-415,31/05/2018,Adult Social Care,REDACTED,08/05/2018,989.04,76422-DIRECT PAYMENTS TO SOCIAL SERVICES CLIENTS,OP PACKAGE/PLACEMENT COSTS,Transfer Payments,Revenue
Walsall Council,http://opendatacommunities.org/id/metropolitan-district-council/walsall,WC92-416,31/05/2018,Economy & Environment,AXIELL LIMITED,30/05/2018,335.12,63000-PROFESSIONAL FEES AND SERVICES,LIBRARY STOCK AND PERFORMANCE,Supplies & Services,Revenue
Walsall Council,http://opendatacommunities.org/id/metropolitan-district-council/walsall,WC92-417,31/05/2018,Economy & Environment,AXIELL LIMITED,30/05/2018,"17,387.73",63800-COMPUTER EQUIPMENT AND SUPPLIES,NETWORK SUPPORT,Supplies & Services,Revenue
Walsall Council,http://opendatacommunities.org/id/metropolitan-district-council/walsall,WC92-418,31/05/2018,Childrens,REDACTED,08/05/2018,"1,284.00",76422-DIRECT PAYMENTS TO SOCIAL SERVICES CLIENTS,FAMILY SUPPORT - DIRECT PAYMENTS,Transfer Payments,Revenue
Walsall Council,http://opendatacommunities.org/id/metropolitan-district-council/walsall,WC92-419,31/05/2018,Adult Social Care,REDACTED,08/05/2018,"3,182.40",76422-DIRECT PAYMENTS TO SOCIAL SERVICES CLIENTS,LD PACKAGE/PLACEMENT COSTS,Transfer Payments,Revenue
Walsall Council,http://opendatacommunities.org/id/metropolitan-district-council/walsall,WC92-420,31/05/2018,Economy & Environment,B & S CHAINS LTD,21/05/2018,661.10,60006-NEW-FURNITURE & EQUIPMENT,INFRASTRUCTURE MAINTENANCE,Supplies & Services,Revenue
Walsall Council,http://opendatacommunities.org/id/metropolitan-district-council/walsall,WC92-421,31/05/2018,Resources and Transformation,B E FURNITURE LTD T/A B E EVENTHIRE,03/05/2018,464.00,60009-LEASING/HIRE/RENTAL-EQUIPMENT,ELECTORAL ADMINISTRATION,Supplies & Services,Revenue
Walsall Council,http://opendatacommunities.org/id/metropolitan-district-council/walsall,WC92-422,31/05/2018,Resources and Transformation,B E FURNITURE LTD T/A B E EVENTHIRE,21/05/2018,"4,427.05",60009-LEASING/HIRE/RENTAL-EQUIPMENT,ELECTORAL ADMINISTRATION,Supplies & Services,Revenue
Walsall Council,http://opendatacommunities.org/id/metropolitan-district-council/walsall,WC92-423,31/05/2018,Childrens,REDACTED,09/05/2018,464.00,76000-TRANSFER PAYMENTS - SOCIAL SERVICES CLIENTS,TRANSITION AND LEAVING CARE PLACEMENTS,Transfer Payments,Revenue
Walsall Council,http://opendatacommunities.org/id/metropolitan-district-council/walsall,WC92-424,31/05/2018,Childrens,REDACTED,09/05/2018,464.00,76000-TRANSFER PAYMENTS - SOCIAL SERVICES CLIENTS,TRANSITION AND LEAVING CARE PLACEMENTS,Transfer Payments,Revenue
Walsall Council,http://opendatacommunities.org/id/metropolitan-district-council/walsall,WC92-425,31/05/2018,Childrens,REDACTED,22/05/2018,464.00,76000-TRANSFER PAYMENTS - SOCIAL SERVICES CLIENTS,TRANSITION AND LEAVING CARE PLACEMENTS,Transfer Payments,Revenue
Walsall Council,http://opendatacommunities.org/id/metropolitan-district-council/walsall,WC92-426,31/05/2018,Childrens,REDACTED,22/05/2018,464.00,76000-TRANSFER PAYMENTS - SOCIAL SERVICES CLIENTS,TRANSITION AND LEAVING CARE PLACEMENTS,Transfer Payments,Revenue
Walsall Council,http://opendatacommunities.org/id/metropolitan-district-council/walsall,WC92-427,31/05/2018,Economy & Environment,B3 CREATIVE LTD,02/05/2018,"2,945.00",63000-PROFESSIONAL FEES AND SERVICES,A STARS PROJECT,Supplies & Services,Revenue
Walsall Council,http://opendatacommunities.org/id/metropolitan-district-council/walsall,WC92-428,31/05/2018,Childrens,BACK CARE SOLUTIONS LTD,08/05/2018,"1,405.01",60008-MAINTENANCE-FURNITURE & EQUIPMENT,RECRUITMENT TEAM,Supplies & Services,Revenue
Walsall Council,http://opendatacommunities.org/id/metropolitan-district-council/walsall,WC92-429,31/05/2018,Economy & Environment,BAKER HALL PARTNERSHIP,17/05/2018,759.75,63000-PROFESSIONAL FEES AND SERVICES,BUILDING CONTROL REVENUE FUNDED,Supplies & Services,Revenue
Walsall Council,http://opendatacommunities.org/id/metropolitan-district-council/walsall,WC92-430,31/05/2018,Adult Social Care,REDACTED,08/05/2018,480.00,76422-DIRECT PAYMENTS TO SOCIAL SERVICES CLIENTS,MENTAL HEALTH PACKAGE/PLACEMENT COSTS,Transfer Payments,Revenue
Walsall Council,http://opendatacommunities.org/id/metropolitan-district-council/walsall,WC92-431,31/05/2018,Adult Social Care,REDACTED,08/05/2018,"3,328.80",76422-DIRECT PAYMENTS TO SOCIAL SERVICES CLIENTS,LD PACKAGE/PLACEMENT COSTS,Transfer Payments,Revenue
Walsall Council,http://opendatacommunities.org/id/metropolitan-district-council/walsall,WC92-432,31/05/2018,Adult Social Care,REDACTED,08/05/2018,"1,582.86",76422-DIRECT PAYMENTS TO SOCIAL SERVICES CLIENTS,OP PACKAGE/PLACEMENT COSTS,Transfer Payments,Revenue
Walsall Council,http://opendatacommunities.org/id/metropolitan-district-council/walsall,WC92-433,31/05/2018,Childrens,REDACTED,08/05/2018,340.00,74508-INTERNAL FOSTER CARERS-CARER FEES,FAMILY & FRIENDS FOSTER CARE PROVISION,Transfer Payments,Revenue
Walsall Council,http://opendatacommunities.org/id/metropolitan-district-council/walsall,WC92-434,31/05/2018,Childrens,REDACTED,08/05/2018,540.00,74501-MAINTENANCE ALLOWANCE-FOSTER CARERS,FAMILY & FRIENDS FOSTER CARE PROVISION,Transfer Payments,Revenue
Walsall Council,http://opendatacommunities.org/id/metropolitan-district-council/walsall,WC92-435,31/05/2018,Adult Social Care,REDACTED,08/05/2018,921.31,76422-DIRECT PAYMENTS TO SOCIAL SERVICES CLIENTS,OP PACKAGE/PLACEMENT COSTS,Transfer Payments,Revenue
Walsall Council,http://opendatacommunities.org/id/metropolitan-district-council/walsall,WC92-436,31/05/2018,Adult Social Care,REDACTED,08/05/2018,814.92,76422-DIRECT PAYMENTS TO SOCIAL SERVICES CLIENTS,OP PACKAGE/PLACEMENT COSTS,Transfer Payments,Revenue
Walsall Council,http://opendatacommunities.org/id/metropolitan-district-council/walsall,WC92-437,31/05/2018,Economy & Environment,BARCHAM TREES PLC,10/05/2018,331.20,60500-GENERAL MATERIALS,COUNTRYSIDE MANAGEMENT-OTHER,Supplies & Services,Revenue
Walsall Council,http://opendatacommunities.org/id/metropolitan-district-council/walsall,WC92-438,31/05/2018,Economy & Environment,BARHALE PLC,24/05/2018,"1,155.95",60500-GENERAL MATERIALS,INFRASTRUCTURE MAINTENANCE,Supplies & Services,Revenue
Walsall Council,http://opendatacommunities.org/id/metropolitan-district-council/walsall,WC92-439,31/05/2018,Childrens,BARNARDOS SERVICES LTD,18/05/2018,"3,116.40",74037-INDEPENDENT FOSTER CARE-OTH AGENCY PROVISION,EXTERNAL FOSTER CARE PROVISION,Third Party Payments,Revenue
Walsall Council,http://opendatacommunities.org/id/metropolitan-district-council/walsall,WC92-440,31/05/2018,Adult Social Care,BARTHOLAMEW LODGE CARE HOME,01/05/2018,496.39,73373-RESIDENTIAL & NURSING CARE PLACEMENTS,OP PACKAGE/PLACEMENT COSTS,Third Party Payments,Revenue
Walsall Council,http://opendatacommunities.org/id/metropolitan-district-council/walsall,WC92-441,31/05/2018,Adult Social Care,BARTHOLAMEW LODGE CARE HOME,01/05/2018,"1,178.57",73373-RESIDENTIAL & NURSING CARE PLACEMENTS,OP PACKAGE/PLACEMENT COSTS,Third Party Payments,Revenue
Walsall Council,http://opendatacommunities.org/id/metropolitan-district-council/walsall,WC92-442,31/05/2018,Adult Social Care,BARTHOLAMEW LODGE CARE HOME,01/05/2018,"1,290.62",73373-RESIDENTIAL & NURSING CARE PLACEMENTS,OP PACKAGE/PLACEMENT COSTS,Third Party Payments,Revenue
Walsall Council,http://opendatacommunities.org/id/metropolitan-district-council/walsall,WC92-443,31/05/2018,Adult Social Care,BARTHOLAMEW LODGE CARE HOME,01/05/2018,"2,319.25",73373-RESIDENTIAL & NURSING CARE PLACEMENTS,OP PACKAGE/PLACEMENT COSTS,Third Party Payments,Revenue
Walsall Council,http://opendatacommunities.org/id/metropolitan-district-council/walsall,WC92-444,31/05/2018,Adult Social Care,BARTHOLAMEW LODGE CARE HOME,29/05/2018,"2,823.44",73373-RESIDENTIAL & NURSING CARE PLACEMENTS,OP PACKAGE/PLACEMENT COSTS,Third Party Payments,Revenue
Walsall Council,http://opendatacommunities.org/id/metropolitan-district-council/walsall,WC92-445,31/05/2018,Adult Social Care,REDACTED,08/05/2018,490.40,76422-DIRECT PAYMENTS TO SOCIAL SERVICES CLIENTS,OP PACKAGE/PLACEMENT COSTS,Transfer Payments,Revenue
Walsall Council,http://opendatacommunities.org/id/metropolitan-district-council/walsall,WC92-446,31/05/2018,Economy & Environment,BAUER CORPORATE SERVICES - BAUER RADIO LTD,02/05/2018,"2,087.20",63253-PAYMENT TO CONTRACTOR,HEALTH CHECKS - PHARMACIES,Third Party Payments,Revenue
Walsall Council,http://opendatacommunities.org/id/metropolitan-district-council/walsall,WC92-447,31/05/2018,Resources and Transformation,BCB PROMOTIONS,30/05/2018,400.00,62515-MISCELLANEOUS SUPPLIES,WALSALL TOWN HALL,Supplies & Services,Revenue
Walsall Council,http://opendatacommunities.org/id/metropolitan-district-council/walsall,WC92-448,31/05/2018,Resources and Transformation,BCB PROMOTIONS,30/05/2018,600.00,62515-MISCELLANEOUS SUPPLIES,LEISURE INTERNET BOOKINGS - HOLDING AC,Supplies & Services,Revenue
Walsall Council,http://opendatacommunities.org/id/metropolitan-district-council/walsall,WC92-449,31/05/2018,Economy & Environment,BEADEN POWERLEC LIMITED,09/05/2018,355.00,60008-MAINTENANCE-FURNITURE & EQUIPMENT,OAK PARK,Supplies & Services,Revenue
Walsall Council,http://opendatacommunities.org/id/metropolitan-district-council/walsall,WC92-450,31/05/2018,Childrens,REDACTED,18/05/2018,342.86,74501-MAINTENANCE ALLOWANCE-FOSTER CARERS,INTERNAL FOSTER CARE PROVISION,Transfer Payments,Revenue
Walsall Council,http://opendatacommunities.org/id/metropolitan-district-council/walsall,WC92-451,31/05/2018,Childrens,REDACTED,18/05/2018,800.00,74508-INTERNAL FOSTER CARERS-CARER FEES,INTERNAL FOSTER CARE PROVISION,Transfer Payments,Revenue
Walsall Council,http://opendatacommunities.org/id/metropolitan-district-council/walsall,WC92-452,31/05/2018,Adult Social Care,REDACTED,08/05/2018,758.70,76422-DIRECT PAYMENTS TO SOCIAL SERVICES CLIENTS,OP PACKAGE/PLACEMENT COSTS,Transfer Payments,Revenue
Walsall Council,http://opendatacommunities.org/id/metropolitan-district-council/walsall,WC92-453,31/05/2018,Childrens,BECKIE'S CHILDMINDING,01/05/2018,"1,357.20",66505-OTHER-GRANTS TO OTHER ORGS,EARLY YEARS - 3 YR OLDS,Third Party Payments,Revenue
Walsall Council,http://opendatacommunities.org/id/metropolitan-district-council/walsall,WC92-454,31/05/2018,Childrens,BECKYS CHILDMINDING SERVICE,01/05/2018,817.44,66505-OTHER-GRANTS TO OTHER ORGS,EARLY YEARS - 2 YR OLDS,Third Party Payments,Revenue
Walsall Council,http://opendatacommunities.org/id/metropolitan-district-council/walsall,WC92-455,31/05/2018,Childrens,BECKYS CHILDMINDING SERVICE,31/05/2018,"1,226.16",66505-OTHER-GRANTS TO OTHER ORGS,EARLY YEARS - 2 YR OLDS,Third Party Payments,Revenue
Walsall Council,http://opendatacommunities.org/id/metropolitan-district-council/walsall,WC92-456,31/05/2018,Childrens,BECKYS CHILDMINDING SERVICE,01/05/2018,"2,714.40",66505-OTHER-GRANTS TO OTHER ORGS,EARLY YEARS - 3 YR OLDS,Third Party Payments,Revenue
Walsall Council,http://opendatacommunities.org/id/metropolitan-district-council/walsall,WC92-457,31/05/2018,Adult Social Care,BELVIDERE COURT,16/05/2018,"2,214.29",73373-RESIDENTIAL & NURSING CARE PLACEMENTS,MENTAL HEALTH PACKAGE/PLACEMENT COSTS,Third Party Payments,Revenue
Walsall Council,http://opendatacommunities.org/id/metropolitan-district-council/walsall,WC92-458,31/05/2018,Adult Social Care,BELVIDERE COURT,16/05/2018,"2,233.95",73373-RESIDENTIAL & NURSING CARE PLACEMENTS,MENTAL HEALTH PACKAGE/PLACEMENT COSTS,Third Party Payments,Revenue
Walsall Council,http://opendatacommunities.org/id/metropolitan-district-council/walsall,WC92-459,31/05/2018,Adult Social Care,BELVIDERE COURT,29/05/2018,"2,435.71",73373-RESIDENTIAL & NURSING CARE PLACEMENTS,OP PACKAGE/PLACEMENT COSTS,Third Party Payments,Revenue
Walsall Council,http://opendatacommunities.org/id/metropolitan-district-council/walsall,WC92-460,31/05/2018,Adult Social Care,BELVIDERE COURT,16/05/2018,"2,435.72",73373-RESIDENTIAL & NURSING CARE PLACEMENTS,OP PACKAGE/PLACEMENT COSTS,Third Party Payments,Revenue
Walsall Council,http://opendatacommunities.org/id/metropolitan-district-council/walsall,WC92-461,31/05/2018,Adult Social Care,BELVIDERE COURT,29/05/2018,"3,764.28",73373-RESIDENTIAL & NURSING CARE PLACEMENTS,MENTAL HEALTH PACKAGE/PLACEMENT COSTS,Third Party Payments,Revenue
Walsall Council,http://opendatacommunities.org/id/metropolitan-district-council/walsall,WC92-462,31/05/2018,Adult Social Care,REDACTED,08/05/2018,"2,569.64",76422-DIRECT PAYMENTS TO SOCIAL SERVICES CLIENTS,LD PACKAGE/PLACEMENT COSTS,Transfer Payments,Revenue
Walsall Council,http://opendatacommunities.org/id/metropolitan-district-council/walsall,WC92-463,31/05/2018,Adult Social Care,BENTLEY COURT PRIORY,29/05/2018,589.95,73373-RESIDENTIAL & NURSING CARE PLACEMENTS,OP PACKAGE/PLACEMENT COSTS,Third Party Payments,Revenue
Walsall Council,http://opendatacommunities.org/id/metropolitan-district-council/walsall,WC92-464,31/05/2018,Adult Social Care,BENTLEY COURT PRIORY,11/05/2018,"1,578.57",73019-PSE'S-PRIV CONTRACTOR FEES,INTEGRATED DISCHARGE TEAM,Third Party Payments,Revenue
Walsall Council,http://opendatacommunities.org/id/metropolitan-district-council/walsall,WC92-465,31/05/2018,Adult Social Care,BENTLEY COURT PRIORY,11/05/2018,"1,807.14",73019-PSE'S-PRIV CONTRACTOR FEES,INTEGRATED DISCHARGE TEAM,Third Party Payments,Revenue
Walsall Council,http://opendatacommunities.org/id/metropolitan-district-council/walsall,WC92-466,31/05/2018,Adult Social Care,BENTLEY COURT PRIORY,01/05/2018,"2,041.20",73373-RESIDENTIAL & NURSING CARE PLACEMENTS,OP PACKAGE/PLACEMENT COSTS,Third Party Payments,Revenue
Walsall Council,http://opendatacommunities.org/id/metropolitan-district-council/walsall,WC92-467,31/05/2018,Adult Social Care,BENTLEY COURT PRIORY,01/05/2018,"2,357.14",73373-RESIDENTIAL & NURSING CARE PLACEMENTS,OP PACKAGE/PLACEMENT COSTS,Third Party Payments,Revenue
Walsall Council,http://opendatacommunities.org/id/metropolitan-district-council/walsall,WC92-468,31/05/2018,Adult Social Care,BENTLEY COURT PRIORY,01/05/2018,"2,357.14",73373-RESIDENTIAL & NURSING CARE PLACEMENTS,OP PACKAGE/PLACEMENT COSTS,Third Party Payments,Revenue
Walsall Council,http://opendatacommunities.org/id/metropolitan-district-council/walsall,WC92-469,31/05/2018,Adult Social Care,BENTLEY COURT PRIORY,01/05/2018,"2,357.14",73373-RESIDENTIAL & NURSING CARE PLACEMENTS,MENTAL HEALTH PACKAGE/PLACEMENT COSTS,Third Party Payments,Revenue
Walsall Council,http://opendatacommunities.org/id/metropolitan-district-council/walsall,WC92-470,31/05/2018,Adult Social Care,BENTLEY COURT PRIORY,11/05/2018,"2,400.00",73019-PSE'S-PRIV CONTRACTOR FEES,INTEGRATED DISCHARGE TEAM,Third Party Payments,Revenue
Walsall Council,http://opendatacommunities.org/id/metropolitan-district-council/walsall,WC92-471,31/05/2018,Childrens,BERRY GIFFORD LTD,10/05/2018,"7,619.92",76010-ACCOMMODATION AND RELATED COSTS-ASSISTANCE TO S/S CLIENTS,TRANSITION AND LEAVING CARE PLACEMENTS,Transfer Payments,Revenue
Walsall Council,http://opendatacommunities.org/id/metropolitan-district-council/walsall,WC92-472,31/05/2018,Holding Accounts,BERRYMANS LACE MAWER LLP,21/05/2018,"2,277.00",67001-MISC INSURANCES - PAYMENT OF CLAIMS,PUBLIC LIABILITY,Supplies & Services,Revenue
Walsall Council,http://opendatacommunities.org/id/metropolitan-district-council/walsall,WC92-473,31/05/2018,Holding Accounts,BERRYMANS LACE MAWER LLP,11/05/2018,"7,135.95",67001-MISC INSURANCES - PAYMENT OF CLAIMS,PUBLIC LIABILITY,Supplies & Services,Revenue
Walsall Council,http://opendatacommunities.org/id/metropolitan-district-council/walsall,WC92-474,31/05/2018,Adult Social Care,REDACTED,08/05/2018,"1,082.48",76422-DIRECT PAYMENTS TO SOCIAL SERVICES CLIENTS,OP PACKAGE/PLACEMENT COSTS,Transfer Payments,Revenue
Walsall Council,http://opendatacommunities.org/id/metropolitan-district-council/walsall,WC92-475,31/05/2018,Adult Social Care,REDACTED,08/05/2018,"1,743.20",76422-DIRECT PAYMENTS TO SOCIAL SERVICES CLIENTS,OP PACKAGE/PLACEMENT COSTS,Transfer Payments,Revenue
Walsall Council,http://opendatacommunities.org/id/metropolitan-district-council/walsall,WC92-476,31/05/2018,Adult Social Care,REDACTED,08/05/2018,550.80,76422-DIRECT PAYMENTS TO SOCIAL SERVICES CLIENTS,OP PACKAGE/PLACEMENT COSTS,Transfer Payments,Revenue
Walsall Council,http://opendatacommunities.org/id/metropolitan-district-council/walsall,WC92-477,31/05/2018,Adult Social Care,BESCOT LODGE RESIDENTIAL CARE HOME,16/05/2018,525.71,73373-RESIDENTIAL & NURSING CARE PLACEMENTS,OP PACKAGE/PLACEMENT COSTS,Third Party Payments,Revenue
Walsall Council,http://opendatacommunities.org/id/metropolitan-district-council/walsall,WC92-478,31/05/2018,Adult Social Care,BESCOT LODGE RESIDENTIAL CARE HOME,16/05/2018,657.14,73373-RESIDENTIAL & NURSING CARE PLACEMENTS,OP PACKAGE/PLACEMENT COSTS,Third Party Payments,Revenue
Walsall Council,http://opendatacommunities.org/id/metropolitan-district-council/walsall,WC92-479,31/05/2018,Adult Social Care,BESCOT LODGE RESIDENTIAL CARE HOME,01/05/2018,709.71,73373-RESIDENTIAL & NURSING CARE PLACEMENTS,OP PACKAGE/PLACEMENT COSTS,Third Party Payments,Revenue
Walsall Council,http://opendatacommunities.org/id/metropolitan-district-council/walsall,WC92-480,31/05/2018,Adult Social Care,BESCOT LODGE RESIDENTIAL CARE HOME,01/05/2018,"1,123.72",73373-RESIDENTIAL & NURSING CARE PLACEMENTS,OP PACKAGE/PLACEMENT COSTS,Third Party Payments,Revenue
Walsall Council,http://opendatacommunities.org/id/metropolitan-district-council/walsall,WC92-481,31/05/2018,Adult Social Care,BESCOT LODGE RESIDENTIAL CARE HOME,16/05/2018,"1,511.43",73373-RESIDENTIAL & NURSING CARE PLACEMENTS,OP PACKAGE/PLACEMENT COSTS,Third Party Payments,Revenue
Walsall Council,http://opendatacommunities.org/id/metropolitan-district-council/walsall,WC92-482,31/05/2018,Adult Social Care,BESCOT LODGE RESIDENTIAL CARE HOME,01/05/2018,"1,809.47",73373-RESIDENTIAL & NURSING CARE PLACEMENTS,OP PACKAGE/PLACEMENT COSTS,Third Party Payments,Revenue
Walsall Council,http://opendatacommunities.org/id/metropolitan-district-council/walsall,WC92-483,31/05/2018,Adult Social Care,BESCOT LODGE RESIDENTIAL CARE HOME,22/05/2018,"1,809.47",73373-RESIDENTIAL & NURSING CARE PLACEMENTS,OP PACKAGE/PLACEMENT COSTS,Third Party Payments,Revenue
Walsall Council,http://opendatacommunities.org/id/metropolitan-district-council/walsall,WC92-484,31/05/2018,Adult Social Care,BESCOT LODGE RESIDENTIAL CARE HOME,22/05/2018,"1,809.47",73373-RESIDENTIAL & NURSING CARE PLACEMENTS,LD PACKAGE/PLACEMENT COSTS,Third Party Payments,Revenue
Walsall Council,http://opendatacommunities.org/id/metropolitan-district-council/walsall,WC92-485,31/05/2018,Adult Social Care,BESCOT LODGE RESIDENTIAL CARE HOME,16/05/2018,"1,869.79",73373-RESIDENTIAL & NURSING CARE PLACEMENTS,OP PACKAGE/PLACEMENT COSTS,Third Party Payments,Revenue
Walsall Council,http://opendatacommunities.org/id/metropolitan-district-council/walsall,WC92-486,31/05/2018,Adult Social Care,BESCOT LODGE RESIDENTIAL CARE HOME,22/05/2018,"1,869.79",73373-RESIDENTIAL & NURSING CARE PLACEMENTS,OP PACKAGE/PLACEMENT COSTS,Third Party Payments,Revenue
Walsall Council,http://opendatacommunities.org/id/metropolitan-district-council/walsall,WC92-487,31/05/2018,Adult Social Care,BESCOT LODGE RESIDENTIAL CARE HOME,22/05/2018,"1,869.79",73373-RESIDENTIAL & NURSING CARE PLACEMENTS,LD PACKAGE/PLACEMENT COSTS,Third Party Payments,Revenue
Walsall Council,http://opendatacommunities.org/id/metropolitan-district-council/walsall,WC92-488,31/05/2018,Adult Social Care,BESCOT LODGE RESIDENTIAL CARE HOME,22/05/2018,"2,010.56",73373-RESIDENTIAL & NURSING CARE PLACEMENTS,OP PACKAGE/PLACEMENT COSTS,Third Party Payments,Revenue
Walsall Council,http://opendatacommunities.org/id/metropolitan-district-council/walsall,WC92-489,31/05/2018,Adult Social Care,BESCOT LODGE RESIDENTIAL CARE HOME,16/05/2018,"2,077.58",73373-RESIDENTIAL & NURSING CARE PLACEMENTS,OP PACKAGE/PLACEMENT COSTS,Third Party Payments,Revenue
Walsall Council,http://opendatacommunities.org/id/metropolitan-district-council/walsall,WC92-490,31/05/2018,Adult Social Care,BESCOT LODGE RESIDENTIAL CARE HOME,16/05/2018,"2,077.58",73373-RESIDENTIAL & NURSING CARE PLACEMENTS,OP PACKAGE/PLACEMENT COSTS,Third Party Payments,Revenue
Walsall Council,http://opendatacommunities.org/id/metropolitan-district-council/walsall,WC92-491,31/05/2018,Adult Social Care,BESCOT LODGE RESIDENTIAL CARE HOME,22/05/2018,"2,077.58",73373-RESIDENTIAL & NURSING CARE PLACEMENTS,OP PACKAGE/PLACEMENT COSTS,Third Party Payments,Revenue
Walsall Council,http://opendatacommunities.org/id/metropolitan-district-council/walsall,WC92-492,31/05/2018,Economy & Environment,BESCOT STADIUM SUNDAY MARKET LTD,17/05/2018,"3,500.00",73025-PROFESSIONAL SERVICES-PRIV CONTRACTOR & OTHER AGENCIES,WILLENHALL MARKET,Third Party Payments,Revenue
Walsall Council,http://opendatacommunities.org/id/metropolitan-district-council/walsall,WC92-493,31/05/2018,Adult Social Care,BETHPHAGE.,24/05/2018,"1,282.50",73372-DOMICILIARY CARE,LD PACKAGE/PLACEMENT COSTS,Third Party Payments,Revenue
Walsall Council,http://opendatacommunities.org/id/metropolitan-district-council/walsall,WC92-494,31/05/2018,Adult Social Care,BETHPHAGE.,24/05/2018,"1,638.75",73372-DOMICILIARY CARE,LD PACKAGE/PLACEMENT COSTS,Third Party Payments,Revenue
Walsall Council,http://opendatacommunities.org/id/metropolitan-district-council/walsall,WC92-495,31/05/2018,Adult Social Care,BETHPHAGE.,24/05/2018,"1,674.40",73372-DOMICILIARY CARE,LD PACKAGE/PLACEMENT COSTS,Third Party Payments,Revenue
Walsall Council,http://opendatacommunities.org/id/metropolitan-district-council/walsall,WC92-496,31/05/2018,Adult Social Care,BETHPHAGE.,24/05/2018,"1,816.90",73372-DOMICILIARY CARE,LD PACKAGE/PLACEMENT COSTS,Third Party Payments,Revenue
Walsall Council,http://opendatacommunities.org/id/metropolitan-district-council/walsall,WC92-497,31/05/2018,Adult Social Care,BETHPHAGE.,24/05/2018,"3,366.55",73372-DOMICILIARY CARE,LD PACKAGE/PLACEMENT COSTS,Third Party Payments,Revenue
Walsall Council,http://opendatacommunities.org/id/metropolitan-district-council/walsall,WC92-498,31/05/2018,Adult Social Care,REDACTED,08/05/2018,949.52,76422-DIRECT PAYMENTS TO SOCIAL SERVICES CLIENTS,MENTAL HEALTH PACKAGE/PLACEMENT COSTS,Transfer Payments,Revenue
Walsall Council,http://opendatacommunities.org/id/metropolitan-district-council/walsall,WC92-499,31/05/2018,Adult Social Care,REDACTED,08/05/2018,"2,767.84",76422-DIRECT PAYMENTS TO SOCIAL SERVICES CLIENTS,OP PACKAGE/PLACEMENT COSTS,Transfer Payments,Revenue
Walsall Council,http://opendatacommunities.org/id/metropolitan-district-council/walsall,WC92-500,31/05/2018,Resources and Transformation,BFA SAFETY TRAINING,21/05/2018,295.00,30030-EXTERNAL TRAINING,HEALTH & SAFETY,Employees,Revenue
Walsall Council,http://opendatacommunities.org/id/metropolitan-district-council/walsall,WC92-501,31/05/2018,Resources and Transformation,BFA SAFETY TRAINING,21/05/2018,495.00,30030-EXTERNAL TRAINING,HEALTH & SAFETY,Employees,Revenue
Walsall Council,http://opendatacommunities.org/id/metropolitan-district-council/walsall,WC92-502,31/05/2018,Childrens,REDACTED,08/05/2018,517.92,76422-DIRECT PAYMENTS TO SOCIAL SERVICES CLIENTS,FAMILY SUPPORT - DIRECT PAYMENTS,Transfer Payments,Revenue
Walsall Council,http://opendatacommunities.org/id/metropolitan-district-council/walsall,WC92-503,31/05/2018,Childrens,REDACTED,08/05/2018,572.00,76422-DIRECT PAYMENTS TO SOCIAL SERVICES CLIENTS,FAMILY SUPPORT - DIRECT PAYMENTS,Transfer Payments,Revenue
Walsall Council,http://opendatacommunities.org/id/metropolitan-district-council/walsall,WC92-504,31/05/2018,Economy & Environment,BILSTON RESOURCE CENTRE,10/05/2018,964.09,63000-PROFESSIONAL FEES AND SERVICES,YEI (IMPACT) PROGRAMME,Supplies & Services,Revenue
Walsall Council,http://opendatacommunities.org/id/metropolitan-district-council/walsall,WC92-505,31/05/2018,Economy & Environment,BILSTON RESOURCE CENTRE,10/05/2018,964.10,63000-PROFESSIONAL FEES AND SERVICES,YEI ESF FUNDING,Supplies & Services,Revenue
Walsall Council,http://opendatacommunities.org/id/metropolitan-district-council/walsall,WC92-506,31/05/2018,Childrens,BIRMINGHAM CITY COUNCIL,30/05/2018,"1,534.14",52000-WITH DRIVER-HIRE OF VEHICLES,HOME TO SCHOOL TRANSPORT,Transport,Revenue
Walsall Council,http://opendatacommunities.org/id/metropolitan-district-council/walsall,WC92-507,31/05/2018,Childrens,BIRMINGHAM CITY COUNCIL,02/05/2018,"1,713.77",66502-TOP UP FUNDING -GRANTS TO SCHOOLS,MAINTAINED PROVIDERS,Third Party Payments,Revenue
Walsall Council,http://opendatacommunities.org/id/metropolitan-district-council/walsall,WC92-508,31/05/2018,Childrens,BIRMINGHAM CITY COUNCIL,18/05/2018,"1,956.16",74037-INDEPENDENT FOSTER CARE-OTH AGENCY PROVISION,EXTERNAL FOSTER CARE PROVISION,Third Party Payments,Revenue
Walsall Council,http://opendatacommunities.org/id/metropolitan-district-council/walsall,WC92-509,31/05/2018,Childrens,BIRMINGHAM CITY COUNCIL,02/05/2018,"3,273.25",66502-TOP UP FUNDING -GRANTS TO SCHOOLS,MAINTAINED PROVIDERS,Third Party Payments,Revenue
Walsall Council,http://opendatacommunities.org/id/metropolitan-district-council/walsall,WC92-510,31/05/2018,Childrens,BIRMINGHAM CITY COUNCIL,02/05/2018,"3,273.25",66502-TOP UP FUNDING -GRANTS TO SCHOOLS,MAINTAINED PROVIDERS,Third Party Payments,Revenue
Walsall Council,http://opendatacommunities.org/id/metropolitan-district-council/walsall,WC92-511,31/05/2018,Childrens,BIRMINGHAM CITY COUNCIL,02/05/2018,"3,273.25",66502-TOP UP FUNDING -GRANTS TO SCHOOLS,INDEPENDENT PROVIDERS - POST SCHOOL,Third Party Payments,Revenue
Walsall Council,http://opendatacommunities.org/id/metropolitan-district-council/walsall,WC92-512,31/05/2018,Childrens,BIRMINGHAM CITY COUNCIL,02/05/2018,"3,273.25",66502-TOP UP FUNDING -GRANTS TO SCHOOLS,INDEPENDENT PROVIDERS - POST SCHOOL,Third Party Payments,Revenue
Walsall Council,http://opendatacommunities.org/id/metropolitan-district-council/walsall,WC92-513,31/05/2018,Childrens,BIRMINGHAM CITY COUNCIL,16/05/2018,"3,273.25",66502-TOP UP FUNDING -GRANTS TO SCHOOLS,MAINTAINED PROVIDERS,Third Party Payments,Revenue
Walsall Council,http://opendatacommunities.org/id/metropolitan-district-council/walsall,WC92-514,31/05/2018,Childrens,BIRMINGHAM CITY COUNCIL,16/05/2018,"4,823.50",66502-TOP UP FUNDING -GRANTS TO SCHOOLS,MAINTAINED PROVIDERS,Third Party Payments,Revenue
Walsall Council,http://opendatacommunities.org/id/metropolitan-district-council/walsall,WC92-515,31/05/2018,Childrens,BIRMINGHAM CITY COUNCIL,02/05/2018,"5,140.00",66502-TOP UP FUNDING -GRANTS TO SCHOOLS,INDEPENDENT PROVIDERS - POST SCHOOL,Third Party Payments,Revenue
Walsall Council,http://opendatacommunities.org/id/metropolitan-district-council/walsall,WC92-516,31/05/2018,Childrens,BIRMINGHAM CITY COUNCIL,02/05/2018,"5,192.31",66502-TOP UP FUNDING -GRANTS TO SCHOOLS,MAINTAINED PROVIDERS,Third Party Payments,Revenue
Walsall Council,http://opendatacommunities.org/id/metropolitan-district-council/walsall,WC92-517,31/05/2018,Childrens,BIRMINGHAM CITY COUNCIL,02/05/2018,"7,720.15",66502-TOP UP FUNDING -GRANTS TO SCHOOLS,MAINTAINED PROVIDERS,Third Party Payments,Revenue
Walsall Council,http://opendatacommunities.org/id/metropolitan-district-council/walsall,WC92-518,31/05/2018,Childrens,BIRMINGHAM CITY COUNCIL,02/05/2018,"8,922.50",66502-TOP UP FUNDING -GRANTS TO SCHOOLS,MAINTAINED PROVIDERS,Third Party Payments,Revenue
Walsall Council,http://opendatacommunities.org/id/metropolitan-district-council/walsall,WC92-519,31/05/2018,Childrens,BIRMINGHAM CITY COUNCIL,02/05/2018,"11,230.38",66502-TOP UP FUNDING -GRANTS TO SCHOOLS,MAINTAINED PROVIDERS,Third Party Payments,Revenue
Walsall Council,http://opendatacommunities.org/id/metropolitan-district-council/walsall,WC92-520,31/05/2018,Childrens,BIRMINGHAM CITY COUNCIL,02/05/2018,"11,401.00",66502-TOP UP FUNDING -GRANTS TO SCHOOLS,MAINTAINED PROVIDERS,Third Party Payments,Revenue
Walsall Council,http://opendatacommunities.org/id/metropolitan-district-council/walsall,WC92-521,31/05/2018,Childrens,BIRMINGHAM CITY COUNCIL,02/05/2018,"11,401.00",66502-TOP UP FUNDING -GRANTS TO SCHOOLS,INDEPENDENT PROVIDERS - POST SCHOOL,Third Party Payments,Revenue
Walsall Council,http://opendatacommunities.org/id/metropolitan-district-council/walsall,WC92-522,31/05/2018,Economy & Environment,BIRMINGHAM WOMENS AND CHILDRENS NHS FOUNDATION TRUST,04/05/2018,970.00,74000-OTHER AGENCY FEES,CORONERS SERVICE,Third Party Payments,Revenue
Walsall Council,http://opendatacommunities.org/id/metropolitan-district-council/walsall,WC92-523,31/05/2018,Economy & Environment,BIRMINGHAM WOMENS AND CHILDRENS NHS FOUNDATION TRUST,01/05/2018,"1,085.00",74000-OTHER AGENCY FEES,CORONERS SERVICE,Third Party Payments,Revenue
Walsall Council,http://opendatacommunities.org/id/metropolitan-district-council/walsall,WC92-524,31/05/2018,Economy & Environment,BIRMINGHAM WOMENS AND CHILDRENS NHS FOUNDATION TRUST,17/05/2018,"1,577.17",74000-OTHER AGENCY FEES,CORONERS SERVICE,Third Party Payments,Revenue
Walsall Council,http://opendatacommunities.org/id/metropolitan-district-council/walsall,WC92-525,31/05/2018,Economy & Environment,BLACK COUNTRY CONSORTIUM LIMITED,08/05/2018,"13,322.00",63000-PROFESSIONAL FEES AND SERVICES,REGENERATION MANAGEMENT,Supplies & Services,Revenue
Walsall Council,http://opendatacommunities.org/id/metropolitan-district-council/walsall,WC92-526,31/05/2018,Economy & Environment,BLACK COUNTRY CONSORTIUM LIMITED,08/05/2018,"90,000.00",63000-PROFESSIONAL FEES AND SERVICES,MS-HEAD OF STRATEGIC REGENERATION,Supplies & Services,Revenue
Walsall Council,http://opendatacommunities.org/id/metropolitan-district-council/walsall,WC92-527,31/05/2018,Economy & Environment,BLACK COUNTRY DANCE HUB,09/05/2018,270.00,63000-PROFESSIONAL FEES AND SERVICES,FOREST ARTS CENTRE,Supplies & Services,Revenue
Walsall Council,http://opendatacommunities.org/id/metropolitan-district-council/walsall,WC92-528,31/05/2018,Economy & Environment,BLACK COUNTRY DANCE HUB,09/05/2018,"5,000.00",63000-PROFESSIONAL FEES AND SERVICES,FOREST ARTS CENTRE,Supplies & Services,Revenue
Walsall Council,http://opendatacommunities.org/id/metropolitan-district-council/walsall,WC92-529,31/05/2018,Childrens,BLACK COUNTRY WOMENS AID,16/05/2018,"6,250.00",63000-PROFESSIONAL FEES AND SERVICES,TOXIC TRIO,Supplies & Services,Revenue
Walsall Council,http://opendatacommunities.org/id/metropolitan-district-council/walsall,WC92-530,31/05/2018,Childrens,BLACK COUNTRY WOMENS AID,15/05/2018,"16,654.25",63000-PROFESSIONAL FEES AND SERVICES,TOXIC TRIO,Supplies & Services,Revenue
Walsall Council,http://opendatacommunities.org/id/metropolitan-district-council/walsall,WC92-531,31/05/2018,Childrens,BLACK COUNTRY WOMENS AID,16/05/2018,"16,654.25",63000-PROFESSIONAL FEES AND SERVICES,TOXIC TRIO,Supplies & Services,Revenue
Walsall Council,http://opendatacommunities.org/id/metropolitan-district-council/walsall,WC92-532,31/05/2018,Childrens,BLACK COUNTRY WOMENS AID,16/05/2018,"16,654.25",63000-PROFESSIONAL FEES AND SERVICES,TOXIC TRIO,Supplies & Services,Revenue
Walsall Council,http://opendatacommunities.org/id/metropolitan-district-council/walsall,WC92-533,31/05/2018,Childrens,BLACK COUNTRY WOMENS AID,16/05/2018,"16,654.25",63000-PROFESSIONAL FEES AND SERVICES,TOXIC TRIO,Supplies & Services,Revenue
Walsall Council,http://opendatacommunities.org/id/metropolitan-district-council/walsall,WC92-534,31/05/2018,Childrens,BLUE GIRAFFE CHILDCARE,31/05/2018,"4,904.64",66505-OTHER-GRANTS TO OTHER ORGS,EARLY YEARS - 2 YR OLDS,Third Party Payments,Revenue
Walsall Council,http://opendatacommunities.org/id/metropolitan-district-council/walsall,WC92-535,31/05/2018,Economy & Environment,BME UNITED LTD,15/05/2018,"3,895.00",63253-PAYMENT TO CONTRACTOR,SMOKING CESSATION,Third Party Payments,Revenue
Walsall Council,http://opendatacommunities.org/id/metropolitan-district-council/walsall,WC92-536,31/05/2018,Economy & Environment,BME UNITED LTD,22/05/2018,"6,851.00",63253-PAYMENT TO CONTRACTOR,SMOKING CESSATION,Third Party Payments,Revenue
Walsall Council,http://opendatacommunities.org/id/metropolitan-district-council/walsall,WC92-537,31/05/2018,Economy & Environment,BOC LTD,21/05/2018,"1,236.57",60500-GENERAL MATERIALS,POLLUTION DIVISION,Supplies & Services,Revenue
Walsall Council,http://opendatacommunities.org/id/metropolitan-district-council/walsall,WC92-538,31/05/2018,Economy & Environment,BONINGALE NURSERIES,04/05/2018,216.00,60500-GENERAL MATERIALS,GROUNDS,Supplies & Services,Revenue
Walsall Council,http://opendatacommunities.org/id/metropolitan-district-council/walsall,WC92-539,31/05/2018,Resources and Transformation,BORSHCH LTD,01/05/2018,291.66,60000-FURNITURE & EQUIPMENT,WALSALL CRISIS SUPPORT SCHEME,Supplies & Services,Revenue
Walsall Council,http://opendatacommunities.org/id/metropolitan-district-council/walsall,WC92-540,31/05/2018,Resources and Transformation,BORSHCH LTD,02/05/2018,291.66,60000-FURNITURE & EQUIPMENT,WALSALL CRISIS SUPPORT SCHEME,Supplies & Services,Revenue
Walsall Council,http://opendatacommunities.org/id/metropolitan-district-council/walsall,WC92-541,31/05/2018,Resources and Transformation,BORSHCH LTD,04/05/2018,291.66,60000-FURNITURE & EQUIPMENT,WALSALL CRISIS SUPPORT SCHEME,Supplies & Services,Revenue
Walsall Council,http://opendatacommunities.org/id/metropolitan-district-council/walsall,WC92-542,31/05/2018,Resources and Transformation,BORSHCH LTD,04/05/2018,291.66,60000-FURNITURE & EQUIPMENT,WALSALL CRISIS SUPPORT SCHEME,Supplies & Services,Revenue
Walsall Council,http://opendatacommunities.org/id/metropolitan-district-council/walsall,WC92-543,31/05/2018,Resources and Transformation,BORSHCH LTD,04/05/2018,291.66,60000-FURNITURE & EQUIPMENT,WALSALL CRISIS SUPPORT SCHEME,Supplies & Services,Revenue
Walsall Council,http://opendatacommunities.org/id/metropolitan-district-council/walsall,WC92-544,31/05/2018,Resources and Transformation,BORSHCH LTD,04/05/2018,291.66,60000-FURNITURE & EQUIPMENT,WALSALL CRISIS SUPPORT SCHEME,Supplies & Services,Revenue
Walsall Council,http://opendatacommunities.org/id/metropolitan-district-council/walsall,WC92-545,31/05/2018,Resources and Transformation,BORSHCH LTD,04/05/2018,291.66,60000-FURNITURE & EQUIPMENT,WALSALL CRISIS SUPPORT SCHEME,Supplies & Services,Revenue
Walsall Council,http://opendatacommunities.org/id/metropolitan-district-council/walsall,WC92-546,31/05/2018,Resources and Transformation,BORSHCH LTD,16/05/2018,291.66,60000-FURNITURE & EQUIPMENT,WALSALL CRISIS SUPPORT SCHEME,Supplies & Services,Revenue
Walsall Council,http://opendatacommunities.org/id/metropolitan-district-council/walsall,WC92-547,31/05/2018,Resources and Transformation,BORSHCH LTD,16/05/2018,291.66,60000-FURNITURE & EQUIPMENT,WALSALL CRISIS SUPPORT SCHEME,Supplies & Services,Revenue
Walsall Council,http://opendatacommunities.org/id/metropolitan-district-council/walsall,WC92-548,31/05/2018,Resources and Transformation,BORSHCH LTD,25/05/2018,291.66,60000-FURNITURE & EQUIPMENT,WALSALL CRISIS SUPPORT SCHEME,Supplies & Services,Revenue
Walsall Council,http://opendatacommunities.org/id/metropolitan-district-council/walsall,WC92-549,31/05/2018,Resources and Transformation,BORSHCH LTD,30/05/2018,291.66,60000-FURNITURE & EQUIPMENT,WALSALL CRISIS SUPPORT SCHEME,Supplies & Services,Revenue
Walsall Council,http://opendatacommunities.org/id/metropolitan-district-council/walsall,WC92-550,31/05/2018,Resources and Transformation,BORSHCH LTD,02/05/2018,295.83,60000-FURNITURE & EQUIPMENT,WALSALL CRISIS SUPPORT SCHEME,Supplies & Services,Revenue
Walsall Council,http://opendatacommunities.org/id/metropolitan-district-council/walsall,WC92-551,31/05/2018,Resources and Transformation,BORSHCH LTD,02/05/2018,295.83,60000-FURNITURE & EQUIPMENT,WALSALL CRISIS SUPPORT SCHEME,Supplies & Services,Revenue
Walsall Council,http://opendatacommunities.org/id/metropolitan-district-council/walsall,WC92-552,31/05/2018,Resources and Transformation,BORSHCH LTD,02/05/2018,295.83,60000-FURNITURE & EQUIPMENT,WALSALL CRISIS SUPPORT SCHEME,Supplies & Services,Revenue
Walsall Council,http://opendatacommunities.org/id/metropolitan-district-council/walsall,WC92-553,31/05/2018,Resources and Transformation,BORSHCH LTD,16/05/2018,295.83,60000-FURNITURE & EQUIPMENT,WALSALL CRISIS SUPPORT SCHEME,Supplies & Services,Revenue
Walsall Council,http://opendatacommunities.org/id/metropolitan-district-council/walsall,WC92-554,31/05/2018,Resources and Transformation,BORSHCH LTD,17/05/2018,295.83,60000-FURNITURE & EQUIPMENT,WALSALL CRISIS SUPPORT SCHEME,Supplies & Services,Revenue
Walsall Council,http://opendatacommunities.org/id/metropolitan-district-council/walsall,WC92-555,31/05/2018,Resources and Transformation,BORSHCH LTD,16/05/2018,379.16,60000-FURNITURE & EQUIPMENT,WALSALL CRISIS SUPPORT SCHEME,Supplies & Services,Revenue
Walsall Council,http://opendatacommunities.org/id/metropolitan-district-council/walsall,WC92-556,31/05/2018,Resources and Transformation,BORSHCH LTD,17/05/2018,379.16,60000-FURNITURE & EQUIPMENT,WALSALL CRISIS SUPPORT SCHEME,Supplies & Services,Revenue
Walsall Council,http://opendatacommunities.org/id/metropolitan-district-council/walsall,WC92-557,31/05/2018,Resources and Transformation,BORSHCH LTD,02/05/2018,424.99,60000-FURNITURE & EQUIPMENT,WALSALL CRISIS SUPPORT SCHEME,Supplies & Services,Revenue
Walsall Council,http://opendatacommunities.org/id/metropolitan-district-council/walsall,WC92-558,31/05/2018,Resources and Transformation,BORSHCH LTD,01/05/2018,425.00,60000-FURNITURE & EQUIPMENT,WALSALL CRISIS SUPPORT SCHEME,Supplies & Services,Revenue
Walsall Council,http://opendatacommunities.org/id/metropolitan-district-council/walsall,WC92-559,31/05/2018,Resources and Transformation,BORSHCH LTD,17/05/2018,425.00,60000-FURNITURE & EQUIPMENT,WALSALL CRISIS SUPPORT SCHEME,Supplies & Services,Revenue
Walsall Council,http://opendatacommunities.org/id/metropolitan-district-council/walsall,WC92-560,31/05/2018,Resources and Transformation,BORSHCH LTD,02/05/2018,433.32,60000-FURNITURE & EQUIPMENT,WALSALL CRISIS SUPPORT SCHEME,Supplies & Services,Revenue
Walsall Council,http://opendatacommunities.org/id/metropolitan-district-council/walsall,WC92-561,31/05/2018,Resources and Transformation,BORSHCH LTD,02/05/2018,433.32,60000-FURNITURE & EQUIPMENT,WALSALL CRISIS SUPPORT SCHEME,Supplies & Services,Revenue
Walsall Council,http://opendatacommunities.org/id/metropolitan-district-council/walsall,WC92-562,31/05/2018,Resources and Transformation,BORSHCH LTD,01/05/2018,433.33,60000-FURNITURE & EQUIPMENT,WALSALL CRISIS SUPPORT SCHEME,Supplies & Services,Revenue
Walsall Council,http://opendatacommunities.org/id/metropolitan-district-council/walsall,WC92-563,31/05/2018,Resources and Transformation,BORSHCH LTD,01/05/2018,433.33,60000-FURNITURE & EQUIPMENT,WALSALL CRISIS SUPPORT SCHEME,Supplies & Services,Revenue
Walsall Council,http://opendatacommunities.org/id/metropolitan-district-council/walsall,WC92-564,31/05/2018,Resources and Transformation,BORSHCH LTD,02/05/2018,433.33,60000-FURNITURE & EQUIPMENT,WALSALL CRISIS SUPPORT SCHEME,Supplies & Services,Revenue
Walsall Council,http://opendatacommunities.org/id/metropolitan-district-council/walsall,WC92-565,31/05/2018,Resources and Transformation,BORSHCH LTD,02/05/2018,433.33,60000-FURNITURE & EQUIPMENT,WALSALL CRISIS SUPPORT SCHEME,Supplies & Services,Revenue
Walsall Council,http://opendatacommunities.org/id/metropolitan-district-council/walsall,WC92-566,31/05/2018,Resources and Transformation,BORSHCH LTD,09/05/2018,433.33,60000-FURNITURE & EQUIPMENT,WALSALL CRISIS SUPPORT SCHEME,Supplies & Services,Revenue
Walsall Council,http://opendatacommunities.org/id/metropolitan-district-council/walsall,WC92-567,31/05/2018,Resources and Transformation,BORSHCH LTD,09/05/2018,433.33,60000-FURNITURE & EQUIPMENT,WALSALL CRISIS SUPPORT SCHEME,Supplies & Services,Revenue
Walsall Council,http://opendatacommunities.org/id/metropolitan-district-council/walsall,WC92-568,31/05/2018,Resources and Transformation,BORSHCH LTD,09/05/2018,433.33,60000-FURNITURE & EQUIPMENT,WALSALL CRISIS SUPPORT SCHEME,Supplies & Services,Revenue
Walsall Council,http://opendatacommunities.org/id/metropolitan-district-council/walsall,WC92-569,31/05/2018,Resources and Transformation,BORSHCH LTD,09/05/2018,433.33,60000-FURNITURE & EQUIPMENT,WALSALL CRISIS SUPPORT SCHEME,Supplies & Services,Revenue
Walsall Council,http://opendatacommunities.org/id/metropolitan-district-council/walsall,WC92-570,31/05/2018,Resources and Transformation,BORSHCH LTD,16/05/2018,433.33,60000-FURNITURE & EQUIPMENT,WALSALL CRISIS SUPPORT SCHEME,Supplies & Services,Revenue
Walsall Council,http://opendatacommunities.org/id/metropolitan-district-council/walsall,WC92-571,31/05/2018,Resources and Transformation,BORSHCH LTD,16/05/2018,433.33,60000-FURNITURE & EQUIPMENT,WALSALL CRISIS SUPPORT SCHEME,Supplies & Services,Revenue
Walsall Council,http://opendatacommunities.org/id/metropolitan-district-council/walsall,WC92-572,31/05/2018,Resources and Transformation,BORSHCH LTD,16/05/2018,433.33,60000-FURNITURE & EQUIPMENT,WALSALL CRISIS SUPPORT SCHEME,Supplies & Services,Revenue
Walsall Council,http://opendatacommunities.org/id/metropolitan-district-council/walsall,WC92-573,31/05/2018,Resources and Transformation,BORSHCH LTD,16/05/2018,433.33,60000-FURNITURE & EQUIPMENT,WALSALL CRISIS SUPPORT SCHEME,Supplies & Services,Revenue
Walsall Council,http://opendatacommunities.org/id/metropolitan-district-council/walsall,WC92-574,31/05/2018,Resources and Transformation,BORSHCH LTD,17/05/2018,433.33,60000-FURNITURE & EQUIPMENT,WALSALL CRISIS SUPPORT SCHEME,Supplies & Services,Revenue
Walsall Council,http://opendatacommunities.org/id/metropolitan-district-council/walsall,WC92-575,31/05/2018,Resources and Transformation,BORSHCH LTD,17/05/2018,433.33,60000-FURNITURE & EQUIPMENT,WALSALL CRISIS SUPPORT SCHEME,Supplies & Services,Revenue
Walsall Council,http://opendatacommunities.org/id/metropolitan-district-council/walsall,WC92-576,31/05/2018,Resources and Transformation,BORSHCH LTD,17/05/2018,433.33,60000-FURNITURE & EQUIPMENT,WALSALL CRISIS SUPPORT SCHEME,Supplies & Services,Revenue
Walsall Council,http://opendatacommunities.org/id/metropolitan-district-council/walsall,WC92-577,31/05/2018,Resources and Transformation,BORSHCH LTD,21/05/2018,433.33,60000-FURNITURE & EQUIPMENT,WALSALL CRISIS SUPPORT SCHEME,Supplies & Services,Revenue
Walsall Council,http://opendatacommunities.org/id/metropolitan-district-council/walsall,WC92-578,31/05/2018,Resources and Transformation,BORSHCH LTD,25/05/2018,433.33,60000-FURNITURE & EQUIPMENT,WALSALL CRISIS SUPPORT SCHEME,Supplies & Services,Revenue
Walsall Council,http://opendatacommunities.org/id/metropolitan-district-council/walsall,WC92-579,31/05/2018,Resources and Transformation,BORSHCH LTD,30/05/2018,433.33,60000-FURNITURE & EQUIPMENT,WALSALL CRISIS SUPPORT SCHEME,Supplies & Services,Revenue
Walsall Council,http://opendatacommunities.org/id/metropolitan-district-council/walsall,WC92-580,31/05/2018,Adult Social Care,BOWDEN DERRA PARK,16/05/2018,"10,835.24",73373-RESIDENTIAL & NURSING CARE PLACEMENTS,LD PACKAGE/PLACEMENT COSTS,Third Party Payments,Revenue
Walsall Council,http://opendatacommunities.org/id/metropolitan-district-council/walsall,WC92-581,31/05/2018,Adult Social Care,BOWDEN DERRA PARK,22/05/2018,"11,041.12",73373-RESIDENTIAL & NURSING CARE PLACEMENTS,LD PACKAGE/PLACEMENT COSTS,Third Party Payments,Revenue
Walsall Council,http://opendatacommunities.org/id/metropolitan-district-council/walsall,WC92-582,31/05/2018,Economy & Environment,BRADVALE LTD T/A INSPIRE HEALTHCARE SERVICES,10/05/2018,288.88,60008-MAINTENANCE-FURNITURE & EQUIPMENT,WALSALL GALA CENTRE,Supplies & Services,Revenue
Walsall Council,http://opendatacommunities.org/id/metropolitan-district-council/walsall,WC92-583,31/05/2018,Economy & Environment,BRADVALE LTD T/A INSPIRE HEALTHCARE SERVICES,11/05/2018,358.17,60500-GENERAL MATERIALS,ARBORETUM VISITOR CENTRE,Supplies & Services,Revenue
Walsall Council,http://opendatacommunities.org/id/metropolitan-district-council/walsall,WC92-584,31/05/2018,Economy & Environment,BRADVALE LTD T/A INSPIRE HEALTHCARE SERVICES,11/05/2018,612.25,60500-GENERAL MATERIALS,ARBORETUM VISITOR CENTRE,Supplies & Services,Revenue
Walsall Council,http://opendatacommunities.org/id/metropolitan-district-council/walsall,WC92-585,31/05/2018,Economy & Environment,BRADVALE LTD T/A INSPIRE HEALTHCARE SERVICES,11/05/2018,612.25,60500-GENERAL MATERIALS,ARBORETUM VISITOR CENTRE,Supplies & Services,Revenue
Walsall Council,http://opendatacommunities.org/id/metropolitan-district-council/walsall,WC92-586,31/05/2018,Economy & Environment,BRADVALE LTD T/A INSPIRE HEALTHCARE SERVICES,23/05/2018,"1,827.95",73025-PROFESSIONAL SERVICES-PRIV CONTRACTOR & OTHER AGENCIES,DEPOT,Third Party Payments,Revenue
Walsall Council,http://opendatacommunities.org/id/metropolitan-district-council/walsall,WC92-587,31/05/2018,Resources and Transformation,BRAMBLE HUB LIMITED,09/05/2018,"76,509.40",63800-COMPUTER EQUIPMENT AND SUPPLIES,FINANCIAL SYSTEMS,Supplies & Services,Revenue
Walsall Council,http://opendatacommunities.org/id/metropolitan-district-council/walsall,WC92-588,31/05/2018,Economy & Environment,BREAKTHRU CIC,02/05/2018,"7,230.50",66500-GRANTS TO OTHER ORGS,ESF COMMUNITY GRANTS,Third Party Payments,Revenue
Walsall Council,http://opendatacommunities.org/id/metropolitan-district-council/walsall,WC92-589,31/05/2018,Resources and Transformation,BRELMAYNE LTD,25/05/2018,332.50,60008-MAINTENANCE-FURNITURE & EQUIPMENT,CENTRAL OFFICE ACCOMMODATION,Supplies & Services,Revenue
Walsall Council,http://opendatacommunities.org/id/metropolitan-district-council/walsall,WC92-590,31/05/2018,Childrens,BRELMAYNE LTD,30/05/2018,600.00,01006-SITE WORKS MAIN CONTRACTORS,CFR 1193 FULLBROOK NURSERY - REPLACEMENT BOILER HOUSE PLANT,Capital,Capital
Walsall Council,http://opendatacommunities.org/id/metropolitan-district-council/walsall,WC92-591,31/05/2018,Resources and Transformation,BRELMAYNE LTD,01/05/2018,650.00,01044-PURCHASE OF FURNITURE & EQUIPMENT,CFR 1190 SCHOOLS PROJECT,Capital,Capital
Walsall Council,http://opendatacommunities.org/id/metropolitan-district-council/walsall,WC92-592,31/05/2018,Economy & Environment,BRELMAYNE LTD,21/05/2018,780.00,60008-MAINTENANCE-FURNITURE & EQUIPMENT,FOREST ARTS CENTRE,Supplies & Services,Revenue
Walsall Council,http://opendatacommunities.org/id/metropolitan-district-council/walsall,WC92-593,31/05/2018,Resources and Transformation,BRELMAYNE LTD,01/05/2018,"7,519.00",01044-PURCHASE OF FURNITURE & EQUIPMENT,CFR 1190 SCHOOLS PROJECT,Capital,Capital
Walsall Council,http://opendatacommunities.org/id/metropolitan-district-council/walsall,WC92-594,31/05/2018,Adult Social Care,REDACTED,08/05/2018,440.00,76422-DIRECT PAYMENTS TO SOCIAL SERVICES CLIENTS,LD PACKAGE/PLACEMENT COSTS,Transfer Payments,Revenue
Walsall Council,http://opendatacommunities.org/id/metropolitan-district-council/walsall,WC92-595,31/05/2018,Childrens,REDACTED,18/05/2018,720.00,74501-MAINTENANCE ALLOWANCE-FOSTER CARERS,INTERNAL FOSTER CARE PROVISION,Transfer Payments,Revenue
Walsall Council,http://opendatacommunities.org/id/metropolitan-district-council/walsall,WC92-596,31/05/2018,Childrens,REDACTED,18/05/2018,720.00,74501-MAINTENANCE ALLOWANCE-FOSTER CARERS,INTERNAL FOSTER CARE PROVISION,Transfer Payments,Revenue
Walsall Council,http://opendatacommunities.org/id/metropolitan-district-council/walsall,WC92-597,31/05/2018,Childrens,REDACTED,18/05/2018,"1,600.00",74508-INTERNAL FOSTER CARERS-CARER FEES,INTERNAL FOSTER CARE PROVISION,Transfer Payments,Revenue
Walsall Council,http://opendatacommunities.org/id/metropolitan-district-council/walsall,WC92-598,31/05/2018,Economy & Environment,BRENNTAG UK LIMITED,03/05/2018,399.39,60503-CHEMICALS & SCIENTIFIC MATS-MATERIALS,OAK PARK,Supplies & Services,Revenue
Walsall Council,http://opendatacommunities.org/id/metropolitan-district-council/walsall,WC92-599,31/05/2018,Economy & Environment,BRENNTAG UK LIMITED,09/05/2018,399.39,60503-CHEMICALS & SCIENTIFIC MATS-MATERIALS,OAK PARK,Supplies & Services,Revenue
Walsall Council,http://opendatacommunities.org/id/metropolitan-district-council/walsall,WC92-600,31/05/2018,Economy & Environment,BRENNTAG UK LIMITED,16/05/2018,399.39,60503-CHEMICALS & SCIENTIFIC MATS-MATERIALS,BLOXWICH LEISURE CENTRE,Supplies & Services,Revenue
Walsall Council,http://opendatacommunities.org/id/metropolitan-district-council/walsall,WC92-601,31/05/2018,Economy & Environment,BRENNTAG UK LIMITED,24/05/2018,399.39,60503-CHEMICALS & SCIENTIFIC MATS-MATERIALS,OAK PARK,Supplies & Services,Revenue
Walsall Council,http://opendatacommunities.org/id/metropolitan-district-council/walsall,WC92-602,31/05/2018,Economy & Environment,BRENNTAG UK LIMITED,18/05/2018,642.24,50301-FUEL-TRANSPORT RUN COSTS,FUEL STOCK ACCOUNT,Transport,Revenue
Walsall Council,http://opendatacommunities.org/id/metropolitan-district-council/walsall,WC92-603,31/05/2018,Adult Social Care,REDACTED,04/05/2018,"1,337.64",73372-DOMICILIARY CARE,LD PACKAGE/PLACEMENT COSTS,Third Party Payments,Revenue
Walsall Council,http://opendatacommunities.org/id/metropolitan-district-council/walsall,WC92-604,31/05/2018,Adult Social Care,REDACTED,04/05/2018,"1,597.60",73372-DOMICILIARY CARE,LD PACKAGE/PLACEMENT COSTS,Third Party Payments,Revenue
Walsall Council,http://opendatacommunities.org/id/metropolitan-district-council/walsall,WC92-605,31/05/2018,Adult Social Care,REDACTED,08/05/2018,"1,428.00",76422-DIRECT PAYMENTS TO SOCIAL SERVICES CLIENTS,OP PACKAGE/PLACEMENT COSTS,Transfer Payments,Revenue
Walsall Council,http://opendatacommunities.org/id/metropolitan-district-council/walsall,WC92-606,31/05/2018,Adult Social Care,REDACTED,08/05/2018,836.40,76422-DIRECT PAYMENTS TO SOCIAL SERVICES CLIENTS,OP PACKAGE/PLACEMENT COSTS,Transfer Payments,Revenue
Walsall Council,http://opendatacommunities.org/id/metropolitan-district-council/walsall,WC92-607,31/05/2018,Adult Social Care,BRIDGEWOOD HEALTH CARE LTD,08/05/2018,"5,688.24",73373-RESIDENTIAL & NURSING CARE PLACEMENTS,PD PACKAGE/PLACEMENT COSTS,Third Party Payments,Revenue
Walsall Council,http://opendatacommunities.org/id/metropolitan-district-council/walsall,WC92-608,31/05/2018,Childrens,BRIGHT HORIZONS (BANSTEAD DAY NURSERY AND PRESCHOOL),16/05/2018,"1,026.95",32000-MISC FEES AND EXPENSES,SAFEGUARDING & FAMILY SUPPORT,Employees,Revenue
Walsall Council,http://opendatacommunities.org/id/metropolitan-district-council/walsall,WC92-609,31/05/2018,Childrens,BRIGHT HORIZONS (BANSTEAD DAY NURSERY AND PRESCHOOL),16/05/2018,"1,026.95",32000-MISC FEES AND EXPENSES,SAFEGUARDING & FAMILY SUPPORT,Employees,Revenue
Walsall Council,http://opendatacommunities.org/id/metropolitan-district-council/walsall,WC92-610,31/05/2018,Resources and Transformation,BRISTOW & SUTOR,04/05/2018,337.34,73014-LEGAL FEES-PRIV CONTRACTOR FEES,REVENUES,Third Party Payments,Revenue
Walsall Council,http://opendatacommunities.org/id/metropolitan-district-council/walsall,WC92-611,31/05/2018,Resources and Transformation,BRITISH MUSLIM YOUTH GROUP,21/05/2018,"2,000.00",30030-EXTERNAL TRAINING,PREVENT GRANT,Employees,Revenue
Walsall Council,http://opendatacommunities.org/id/metropolitan-district-council/walsall,WC92-612,31/05/2018,Resources and Transformation,BRITISH MUSLIM YOUTH GROUP,21/05/2018,"2,000.00",30030-EXTERNAL TRAINING,PREVENT GRANT,Employees,Revenue
Walsall Council,http://opendatacommunities.org/id/metropolitan-district-council/walsall,WC92-613,31/05/2018,Childrens,BRITISH MUSLIM YOUTH GROUP,18/05/2018,"10,177.11",66500-GRANTS TO OTHER ORGS,TARGETED YOUTH WORK - COMMISSIONED,Third Party Payments,Revenue
Walsall Council,http://opendatacommunities.org/id/metropolitan-district-council/walsall,WC92-614,31/05/2018,Adult Social Care,BROADWAY HALLS CARE HOME,16/05/2018,"1,971.43",73373-RESIDENTIAL & NURSING CARE PLACEMENTS,OP PACKAGE/PLACEMENT COSTS,Third Party Payments,Revenue
Walsall Council,http://opendatacommunities.org/id/metropolitan-district-council/walsall,WC92-615,31/05/2018,Resources and Transformation,BROADWAY UNITED REFORMED CHURCH,16/05/2018,430.00,63128-HIRE OF ROOM-SERVICES-FEES,ELECTORAL ADMINISTRATION,Supplies & Services,Revenue
Walsall Council,http://opendatacommunities.org/id/metropolitan-district-council/walsall,WC92-616,31/05/2018,Holding Accounts,BROWNE JACOBSON SOLICITORS,21/05/2018,701.60,67001-MISC INSURANCES - PAYMENT OF CLAIMS,PUBLIC LIABILITY,Supplies & Services,Revenue
Walsall Council,http://opendatacommunities.org/id/metropolitan-district-council/walsall,WC92-617,31/05/2018,Holding Accounts,BROWNE JACOBSON SOLICITORS,11/05/2018,714.40,67001-MISC INSURANCES - PAYMENT OF CLAIMS,PUBLIC LIABILITY,Supplies & Services,Revenue
Walsall Council,http://opendatacommunities.org/id/metropolitan-district-council/walsall,WC92-618,31/05/2018,Holding Accounts,BROWNE JACOBSON SOLICITORS,17/05/2018,"1,053.60",67001-MISC INSURANCES - PAYMENT OF CLAIMS,PUBLIC LIABILITY,Supplies & Services,Revenue
Walsall Council,http://opendatacommunities.org/id/metropolitan-district-council/walsall,WC92-619,31/05/2018,Economy & Environment,BROWNHILLS ASPHALT & TARMAC LIMITED,30/05/2018,250.00,"40000-REPAIRS,ALTERATIONS & MAINTENANCE-PREM",INFRASTRUCTURE MAINTENANCE,Premises,Revenue
Walsall Council,http://opendatacommunities.org/id/metropolitan-district-council/walsall,WC92-620,31/05/2018,Economy & Environment,BROWNHILLS ASPHALT & TARMAC LIMITED,30/05/2018,600.00,73025-PROFESSIONAL SERVICES-PRIV CONTRACTOR & OTHER AGENCIES,DEPOT,Third Party Payments,Revenue
Walsall Council,http://opendatacommunities.org/id/metropolitan-district-council/walsall,WC92-621,31/05/2018,Economy & Environment,BROWNHILLS ASPHALT & TARMAC LIMITED,30/05/2018,780.00,"40000-REPAIRS,ALTERATIONS & MAINTENANCE-PREM",INFRASTRUCTURE MAINTENANCE,Premises,Revenue
Walsall Council,http://opendatacommunities.org/id/metropolitan-district-council/walsall,WC92-622,31/05/2018,Childrens,BROWNHILLS ASPHALT & TARMAC LIMITED,24/05/2018,"1,600.00",01006-SITE WORKS MAIN CONTRACTORS,CFR 1137 MEADOW VIEW PRIMARY EXPANSION,Capital,Capital
Walsall Council,http://opendatacommunities.org/id/metropolitan-district-council/walsall,WC92-623,31/05/2018,Childrens,BROWNHILLS COMMUNITY ASSOCIATION,10/05/2018,459.00,63120-CRECHE FACILITIES-SERVICES-FEES,FAMILY PLACEMENTS,Supplies & Services,Revenue
Walsall Council,http://opendatacommunities.org/id/metropolitan-district-council/walsall,WC92-624,31/05/2018,Childrens,BROWNHILLS COMMUNITY ASSOCIATION,10/05/2018,612.00,63120-CRECHE FACILITIES-SERVICES-FEES,FAMILY PLACEMENTS,Supplies & Services,Revenue
Walsall Council,http://opendatacommunities.org/id/metropolitan-district-council/walsall,WC92-625,31/05/2018,Childrens,BROWNHILLS COMMUNITY ASSOCIATION,10/05/2018,612.00,63120-CRECHE FACILITIES-SERVICES-FEES,FAMILY PLACEMENTS,Supplies & Services,Revenue
Walsall Council,http://opendatacommunities.org/id/metropolitan-district-council/walsall,WC92-626,31/05/2018,Childrens,BROWNHILLS COMMUNITY ASSOCIATION,23/05/2018,612.00,63120-CRECHE FACILITIES-SERVICES-FEES,FAMILY PLACEMENTS,Supplies & Services,Revenue
Walsall Council,http://opendatacommunities.org/id/metropolitan-district-council/walsall,WC92-627,31/05/2018,Childrens,BROWNHILLS COMMUNITY ASSOCIATION,10/05/2018,714.00,63120-CRECHE FACILITIES-SERVICES-FEES,FAMILY PLACEMENTS,Supplies & Services,Revenue
Walsall Council,http://opendatacommunities.org/id/metropolitan-district-council/walsall,WC92-628,31/05/2018,Economy & Environment,BROWNHILLS COMMUNITY ASSOCIATION,11/05/2018,851.50,63253-PAYMENT TO CONTRACTOR,MENTAL HEALTH,Third Party Payments,Revenue
Walsall Council,http://opendatacommunities.org/id/metropolitan-district-council/walsall,WC92-629,31/05/2018,Resources and Transformation,BROWNHILLS COMMUNITY ASSOCIATION,24/05/2018,"2,930.00",01006-SITE WORKS MAIN CONTRACTORS,CFR 1255 COMMUNITY ASSOCIATION REFURBISHMENTS,Capital,Capital
Walsall Council,http://opendatacommunities.org/id/metropolitan-district-council/walsall,WC92-630,31/05/2018,Resources and Transformation,BROWNHILLS COMMUNITY ASSOCIATION,25/05/2018,"10,000.00",63102-CONSULTANTS FEES - CORPORATE,BROWNHILLS COMMUNITY ASSOCIATION,Supplies & Services,Revenue
Walsall Council,http://opendatacommunities.org/id/metropolitan-district-council/walsall,WC92-631,31/05/2018,Resources and Transformation,BROWNHILLS PARISH CHURCH,16/05/2018,256.00,63128-HIRE OF ROOM-SERVICES-FEES,ELECTORAL ADMINISTRATION,Supplies & Services,Revenue
Walsall Council,http://opendatacommunities.org/id/metropolitan-district-council/walsall,WC92-632,31/05/2018,Economy & Environment,BROXAP LTD,02/05/2018,"1,102.00",60006-NEW-FURNITURE & EQUIPMENT,ARBORETUM,Supplies & Services,Revenue
Walsall Council,http://opendatacommunities.org/id/metropolitan-district-council/walsall,WC92-633,31/05/2018,Adult Social Care,REDACTED,08/05/2018,"1,713.60",76422-DIRECT PAYMENTS TO SOCIAL SERVICES CLIENTS,LD PACKAGE/PLACEMENT COSTS,Transfer Payments,Revenue
Walsall Council,http://opendatacommunities.org/id/metropolitan-district-council/walsall,WC92-634,31/05/2018,Resources and Transformation,REDACTED,11/05/2018,300.00,"40000-REPAIRS,ALTERATIONS & MAINTENANCE-PREM",WALSALL TOWN HALL,Premises,Revenue
Walsall Council,http://opendatacommunities.org/id/metropolitan-district-council/walsall,WC92-635,31/05/2018,Resources and Transformation,B-SURE SECURITY SERVICES LTD,11/05/2018,"2,595.00","40000-REPAIRS,ALTERATIONS & MAINTENANCE-PREM",WALSALL TOWN HALL,Premises,Revenue
Walsall Council,http://opendatacommunities.org/id/metropolitan-district-council/walsall,WC92-636,31/05/2018,Economy & Environment,BT,17/05/2018,289.45,63602-COST OF RENTAL-TELEPHONES,FOREST ARTS CENTRE,Supplies & Services,Revenue
Walsall Council,http://opendatacommunities.org/id/metropolitan-district-council/walsall,WC92-637,31/05/2018,Resources and Transformation,BT,11/05/2018,712.00,63603-COST OF CALLS-TELEPHONES,PROCESSING,Supplies & Services,Revenue
Walsall Council,http://opendatacommunities.org/id/metropolitan-district-council/walsall,WC92-638,31/05/2018,Childrens,BT PLC,25/05/2018,391.21,63603-COST OF CALLS-TELEPHONES,LOCALITY FAMILY SUPPORT-WEST,Supplies & Services,Revenue
Walsall Council,http://opendatacommunities.org/id/metropolitan-district-council/walsall,WC92-639,31/05/2018,Resources and Transformation,BT PLC,04/05/2018,"1,268.35",63807-COMMS LINKS-COMPUTER,NETWORKS,Supplies & Services,Revenue
Walsall Council,http://opendatacommunities.org/id/metropolitan-district-council/walsall,WC92-640,31/05/2018,Resources and Transformation,BT PLC,25/05/2018,"1,268.35",63807-COMMS LINKS-COMPUTER,NETWORKS,Supplies & Services,Revenue
Walsall Council,http://opendatacommunities.org/id/metropolitan-district-council/walsall,WC92-641,31/05/2018,Resources and Transformation,BT PLC,04/05/2018,"1,399.62",63800-COMPUTER EQUIPMENT AND SUPPLIES,RECHARGEABLE EQUIPMENT,Supplies & Services,Revenue
Walsall Council,http://opendatacommunities.org/id/metropolitan-district-council/walsall,WC92-642,31/05/2018,Resources and Transformation,BT PLC,23/05/2018,"1,539.97",63601-COSTS (NOT INTERNAL RECHARGES)-TELEPHONES,CENTRAL COMMUNICATIONS RECHARGES,Supplies & Services,Revenue
Walsall Council,http://opendatacommunities.org/id/metropolitan-district-council/walsall,WC92-643,31/05/2018,Resources and Transformation,BT PLC,21/05/2018,"2,172.00",63807-COMMS LINKS-COMPUTER,SIT-INFRASTRUCTURE,Supplies & Services,Revenue
Walsall Council,http://opendatacommunities.org/id/metropolitan-district-council/walsall,WC92-644,31/05/2018,Economy & Environment,BT PLC,02/05/2018,"9,962.50",63601-COSTS (NOT INTERNAL RECHARGES)-TELEPHONES,TRAFFIC CONTROL,Supplies & Services,Revenue
Walsall Council,http://opendatacommunities.org/id/metropolitan-district-council/walsall,WC92-645,31/05/2018,Resources and Transformation,BT PLC,21/05/2018,"14,701.28",63601-COSTS (NOT INTERNAL RECHARGES)-TELEPHONES,CENTRAL COMMUNICATIONS RECHARGES,Supplies & Services,Revenue
Walsall Council,http://opendatacommunities.org/id/metropolitan-district-council/walsall,WC92-646,31/05/2018,Resources and Transformation,BT REDCARE,11/05/2018,"26,968.60",62515-MISCELLANEOUS SUPPLIES,CCTV,Supplies & Services,Revenue
Walsall Council,http://opendatacommunities.org/id/metropolitan-district-council/walsall,WC92-647,31/05/2018,Resources and Transformation,BT REDCARE,11/05/2018,"62,177.00",62515-MISCELLANEOUS SUPPLIES,CCTV,Supplies & Services,Revenue
Walsall Council,http://opendatacommunities.org/id/metropolitan-district-council/walsall,WC92-648,31/05/2018,Adult Social Care,BUNZIL HEALTHCARE T/A CARESHOP,24/05/2018,604.80,60539-CLEANING MATERIALS,COMMUNITY INTERMEDIATE CARE,Supplies & Services,Revenue
Walsall Council,http://opendatacommunities.org/id/metropolitan-district-council/walsall,WC92-649,31/05/2018,Adult Social Care,BUNZIL HEALTHCARE T/A CARESHOP,24/05/2018,681.13,60539-CLEANING MATERIALS,HOLLYBANK,Supplies & Services,Revenue
Walsall Council,http://opendatacommunities.org/id/metropolitan-district-council/walsall,WC92-650,31/05/2018,Adult Social Care,BUPA CARE HOMES (CFHCARE) LTD,22/05/2018,"2,200.00",73373-RESIDENTIAL & NURSING CARE PLACEMENTS,OP PACKAGE/PLACEMENT COSTS,Third Party Payments,Revenue
Walsall Council,http://opendatacommunities.org/id/metropolitan-district-council/walsall,WC92-651,31/05/2018,Adult Social Care,BUPA CARE HOMES (CFHCARE) LTD,22/05/2018,"2,400.00",73373-RESIDENTIAL & NURSING CARE PLACEMENTS,OP PACKAGE/PLACEMENT COSTS,Third Party Payments,Revenue
Walsall Council,http://opendatacommunities.org/id/metropolitan-district-council/walsall,WC92-652,31/05/2018,Adult Social Care,BUSH HOME LTD,01/05/2018,"1,774.29",73373-RESIDENTIAL & NURSING CARE PLACEMENTS,OP PACKAGE/PLACEMENT COSTS,Third Party Payments,Revenue
Walsall Council,http://opendatacommunities.org/id/metropolitan-district-council/walsall,WC92-653,31/05/2018,Adult Social Care,BUSH HOME LTD,29/05/2018,"2,602.28",73373-RESIDENTIAL & NURSING CARE PLACEMENTS,OP PACKAGE/PLACEMENT COSTS,Third Party Payments,Revenue
Walsall Council,http://opendatacommunities.org/id/metropolitan-district-council/walsall,WC92-654,31/05/2018,Childrens,BUSY BEES CHILDCARE LTD,31/05/2018,"1,021.80",66505-OTHER-GRANTS TO OTHER ORGS,EARLY YEARS - 2 YR OLDS,Third Party Payments,Revenue
Walsall Council,http://opendatacommunities.org/id/metropolitan-district-council/walsall,WC92-655,31/05/2018,Childrens,BY THE BRIDGE,18/05/2018,"3,996.00",74037-INDEPENDENT FOSTER CARE-OTH AGENCY PROVISION,EXTERNAL FOSTER CARE PROVISION,Third Party Payments,Revenue
Walsall Council,http://opendatacommunities.org/id/metropolitan-district-council/walsall,WC92-656,31/05/2018,Economy & Environment,C ART ART TRANSPORT LTD,18/05/2018,905.00,63000-PROFESSIONAL FEES AND SERVICES,NAG - GARMAN RYAN/PERMANENT COLLECTION,Supplies & Services,Revenue
Walsall Council,http://opendatacommunities.org/id/metropolitan-district-council/walsall,WC92-657,31/05/2018,Childrens,REDACTED,18/05/2018,720.00,74501-MAINTENANCE ALLOWANCE-FOSTER CARERS,INTERNAL FOSTER CARE PROVISION,Transfer Payments,Revenue
Walsall Council,http://opendatacommunities.org/id/metropolitan-district-council/walsall,WC92-658,31/05/2018,Childrens,REDACTED,18/05/2018,720.00,74501-MAINTENANCE ALLOWANCE-FOSTER CARERS,INTERNAL FOSTER CARE PROVISION,Transfer Payments,Revenue
Walsall Council,http://opendatacommunities.org/id/metropolitan-district-council/walsall,WC92-659,31/05/2018,Childrens,REDACTED,18/05/2018,720.00,74501-MAINTENANCE ALLOWANCE-FOSTER CARERS,INTERNAL FOSTER CARE PROVISION,Transfer Payments,Revenue
Walsall Council,http://opendatacommunities.org/id/metropolitan-district-council/walsall,WC92-660,31/05/2018,Childrens,REDACTED,18/05/2018,860.00,74501-MAINTENANCE ALLOWANCE-FOSTER CARERS,INTERNAL FOSTER CARE PROVISION,Transfer Payments,Revenue
Walsall Council,http://opendatacommunities.org/id/metropolitan-district-council/walsall,WC92-661,31/05/2018,Childrens,REDACTED,18/05/2018,"3,600.00",74508-INTERNAL FOSTER CARERS-CARER FEES,INTERNAL FOSTER CARE PROVISION,Transfer Payments,Revenue
Walsall Council,http://opendatacommunities.org/id/metropolitan-district-council/walsall,WC92-662,31/05/2018,Childrens,REDACTED,18/05/2018,360.00,74504-HOLIDAY/CHRISTMAS ALLOWANCE-FOSTER CARERS,INTERNAL FOSTER CARE PROVISION,Transfer Payments,Revenue
Walsall Council,http://opendatacommunities.org/id/metropolitan-district-council/walsall,WC92-663,31/05/2018,Childrens,REDACTED,18/05/2018,430.00,74504-HOLIDAY/CHRISTMAS ALLOWANCE-FOSTER CARERS,INTERNAL FOSTER CARE PROVISION,Transfer Payments,Revenue
Walsall Council,http://opendatacommunities.org/id/metropolitan-district-council/walsall,WC92-664,31/05/2018,Childrens,REDACTED,18/05/2018,720.00,74501-MAINTENANCE ALLOWANCE-FOSTER CARERS,INTERNAL FOSTER CARE PROVISION,Transfer Payments,Revenue
Walsall Council,http://opendatacommunities.org/id/metropolitan-district-council/walsall,WC92-665,31/05/2018,Childrens,REDACTED,18/05/2018,860.00,74501-MAINTENANCE ALLOWANCE-FOSTER CARERS,INTERNAL FOSTER CARE PROVISION,Transfer Payments,Revenue
Walsall Council,http://opendatacommunities.org/id/metropolitan-district-council/walsall,WC92-666,31/05/2018,Childrens,REDACTED,18/05/2018,"1,600.00",74508-INTERNAL FOSTER CARERS-CARER FEES,INTERNAL FOSTER CARE PROVISION,Transfer Payments,Revenue
Walsall Council,http://opendatacommunities.org/id/metropolitan-district-council/walsall,WC92-667,31/05/2018,Economy & Environment,C P DAVIDSON & SONS LTD,23/05/2018,"2,339.63",60500-GENERAL MATERIALS,FLEET,Supplies & Services,Revenue
Walsall Council,http://opendatacommunities.org/id/metropolitan-district-council/walsall,WC92-668,31/05/2018,Childrens,REDACTED,08/05/2018,600.00,74501-MAINTENANCE ALLOWANCE-FOSTER CARERS,FAMILY & FRIENDS FOSTER CARE PROVISION,Transfer Payments,Revenue
Walsall Council,http://opendatacommunities.org/id/metropolitan-district-council/walsall,WC92-669,31/05/2018,Childrens,REDACTED,08/05/2018,600.00,74501-MAINTENANCE ALLOWANCE-FOSTER CARERS,FAMILY & FRIENDS FOSTER CARE PROVISION,Transfer Payments,Revenue
Walsall Council,http://opendatacommunities.org/id/metropolitan-district-council/walsall,WC92-670,31/05/2018,Resources and Transformation,CAE TECHNOLOGY SERVICES LTD,30/05/2018,"29,403.56",63820-RECHARGE FOR MAINTENANCE/APPLICATION COSTS-COMPUTER,RECHARGEABLE EQUIPMENT,Supplies & Services,Revenue
Walsall Council,http://opendatacommunities.org/id/metropolitan-district-council/walsall,WC92-671,31/05/2018,Adult Social Care,CALDENE  REST HOME,01/05/2018,"1,688.84",73373-RESIDENTIAL & NURSING CARE PLACEMENTS,OP PACKAGE/PLACEMENT COSTS,Third Party Payments,Revenue
Walsall Council,http://opendatacommunities.org/id/metropolitan-district-council/walsall,WC92-672,31/05/2018,Adult Social Care,CALDMORE AREA HOUSING ASS LTD,01/05/2018,633.26,73373-RESIDENTIAL & NURSING CARE PLACEMENTS,MENTAL HEALTH PACKAGE/PLACEMENT COSTS,Third Party Payments,Revenue
Walsall Council,http://opendatacommunities.org/id/metropolitan-district-council/walsall,WC92-673,31/05/2018,Adult Social Care,CALDMORE AREA HOUSING ASS LTD,01/05/2018,639.12,73373-RESIDENTIAL & NURSING CARE PLACEMENTS,MENTAL HEALTH PACKAGE/PLACEMENT COSTS,Third Party Payments,Revenue
Walsall Council,http://opendatacommunities.org/id/metropolitan-district-council/walsall,WC92-674,31/05/2018,Adult Social Care,CALDMORE AREA HOUSING ASS LTD,16/05/2018,"2,613.24",73373-RESIDENTIAL & NURSING CARE PLACEMENTS,MENTAL HEALTH PACKAGE/PLACEMENT COSTS,Third Party Payments,Revenue
Walsall Council,http://opendatacommunities.org/id/metropolitan-district-council/walsall,WC92-675,31/05/2018,Adult Social Care,CALDMORE AREA HOUSING ASS LTD,16/05/2018,"2,613.24",73373-RESIDENTIAL & NURSING CARE PLACEMENTS,MENTAL HEALTH PACKAGE/PLACEMENT COSTS,Third Party Payments,Revenue
Walsall Council,http://opendatacommunities.org/id/metropolitan-district-council/walsall,WC92-676,31/05/2018,Adult Social Care,CALDMORE AREA HOUSING ASS LTD,16/05/2018,"2,613.24",73373-RESIDENTIAL & NURSING CARE PLACEMENTS,MENTAL HEALTH PACKAGE/PLACEMENT COSTS,Third Party Payments,Revenue
Walsall Council,http://opendatacommunities.org/id/metropolitan-district-council/walsall,WC92-677,31/05/2018,Adult Social Care,CALDMORE AREA HOUSING ASS LTD,16/05/2018,"2,613.24",73373-RESIDENTIAL & NURSING CARE PLACEMENTS,MENTAL HEALTH PACKAGE/PLACEMENT COSTS,Third Party Payments,Revenue
Walsall Council,http://opendatacommunities.org/id/metropolitan-district-council/walsall,WC92-678,31/05/2018,Adult Social Care,CALDMORE AREA HOUSING ASS LTD,16/05/2018,"2,613.24",73373-RESIDENTIAL & NURSING CARE PLACEMENTS,MENTAL HEALTH PACKAGE/PLACEMENT COSTS,Third Party Payments,Revenue
Walsall Council,http://opendatacommunities.org/id/metropolitan-district-council/walsall,WC92-679,31/05/2018,Adult Social Care,CALDMORE AREA HOUSING ASS LTD,16/05/2018,"2,613.24",73373-RESIDENTIAL & NURSING CARE PLACEMENTS,MENTAL HEALTH PACKAGE/PLACEMENT COSTS,Third Party Payments,Revenue
Walsall Council,http://opendatacommunities.org/id/metropolitan-district-council/walsall,WC92-680,31/05/2018,Adult Social Care,CALDMORE AREA HOUSING ASS LTD,16/05/2018,"2,613.24",73373-RESIDENTIAL & NURSING CARE PLACEMENTS,MENTAL HEALTH PACKAGE/PLACEMENT COSTS,Third Party Payments,Revenue
Walsall Council,http://opendatacommunities.org/id/metropolitan-district-council/walsall,WC92-681,31/05/2018,Adult Social Care,CALDMORE AREA HOUSING ASS LTD,01/05/2018,"3,173.22",73373-RESIDENTIAL & NURSING CARE PLACEMENTS,MENTAL HEALTH PACKAGE/PLACEMENT COSTS,Third Party Payments,Revenue
Walsall Council,http://opendatacommunities.org/id/metropolitan-district-council/walsall,WC92-682,31/05/2018,Childrens,CALDMORE PRIMARY ACADEMY,01/05/2018,"1,036.18",66502-TOP UP FUNDING -GRANTS TO SCHOOLS,CALDMORE PRIMARY ACADEMY,Third Party Payments,Revenue
Walsall Council,http://opendatacommunities.org/id/metropolitan-district-council/walsall,WC92-683,31/05/2018,Economy & Environment,CALDMORE VILLAGE FESTIVAL GROUP,10/05/2018,617.50,63253-PAYMENT TO CONTRACTOR,MENTAL HEALTH,Third Party Payments,Revenue
Walsall Council,http://opendatacommunities.org/id/metropolitan-district-council/walsall,WC92-684,31/05/2018,Childrens,REDACTED,08/05/2018,375.88,74510-RESIDENTS ORDERS,ADOPTION ALLOWANCES,Third Party Payments,Revenue
Walsall Council,http://opendatacommunities.org/id/metropolitan-district-council/walsall,WC92-685,31/05/2018,Adult Social Care,REDACTED,08/05/2018,"1,170.20",76422-DIRECT PAYMENTS TO SOCIAL SERVICES CLIENTS,LD PACKAGE/PLACEMENT COSTS,Transfer Payments,Revenue
Walsall Council,http://opendatacommunities.org/id/metropolitan-district-council/walsall,WC92-686,31/05/2018,Childrens,CAMBIAN CHILDCARE LIMITED,22/05/2018,"3,528.49",74036-EXTERNAL RESIDENTIAL CARE-OTH AGENCY PROVISION,INDEPENDENT RESIDENTIAL HOMES,Third Party Payments,Revenue
Walsall Council,http://opendatacommunities.org/id/metropolitan-district-council/walsall,WC92-687,31/05/2018,Childrens,CAMBIAN WHINFELL SCHOOLS LTD,18/05/2018,"4,788.42",66502-TOP UP FUNDING -GRANTS TO SCHOOLS,INDEPENDENT PROVIDERS - SPECIAL & AP,Third Party Payments,Revenue
Walsall Council,http://opendatacommunities.org/id/metropolitan-district-council/walsall,WC92-688,31/05/2018,Childrens,CAMBIAN WHINFELL SCHOOLS LTD,02/05/2018,"13,807.73",66502-TOP UP FUNDING -GRANTS TO SCHOOLS,INDEPENDENT PROVIDERS - SPECIAL & AP,Third Party Payments,Revenue
Walsall Council,http://opendatacommunities.org/id/metropolitan-district-council/walsall,WC92-689,31/05/2018,Childrens,CAMBIAN WHINFELL SCHOOLS LTD,02/05/2018,"13,807.73",66502-TOP UP FUNDING -GRANTS TO SCHOOLS,INDEPENDENT PROVIDERS - SPECIAL & AP,Third Party Payments,Revenue
Walsall Council,http://opendatacommunities.org/id/metropolitan-district-council/walsall,WC92-690,31/05/2018,Childrens,CAMBIAN WHINFELL SCHOOLS LTD,18/05/2018,"22,666.67",66502-TOP UP FUNDING -GRANTS TO SCHOOLS,INDEPENDENT PROVIDERS - SPECIAL & AP,Third Party Payments,Revenue
Walsall Council,http://opendatacommunities.org/id/metropolitan-district-council/walsall,WC92-691,31/05/2018,Childrens,CAMBIAN WHINFELL SCHOOLS LTD,18/05/2018,"26,508.77",66502-TOP UP FUNDING -GRANTS TO SCHOOLS,INDEPENDENT PROVIDERS - SPECIAL & AP,Third Party Payments,Revenue
Walsall Council,http://opendatacommunities.org/id/metropolitan-district-council/walsall,WC92-692,31/05/2018,Childrens,CAMBIAN WHINFELL SCHOOLS LTD,18/05/2018,"48,853.86",66502-TOP UP FUNDING -GRANTS TO SCHOOLS,INDEPENDENT PROVIDERS - SPECIAL & AP,Third Party Payments,Revenue
Walsall Council,http://opendatacommunities.org/id/metropolitan-district-council/walsall,WC92-693,31/05/2018,Childrens,REDACTED,11/05/2018,309.00,77300-ISB-FORMULA ALLOCATION,OUT OF BOROUGH SCHOOLS,Transfer Payments,Revenue
Walsall Council,http://opendatacommunities.org/id/metropolitan-district-council/walsall,WC92-694,31/05/2018,Adult Social Care,CANNON HYGIENE LTD,14/05/2018,210.12,60520-HEALTH & SAFETY-MATERIALS,INITIAL REFERRAL TEAM,Supplies & Services,Revenue
Walsall Council,http://opendatacommunities.org/id/metropolitan-district-council/walsall,WC92-695,31/05/2018,Childrens,CAPSTONE FOSTER CARE (SOUTH EAST) LIMITED,18/05/2018,"3,003.12",74037-INDEPENDENT FOSTER CARE-OTH AGENCY PROVISION,EXTERNAL FOSTER CARE PROVISION,Third Party Payments,Revenue
Walsall Council,http://opendatacommunities.org/id/metropolitan-district-council/walsall,WC92-696,31/05/2018,Childrens,CAPSTONE FOSTER CARE (SOUTH EAST) LIMITED,18/05/2018,"3,124.44",74037-INDEPENDENT FOSTER CARE-OTH AGENCY PROVISION,EXTERNAL FOSTER CARE PROVISION,Third Party Payments,Revenue
Walsall Council,http://opendatacommunities.org/id/metropolitan-district-council/walsall,WC92-697,31/05/2018,Childrens,CAPSTONE FOSTER CARE (SOUTH EAST) LIMITED,18/05/2018,"3,194.04",74037-INDEPENDENT FOSTER CARE-OTH AGENCY PROVISION,EXTERNAL FOSTER CARE PROVISION,Third Party Payments,Revenue
Walsall Council,http://opendatacommunities.org/id/metropolitan-district-council/walsall,WC92-698,31/05/2018,Childrens,CAPSTONE FOSTER CARE (SOUTH EAST) LIMITED,18/05/2018,"3,194.04",74037-INDEPENDENT FOSTER CARE-OTH AGENCY PROVISION,EXTERNAL FOSTER CARE PROVISION,Third Party Payments,Revenue
Walsall Council,http://opendatacommunities.org/id/metropolitan-district-council/walsall,WC92-699,31/05/2018,Economy & Environment,CARDSTREAM LIMITED,09/05/2018,216.00,63000-PROFESSIONAL FEES AND SERVICES,FOREST ARTS CENTRE,Supplies & Services,Revenue
Walsall Council,http://opendatacommunities.org/id/metropolitan-district-council/walsall,WC92-700,31/05/2018,Adult Social Care,CARE 2 U LIMITED,16/05/2018,"28,301.28",73372-DOMICILIARY CARE,OP PACKAGE/PLACEMENT COSTS,Third Party Payments,Revenue
Walsall Council,http://opendatacommunities.org/id/metropolitan-district-council/walsall,WC92-701,31/05/2018,Adult Social Care,CARE 2 U LIMITED,22/05/2018,"30,124.14",73372-DOMICILIARY CARE,OP PACKAGE/PLACEMENT COSTS,Third Party Payments,Revenue
Walsall Council,http://opendatacommunities.org/id/metropolitan-district-council/walsall,WC92-702,31/05/2018,Childrens,CARE 4 CHILDREN RESIDENTIAL SERVICES LTD,18/05/2018,"5,600.00",74037-INDEPENDENT FOSTER CARE-OTH AGENCY PROVISION,EXTERNAL FOSTER CARE PROVISION,Third Party Payments,Revenue
Walsall Council,http://opendatacommunities.org/id/metropolitan-district-council/walsall,WC92-703,31/05/2018,Childrens,CARE AFLOAT LTD,18/05/2018,"1,371.43",74036-EXTERNAL RESIDENTIAL CARE-OTH AGENCY PROVISION,INDEPENDENT RESIDENTIAL HOMES,Third Party Payments,Revenue
Walsall Council,http://opendatacommunities.org/id/metropolitan-district-council/walsall,WC92-704,31/05/2018,Adult Social Care,CARE AVENUES LTD,23/05/2018,"1,897.50",73372-DOMICILIARY CARE,OP PACKAGE/PLACEMENT COSTS,Third Party Payments,Revenue
Walsall Council,http://opendatacommunities.org/id/metropolitan-district-council/walsall,WC92-705,31/05/2018,Adult Social Care,CARE AVENUES LTD,23/05/2018,"2,846.25",73372-DOMICILIARY CARE,OP PACKAGE/PLACEMENT COSTS,Third Party Payments,Revenue
Walsall Council,http://opendatacommunities.org/id/metropolitan-district-council/walsall,WC92-706,31/05/2018,Adult Social Care,CARE AVENUES LTD,23/05/2018,"3,217.50",73372-DOMICILIARY CARE,OP PACKAGE/PLACEMENT COSTS,Third Party Payments,Revenue
Walsall Council,http://opendatacommunities.org/id/metropolitan-district-council/walsall,WC92-707,31/05/2018,Adult Social Care,CARE AVENUES LTD,01/05/2018,"21,470.63",73372-DOMICILIARY CARE,OP PACKAGE/PLACEMENT COSTS,Third Party Payments,Revenue
Walsall Council,http://opendatacommunities.org/id/metropolitan-district-council/walsall,WC92-708,31/05/2018,Adult Social Care,CARE FIRST(SMETHWICK) LTD T/A ASH LODGE CARE HOME WITH NURSING,23/05/2018,369.11,73373-RESIDENTIAL & NURSING CARE PLACEMENTS,PD PACKAGE/PLACEMENT COSTS,Third Party Payments,Revenue
Walsall Council,http://opendatacommunities.org/id/metropolitan-district-council/walsall,WC92-709,31/05/2018,Adult Social Care,CARE FIRST(SMETHWICK) LTD T/A ASH LODGE CARE HOME WITH NURSING,23/05/2018,641.04,73373-RESIDENTIAL & NURSING CARE PLACEMENTS,OP PACKAGE/PLACEMENT COSTS,Third Party Payments,Revenue
Walsall Council,http://opendatacommunities.org/id/metropolitan-district-council/walsall,WC92-710,31/05/2018,Adult Social Care,CARE FIRST(SMETHWICK) LTD T/A ASH LODGE CARE HOME WITH NURSING,23/05/2018,707.13,73373-RESIDENTIAL & NURSING CARE PLACEMENTS,OP PACKAGE/PLACEMENT COSTS,Third Party Payments,Revenue
Walsall Council,http://opendatacommunities.org/id/metropolitan-district-council/walsall,WC92-711,31/05/2018,Adult Social Care,CARE FIRST(SMETHWICK) LTD T/A ASH LODGE CARE HOME WITH NURSING,22/05/2018,"1,232.14",73373-RESIDENTIAL & NURSING CARE PLACEMENTS,OP PACKAGE/PLACEMENT COSTS,Third Party Payments,Revenue
Walsall Council,http://opendatacommunities.org/id/metropolitan-district-council/walsall,WC92-712,31/05/2018,Adult Social Care,CARE FIRST(SMETHWICK) LTD T/A ASH LODGE CARE HOME WITH NURSING,22/05/2018,"1,492.83",73372-DOMICILIARY CARE,OP PACKAGE/PLACEMENT COSTS,Third Party Payments,Revenue
Walsall Council,http://opendatacommunities.org/id/metropolitan-district-council/walsall,WC92-713,31/05/2018,Adult Social Care,CARE FIRST(SMETHWICK) LTD T/A ASH LODGE CARE HOME WITH NURSING,23/05/2018,"2,243.64",73373-RESIDENTIAL & NURSING CARE PLACEMENTS,OP PACKAGE/PLACEMENT COSTS,Third Party Payments,Revenue
Walsall Council,http://opendatacommunities.org/id/metropolitan-district-council/walsall,WC92-714,31/05/2018,Childrens,CARE PERSPECTIVES LTD,18/05/2018,"19,800.00",74036-EXTERNAL RESIDENTIAL CARE-OTH AGENCY PROVISION,INDEPENDENT RESIDENTIAL HOMES,Third Party Payments,Revenue
Walsall Council,http://opendatacommunities.org/id/metropolitan-district-council/walsall,WC92-715,31/05/2018,Childrens,CARE TODAY CHILDRENS SERVICES,10/05/2018,"2,889.60",74036-EXTERNAL RESIDENTIAL CARE-OTH AGENCY PROVISION,INDEPENDENT RESIDENTIAL HOMES,Third Party Payments,Revenue
Walsall Council,http://opendatacommunities.org/id/metropolitan-district-council/walsall,WC92-716,31/05/2018,Childrens,CARE TODAY CHILDRENS SERVICES,18/05/2018,"10,380.00",74036-EXTERNAL RESIDENTIAL CARE-OTH AGENCY PROVISION,INDEPENDENT RESIDENTIAL HOMES,Third Party Payments,Revenue
Walsall Council,http://opendatacommunities.org/id/metropolitan-district-council/walsall,WC92-717,31/05/2018,Adult Social Care,CARE XY LIMITED,25/05/2018,283.39,73372-DOMICILIARY CARE,OP PACKAGE/PLACEMENT COSTS,Third Party Payments,Revenue
Walsall Council,http://opendatacommunities.org/id/metropolitan-district-council/walsall,WC92-718,31/05/2018,Adult Social Care,CARE XY LIMITED,25/05/2018,307.44,73372-DOMICILIARY CARE,OP PACKAGE/PLACEMENT COSTS,Third Party Payments,Revenue
Walsall Council,http://opendatacommunities.org/id/metropolitan-district-council/walsall,WC92-719,31/05/2018,Adult Social Care,CARE XY LIMITED,25/05/2018,420.37,73372-DOMICILIARY CARE,OP PACKAGE/PLACEMENT COSTS,Third Party Payments,Revenue
Walsall Council,http://opendatacommunities.org/id/metropolitan-district-council/walsall,WC92-720,31/05/2018,Adult Social Care,CARE XY LIMITED,21/05/2018,562.00,73025-PROFESSIONAL SERVICES-PRIV CONTRACTOR & OTHER AGENCIES,COMMUNITY INTERMEDIATE CARE,Third Party Payments,Revenue
Walsall Council,http://opendatacommunities.org/id/metropolitan-district-council/walsall,WC92-721,31/05/2018,Adult Social Care,CARE XY LIMITED,25/05/2018,572.96,73372-DOMICILIARY CARE,OP PACKAGE/PLACEMENT COSTS,Third Party Payments,Revenue
Walsall Council,http://opendatacommunities.org/id/metropolitan-district-council/walsall,WC92-722,31/05/2018,Adult Social Care,CARE XY LIMITED,24/05/2018,637.64,73374-SUPPORTED & OTHER ACCOMMODATION,LD PACKAGE/PLACEMENT COSTS,Third Party Payments,Revenue
Walsall Council,http://opendatacommunities.org/id/metropolitan-district-council/walsall,WC92-723,31/05/2018,Childrens,CARE XY LIMITED,30/05/2018,806.00,63000-PROFESSIONAL FEES AND SERVICES,DIRECTLY COMMISSIONED NURSING SERVICES,Supplies & Services,Revenue
Walsall Council,http://opendatacommunities.org/id/metropolitan-district-council/walsall,WC92-724,31/05/2018,Adult Social Care,CARE XY LIMITED,25/05/2018,843.00,73372-DOMICILIARY CARE,OP PACKAGE/PLACEMENT COSTS,Third Party Payments,Revenue
Walsall Council,http://opendatacommunities.org/id/metropolitan-district-council/walsall,WC92-725,31/05/2018,Adult Social Care,CARE XY LIMITED,11/05/2018,899.20,73025-PROFESSIONAL SERVICES-PRIV CONTRACTOR & OTHER AGENCIES,COMMUNITY INTERMEDIATE CARE,Third Party Payments,Revenue
Walsall Council,http://opendatacommunities.org/id/metropolitan-district-council/walsall,WC92-726,31/05/2018,Adult Social Care,CARE XY LIMITED,30/05/2018,"1,146.83",73372-DOMICILIARY CARE,OP PACKAGE/PLACEMENT COSTS,Third Party Payments,Revenue
Walsall Council,http://opendatacommunities.org/id/metropolitan-district-council/walsall,WC92-727,31/05/2018,Adult Social Care,CARE XY LIMITED,24/05/2018,"1,275.30",73372-DOMICILIARY CARE,LD PACKAGE/PLACEMENT COSTS,Third Party Payments,Revenue
Walsall Council,http://opendatacommunities.org/id/metropolitan-district-council/walsall,WC92-728,31/05/2018,Adult Social Care,CARE XY LIMITED,25/05/2018,"1,275.30",73372-DOMICILIARY CARE,LD PACKAGE/PLACEMENT COSTS,Third Party Payments,Revenue
Walsall Council,http://opendatacommunities.org/id/metropolitan-district-council/walsall,WC92-729,31/05/2018,Adult Social Care,CARE XY LIMITED,25/05/2018,"1,275.30",73372-DOMICILIARY CARE,LD PACKAGE/PLACEMENT COSTS,Third Party Payments,Revenue
Walsall Council,http://opendatacommunities.org/id/metropolitan-district-council/walsall,WC92-730,31/05/2018,Childrens,CARE XY LIMITED,04/05/2018,"1,302.00",52000-WITH DRIVER-HIRE OF VEHICLES,HOME TO SCHOOL TRANSPORT,Transport,Revenue
Walsall Council,http://opendatacommunities.org/id/metropolitan-district-council/walsall,WC92-731,31/05/2018,Childrens,CARE XY LIMITED,30/05/2018,"1,395.00",52000-WITH DRIVER-HIRE OF VEHICLES,HOME TO SCHOOL TRANSPORT,Transport,Revenue
Walsall Council,http://opendatacommunities.org/id/metropolitan-district-council/walsall,WC92-732,31/05/2018,Adult Social Care,CARE XY LIMITED,25/05/2018,"1,565.20",73372-DOMICILIARY CARE,OP PACKAGE/PLACEMENT COSTS,Third Party Payments,Revenue
Walsall Council,http://opendatacommunities.org/id/metropolitan-district-council/walsall,WC92-733,31/05/2018,Adult Social Care,CARE XY LIMITED,25/05/2018,"1,565.20",73372-DOMICILIARY CARE,OP PACKAGE/PLACEMENT COSTS,Third Party Payments,Revenue
Walsall Council,http://opendatacommunities.org/id/metropolitan-district-council/walsall,WC92-734,31/05/2018,Adult Social Care,CARE XY LIMITED,25/05/2018,"1,760.84",73372-DOMICILIARY CARE,OP PACKAGE/PLACEMENT COSTS,Third Party Payments,Revenue
Walsall Council,http://opendatacommunities.org/id/metropolitan-district-council/walsall,WC92-735,31/05/2018,Adult Social Care,CARE XY LIMITED,25/05/2018,"2,788.92",73372-DOMICILIARY CARE,OP PACKAGE/PLACEMENT COSTS,Third Party Payments,Revenue
Walsall Council,http://opendatacommunities.org/id/metropolitan-district-council/walsall,WC92-736,31/05/2018,Childrens,CARE XY LIMITED,02/05/2018,"5,192.50",63000-PROFESSIONAL FEES AND SERVICES,DIRECTLY COMMISSIONED NURSING SERVICES,Supplies & Services,Revenue
Walsall Council,http://opendatacommunities.org/id/metropolitan-district-council/walsall,WC92-737,31/05/2018,Childrens,CARE XY LIMITED,17/05/2018,"5,580.00",63000-PROFESSIONAL FEES AND SERVICES,DIRECTLY COMMISSIONED NURSING SERVICES,Supplies & Services,Revenue
Walsall Council,http://opendatacommunities.org/id/metropolitan-district-council/walsall,WC92-738,31/05/2018,Adult Social Care,CARE XY LIMITED,18/05/2018,"6,710.00",73019-PSE'S-PRIV CONTRACTOR FEES,INTEGRATED DISCHARGE TEAM,Third Party Payments,Revenue
Walsall Council,http://opendatacommunities.org/id/metropolitan-district-council/walsall,WC92-739,31/05/2018,Adult Social Care,CARE XY LIMITED,02/05/2018,"7,397.50",73019-PSE'S-PRIV CONTRACTOR FEES,INTEGRATED DISCHARGE TEAM,Third Party Payments,Revenue
Walsall Council,http://opendatacommunities.org/id/metropolitan-district-council/walsall,WC92-740,31/05/2018,Adult Social Care,CARE XY LIMITED,18/05/2018,"10,883.12",73019-PSE'S-PRIV CONTRACTOR FEES,INTEGRATED DISCHARGE TEAM,Third Party Payments,Revenue
Walsall Council,http://opendatacommunities.org/id/metropolitan-district-council/walsall,WC92-741,31/05/2018,Adult Social Care,CARE XY LIMITED,18/05/2018,"11,787.18",73019-PSE'S-PRIV CONTRACTOR FEES,INTEGRATED DISCHARGE TEAM,Third Party Payments,Revenue
Walsall Council,http://opendatacommunities.org/id/metropolitan-district-council/walsall,WC92-742,31/05/2018,Childrens,CAREFIRST SERVICES LIMITED,21/05/2018,"2,130.90",76010-ACCOMMODATION AND RELATED COSTS-ASSISTANCE TO S/S CLIENTS,TRANSITION AND LEAVING CARE PLACEMENTS,Transfer Payments,Revenue
Walsall Council,http://opendatacommunities.org/id/metropolitan-district-council/walsall,WC92-743,31/05/2018,Adult Social Care,CARETECH COMMUNITY SERVICE,02/05/2018,"4,293.51",73372-DOMICILIARY CARE,LD PACKAGE/PLACEMENT COSTS,Third Party Payments,Revenue
Walsall Council,http://opendatacommunities.org/id/metropolitan-district-council/walsall,WC92-744,31/05/2018,Adult Social Care,CARETECH COMMUNITY SERVICE,30/05/2018,"4,436.63",73372-DOMICILIARY CARE,LD PACKAGE/PLACEMENT COSTS,Third Party Payments,Revenue
Walsall Council,http://opendatacommunities.org/id/metropolitan-district-council/walsall,WC92-745,31/05/2018,Adult Social Care,CAREVIEW SERVICES LTD,01/05/2018,"6,708.47",73373-RESIDENTIAL & NURSING CARE PLACEMENTS,LD PACKAGE/PLACEMENT COSTS,Third Party Payments,Revenue
Walsall Council,http://opendatacommunities.org/id/metropolitan-district-council/walsall,WC92-746,31/05/2018,Adult Social Care,CAREVIEW SERVICES LTD,22/05/2018,"6,932.08",73373-RESIDENTIAL & NURSING CARE PLACEMENTS,LD PACKAGE/PLACEMENT COSTS,Third Party Payments,Revenue
Walsall Council,http://opendatacommunities.org/id/metropolitan-district-council/walsall,WC92-747,31/05/2018,Adult Social Care,CARING CARE LIMITED,02/05/2018,299.07,73025-PROFESSIONAL SERVICES-PRIV CONTRACTOR & OTHER AGENCIES,ACM MANAGEMENT TEAM,Third Party Payments,Revenue
Walsall Council,http://opendatacommunities.org/id/metropolitan-district-council/walsall,WC92-748,31/05/2018,Adult Social Care,CARING CARE LIMITED,02/05/2018,330.00,73025-PROFESSIONAL SERVICES-PRIV CONTRACTOR & OTHER AGENCIES,ACM MANAGEMENT TEAM,Third Party Payments,Revenue
Walsall Council,http://opendatacommunities.org/id/metropolitan-district-council/walsall,WC92-749,31/05/2018,Adult Social Care,CARING CARE LIMITED,02/05/2018,"1,320.00",73025-PROFESSIONAL SERVICES-PRIV CONTRACTOR & OTHER AGENCIES,ACM MANAGEMENT TEAM,Third Party Payments,Revenue
Walsall Council,http://opendatacommunities.org/id/metropolitan-district-council/walsall,WC92-750,31/05/2018,Adult Social Care,CARING CARE LIMITED,18/05/2018,"1,348.80",73025-PROFESSIONAL SERVICES-PRIV CONTRACTOR & OTHER AGENCIES,RAPID RESPONSE,Third Party Payments,Revenue
Walsall Council,http://opendatacommunities.org/id/metropolitan-district-council/walsall,WC92-751,31/05/2018,Adult Social Care,CARING CARE LIMITED,02/05/2018,"1,361.25",73025-PROFESSIONAL SERVICES-PRIV CONTRACTOR & OTHER AGENCIES,ACM MANAGEMENT TEAM,Third Party Payments,Revenue
Walsall Council,http://opendatacommunities.org/id/metropolitan-district-council/walsall,WC92-752,31/05/2018,Adult Social Care,CARING CARE LIMITED,18/05/2018,"2,023.20",73025-PROFESSIONAL SERVICES-PRIV CONTRACTOR & OTHER AGENCIES,RAPID RESPONSE,Third Party Payments,Revenue
Walsall Council,http://opendatacommunities.org/id/metropolitan-district-council/walsall,WC92-753,31/05/2018,Adult Social Care,CARING CARE LIMITED,18/05/2018,"2,262.05",73025-PROFESSIONAL SERVICES-PRIV CONTRACTOR & OTHER AGENCIES,RAPID RESPONSE,Third Party Payments,Revenue
Walsall Council,http://opendatacommunities.org/id/metropolitan-district-council/walsall,WC92-754,31/05/2018,Adult Social Care,CARING CARE LIMITED,02/05/2018,"2,502.50",73025-PROFESSIONAL SERVICES-PRIV CONTRACTOR & OTHER AGENCIES,ACM MANAGEMENT TEAM,Third Party Payments,Revenue
Walsall Council,http://opendatacommunities.org/id/metropolitan-district-council/walsall,WC92-755,31/05/2018,Adult Social Care,CARING CARE LIMITED,18/05/2018,"2,557.10",73025-PROFESSIONAL SERVICES-PRIV CONTRACTOR & OTHER AGENCIES,RAPID RESPONSE,Third Party Payments,Revenue
Walsall Council,http://opendatacommunities.org/id/metropolitan-district-council/walsall,WC92-756,31/05/2018,Adult Social Care,CARING CARE LIMITED,22/05/2018,"71,931.48",73372-DOMICILIARY CARE,OP PACKAGE/PLACEMENT COSTS,Third Party Payments,Revenue
Walsall Council,http://opendatacommunities.org/id/metropolitan-district-council/walsall,WC92-757,31/05/2018,Adult Social Care,CARING HANDS LIMITED,16/05/2018,"27,010.32",73372-DOMICILIARY CARE,OP PACKAGE/PLACEMENT COSTS,Third Party Payments,Revenue
Walsall Council,http://opendatacommunities.org/id/metropolitan-district-council/walsall,WC92-758,31/05/2018,Adult Social Care,CARING HANDS LIMITED,22/05/2018,"31,947.66",73372-DOMICILIARY CARE,OP PACKAGE/PLACEMENT COSTS,Third Party Payments,Revenue
Walsall Council,http://opendatacommunities.org/id/metropolitan-district-council/walsall,WC92-759,31/05/2018,Childrens,REDACTED,01/05/2018,"2,714.40",66505-OTHER-GRANTS TO OTHER ORGS,EARLY YEARS - 3 YR OLDS,Third Party Payments,Revenue
Walsall Council,http://opendatacommunities.org/id/metropolitan-district-council/walsall,WC92-760,31/05/2018,Adult Social Care,REDACTED,08/05/2018,"1,327.04",76422-DIRECT PAYMENTS TO SOCIAL SERVICES CLIENTS,PD PACKAGE/PLACEMENT COSTS,Transfer Payments,Revenue
Walsall Council,http://opendatacommunities.org/id/metropolitan-district-council/walsall,WC92-761,31/05/2018,Adult Social Care,REDACTED,04/05/2018,"1,637.40",73372-DOMICILIARY CARE,LD PACKAGE/PLACEMENT COSTS,Third Party Payments,Revenue
Walsall Council,http://opendatacommunities.org/id/metropolitan-district-council/walsall,WC92-762,31/05/2018,Adult Social Care,REDACTED,04/05/2018,"1,637.40",73372-DOMICILIARY CARE,LD PACKAGE/PLACEMENT COSTS,Third Party Payments,Revenue
Walsall Council,http://opendatacommunities.org/id/metropolitan-district-council/walsall,WC92-763,31/05/2018,Childrens,REDACTED,18/05/2018,9.24,60006-NEW-FURNITURE & EQUIPMENT,INTERNAL FOSTER CARE PROVISION,Supplies & Services,Revenue
